Workbook

Sheet taille
D2: Classe du quadricoptère | E2: 900 | F2: mm
D3: (espace entre les hélices 1 et 2) | V3: angle | W3: CX | X3: CY | Y3: 1, 4 X | Z3: 1, 3 Y | AA3: 2, 3 X | AB3: 2, 4 Y | AC3: angle | AD3: X | AE3: Y
D4: poids estimé de la machine ≈ | E4: 4250 | F4: grs | Y4: =$E$2/2*2^0.5 -> 636.3961031 | Z4: =$E$2/2*2^0.5 -> 636.3961031 | AA4: =-($E$2/2*2^0.5) -> -636.3961031 | AB4: =-($E$2/2*2^0.5) -> -636.3961031 | AC4: 45 | AD4: =(COS(PI()*45/180)*$Q$19/2) -> 97.22718241 | AE4: =(SIN(PI()*45/180)*$Q$19/2) -> 97.22718241
V5: 0 | W5: =COS(PI()*V5/180)*$Q$19/2 -> 137.5 | X5: =SIN(PI()*V5/180)*$Q$19/2 -> 0 | Y5: =(COS(PI()*V5/180)*$E$2/2)+$Y$4 -> 1086.396103 | Z5: =$Z$4+(SIN(PI()*V5/180)*$E$2/2) -> 636.3961031 | AA5: =(COS(PI()*V5/180)*$E$2/2)+$AA$4 -> -186.3961031 | AB5: =(SIN(PI()*V5/180)*$E$2/2)+$AB$4 -> -636.3961031 | AD5: =$Y$4 -> 636.3961031 | AE5: =$Y$4 -> 636.3961031
D6: taillle des hélices | E6: =INT(E2/25.4+1)/2 -> 18 | F6: pouces | V6: 10 | W6: 135.411066 | X6: 23.87662443 | Y6: 1079.559592 | Z6: 714.537783 | AA6: -193.2326142 | AB6: -558.2544231 | AC6: 135 | AD6: =-AD4 -> -97.22718241 | AE6: =AE4 -> 97.22718241
V7: 20 | W7: 129.2077354 | X7: 47.02776971 | Y7: 1059.257782 | Z7: 790.3051676 | AA7: -213.5344237 | AB7: -482.4870386 | AD7: =-AD5 -> -636.3961031 | AE7: =AE5 -> 636.3961031
V8: 30 | W8: 119.078493 | X8: 68.75 | Y8: 1026.107535 | Z8: 861.3961031 | AA8: -246.6846714 | AB8: -411.3961031 | AC8: 225 | AD8: =-AD4 -> -97.22718241 | AE8: -97.22718241
V9: 40 | W9: 105.3311109 | X9: 88.38329633 | Y9: 981.1161025 | Z9: 925.6505274 | AA9: -291.6761037 | AB9: -347.1416787 | AD9: -636.3961031 | AE9: -636.3961031
V10: 50 | W10: 88.38329633 | X10: 105.3311109 | Y10: 925.6505274 | Z10: 981.1161025 | AA10: -347.1416787 | AB10: -291.6761037 | AC10: 315 | AD10: 97.22718241 | AE10: -97.22718241
V11: 60 | W11: 68.75 | X11: 119.078493 | Y11: 861.3961031 | Z11: 1026.107535 | AA11: -411.3961031 | AB11: -246.6846714 | AD11: 636.3961031 | AE11: -636.3961031
V12: 70 | W12: 47.02776971 | X12: 129.2077354 | Y12: 790.3051676 | Z12: 1059.257782 | AA12: -482.4870386 | AB12: -213.5344237
V13: 80 | W13: 23.87662443 | X13: 135.411066 | Y13: 714.537783 | Z13: 1079.559592 | AA13: -558.2544231 | AB13: -193.2326142
V14: 90 | W14: 8.422895627e-15 | X14: 137.5 | Y14: 636.3961031 | Z14: 1086.396103 | AA14: -636.3961031 | AB14: -186.3961031
V15: 100 | W15: -23.87662443 | X15: 135.411066 | Y15: 558.2544231 | Z15: 1079.559592 | AA15: -714.537783 | AB15: -193.2326142
V16: 110 | W16: -47.02776971 | X16: 129.2077354 | Y16: 482.4870386 | Z16: 1059.257782 | AA16: -790.3051676 | AB16: -213.5344237
V17: 120 | W17: -68.75 | X17: 119.078493 | Y17: 411.3961031 | Z17: 1026.107535 | AA17: -861.3961031 | AB17: -246.6846714
N18: ← | O18: Diamètre approximatif du centre du chassis | V18: 130 | W18: -88.38329633 | X18: 105.3311109 | Y18: 347.1416787 | Z18: 981.1161025 | AA18: -925.6505274 | AB18: -291.6761037
Q19: =INT((E6*25.4*0.6)+1) -> 275 | R19: mm | V19: 140 | W19: -105.3311109 | X19: 88.38329633 | Y19: 291.6761037 | Z19: 925.6505274 | AA19: -981.1161025 | AB19: -347.1416787
V20: 150 | W20: -119.078493 | X20: 68.75 | Y20: 246.6846714 | Z20: 861.3961031 | AA20: -1026.107535 | AB20: -411.3961031
V21: 160 | W21: -129.2077354 | X21: 47.02776971 | Y21: 213.5344237 | Z21: 790.3051676 | AA21: -1059.257782 | AB21: -482.4870386
O22: Classe | P22: D hélice | V22: 170 | W22: -135.411066 | X22: 23.87662443 | Y22: 193.2326142 | Z22: 714.537783 | AA22: -1079.559592 | AB22: -558.2544231
O23: 250 | P23: =INT(O23/25.4+1)/2 -> 5 | V23: 180 | W23: -137.5 | X23: 1.684579125e-14 | Y23: 186.3961031 | Z23: 636.3961031 | AA23: -1086.396103 | AB23: -636.3961031
O24: 300 | P24: 6 | V24: 190 | W24: -135.411066 | X24: -23.87662443 | Y24: 193.2326142 | Z24: 558.2544231 | AA24: -1079.559592 | AB24: -714.537783
O25: 350 | P25: 7 | V25: 200 | W25: -129.2077354 | X25: -47.02776971 | Y25: =(COS(PI()*V25/180)*$E$2/2)+$Y$4 -> 213.5344237 | Z25: =$Z$4+(SIN(PI()*V25/180)*$E$2/2) -> 482.4870386 | AA25: =(COS(PI()*V25/180)*$E$2/2)+$AA$4 -> -1059.257782 | AB25: =(SIN(PI()*V25/180)*$E$2/2)+$AB$4 -> -790.3051676
O26: 400 | P26: 8 | V26: 210 | W26: -119.078493 | X26: -68.75 | Y26: =(COS(PI()*V26/180)*$E$2/2)+$Y$4 -> 246.6846714 | Z26: =$Z$4+(SIN(PI()*V26/180)*$E$2/2) -> 411.3961031 | AA26: =(COS(PI()*V26/180)*$E$2/2)+$AA$4 -> -1026.107535 | AB26: =(SIN(PI()*V26/180)*$E$2/2)+$AB$4 -> -861.3961031
O27: 450 | P27: 9 | V27: 220 | W27: -105.3311109 | X27: -88.38329633 | Y27: 291.6761037 | Z27: 347.1416787 | AA27: -981.1161025 | AB27: -925.6505274
O28: 500 | P28: 10 | V28: 230 | W28: -88.38329633 | X28: -105.3311109 | Y28: 347.1416787 | Z28: 291.6761037 | AA28: -925.6505274 | AB28: -981.1161025
O29: 550 | P29: 11 | V29: 240 | W29: -68.75 | X29: -119.078493 | Y29: 411.3961031 | Z29: 246.6846714 | AA29: -861.3961031 | AB29: -1026.107535
O30: 600 | P30: 12 | V30: 250 | W30: -47.02776971 | X30: -129.2077354 | Y30: 482.4870386 | Z30: 213.5344237 | AA30: -790.3051676 | AB30: -1059.257782
O31: 650 | P31: 13 | V31: 260 | W31: -23.87662443 | X31: -135.411066 | Y31: 558.2544231 | Z31: 193.2326142 | AA31: -714.537783 | AB31: -1079.559592
O32: 700 | P32: 14 | V32: 270 | W32: -2.526868688e-14 | X32: -137.5 | Y32: 636.3961031 | Z32: 186.3961031 | AA32: -636.3961031 | AB32: -1086.396103
O33: 750 | P33: 15 | V33: 280 | W33: 23.87662443 | X33: -135.411066 | Y33: 714.537783 | Z33: 193.2326142 | AA33: -558.2544231 | AB33: -1079.559592
O34: 800 | P34: 16 | V34: 290 | W34: 47.02776971 | X34: -129.2077354 | Y34: 790.3051676 | Z34: 213.5344237 | AA34: -482.4870386 | AB34: -1059.257782
O35: 850 | P35: 17 | V35: 300 | W35: 68.75 | X35: -119.078493 | Y35: 861.3961031 | Z35: 246.6846714 | AA35: -411.3961031 | AB35: -1026.107535
O36: 900 | P36: 18 | V36: 310 | W36: 88.38329633 | X36: -105.3311109 | Y36: 925.6505274 | Z36: 291.6761037 | AA36: -347.1416787 | AB36: -981.1161025
O37: 950 | P37: 19 | V37: 320 | W37: 105.3311109 | X37: -88.38329633 | Y37: 981.1161025 | Z37: 347.1416787 | AA37: -291.6761037 | AB37: -925.6505274
O38: 1000 | P38: 20 | V38: 330 | W38: 119.078493 | X38: -68.75 | Y38: 1026.107535 | Z38: 411.3961031 | AA38: -246.6846714 | AB38: -861.3961031
O39: 1100 | P39: 22 | V39: 340 | W39: 129.2077354 | X39: -47.02776971 | Y39: 1059.257782 | Z39: 482.4870386 | AA39: -213.5344237 | AB39: -790.3051676
O40: 1200 | P40: 24 | V40: 350 | W40: 135.411066 | X40: -23.87662443 | Y40: 1079.559592 | Z40: 558.2544231 | AA40: -193.2326142 | AB40: -714.537783
O41: 1300 | P41: 26
O42: 1400 | P42: 28
O43: 1500 | P43: 30

Sheet graph

Sheet moteur test
S1: position | T1: marque | U1: type | V1: Ri | W1: Io | X1: Pmax | Y1: KV | Z1: Imax
C2: Encodez ici différents paramètres estimés | M2: Encodez ici les paramètres du moteur de test choisi | S2: =CONCATENATE("B",FIXED(Y4+1,0),":H",FIXED(Y4+1,0)) -> B9:H9 | T2: =N3 -> Turnigy Multistar | U2: =R3 -> 4014-320KV 22 Poles | V2: =R9 -> 0.102 | W2: =R10 -> 0.7 | X2: =R6 -> 720 | Y2: =R7 -> 320 | Z2: =R11 -> 26
C3: paramètres hélice | M3: marque | N3: Turnigy Multistar | Q3: type du moteur | R3: 4014-320KV 22 Poles
F4: hélice idéale | G4: =taille!E6 -> 18 | H4: pouces | U4: Indiquez les paramètres connus du moteur pressenti pour tester les hélices | X4: en n° | Y4: 8 | Z4: =IF(VLOOKUP('moteur test'!Y4,'moteurs et mesures'!A:C,3)>"","ATTENTION: un moteur est déjà présent sous ce numéro","") -> ATTENTION: un moteur est déjà présent sous ce numéro
F5: remplacée par une hélice | G5: 18 | H5: pouces | U5: vous pouvez changer les paramètres pour voir si votre moteur correspond
F6: En prenant comme base de départ une efficacité d'hélice de | G6: 10.3 | H6: grs/Watts | J6: Eff | Q6: puissance | R6: 720 | S6: Watts | T6: =IF(R6<G21,G21,R6) -> 720 | U6: Watts | V6: =IF(R6<T6,CONCATENATE("la puissance devrait être de ",FIXED(T6,0)," Watts"),"") -> 
F7: soit ≈ | G7: =INT(100/G6+0.5)*10 -> 100 | H7: Watts/Kg | Q7: KV | R7: 320 | T7: =IF(R7>0,R7,G22*T11/(T6-(T9*T11^2))) -> 320 | V7: =IF(T7<T12-1,CONCATENATE("le KV doit être au moins de ",FIXED(T12,0)),"") -> 
Q8: pour une batterie de | R8: 6 | S8: éléments | T8: =IF(R8>0,R8,6) -> 6 | U8: éléments | V8: =IF(R8=0,"(valeur par défaut)","") -> 
F9: et avec comme poids estimé de la machine ≈ | G9: =taille!E4 -> 4250 | H9: grs | J9: M | Q9: avec une résistance interne de | R9: 0.102 | S9: ohm | T9: =IF(R9>0,R9,0) -> 0.102 | U9: ohm | V9: =IF(T9=0,"sans valeur, les résultats peuvent manquer de précision","") -> 
F10: en stationnaire, chaque moteur devra fournir ≈ | G10: =INT(G9/4+0.5) -> 1063 | H10: grs | J10: Fsta = M / 4 | Q10: courant à vide | R10: 0.7 | S10: ampères | T10: =IF(R10>0,R10,0) -> 0.7 | U10: ampères | V10: =IF(T10=0,"sans valeur, les résultats peuvent manquer de précision","") -> 
F11: ce qui nécessite une puissance de ≈ | G11: =G7*G10/1000 -> 106.3 | H11: Watts | J11: Psta = F / Eff | Q11: courant maximum | R11: 26 | S11: ampères | T11: =IF(R11>0,R11,T6/(T8*3.7)) -> 26 | U11: ampères | V11: =IF(R11/(T6/(3.7*T8))>1,"ce courant paraît trop important",IF(R11=0,IF(T11<(T6/(T8*3.7)),"",CONCATENATE("le courant maximum est de ",FIXED(T6/(T8*3.7))," ampères")),"")) -> 
F12: la vitesse de rotation est alors de ≈ | G12: =INT((30373*POWER(G10,0.5)/G5^2)/10+0.5)*10 -> 3060 | H12: trs/min | J12: n = 30373 x F1/2 / D2 | S12: =IF(T9>0,CONCATENATE("pour ",FIXED(G22,0)," trs/min, le KV minimum est de"),"l'évaluation imprécise du KV est de") -> pour 4.331 trs/min, le KV minimum est de | T12: =G22*T11/(T6-(T9*T11^2)) -> 172.9794198
C14: paramètres machine | S14: en vol stationnaire à | T14: =G12 -> 3060 | U14: trs/min | V14: =IF(T9>0,"","précision ? car la valeur de résistance interne est inconnue") -> 
F15: pour obtenir un rapport traction/poids de | G15: 2 | J15: Fmax / M | S15: la tension moteur sera de | T15: =T14*(T16-T10)/(T16*T7) -> 9.126155681 | U15: volts | V15: =IF(T9>0,"","précision ? car la valeur de résistance interne est inconnue") -> 
F16: la traction maximale est de ≈ | G16: =INT(G10*G15/10+0.5)*10 -> 2130 | H16: grs | J16: Fmax = Fsta x Fmax / M | S16: =CONCATENATE("le courant attendu avec l'hélice ",FIXED(G5,0)," pouces et un KV de ",FIXED(T7,0)," est de") -> le courant attendu avec l'hélice 18 pouces et un KV de 320 est de | T16: =(T7*(INT(G11/8+1)*10)/T14)+T10 -> 15.34052288 | U16: ampères | V16: =IF(T16>T11,CONCATENATE("le courant maximum est de ",FIXED(T11)," ampères"),"") -> 
F17: la puissance mécanique nécessaire est de ≈ | G17: =INT(G11*POWER(G15,3/2)/10+0.5)*10 -> 300 | H17: Watts | J17: Pmax = Psta x Fmax / M | S17: =IF(T16>T11,"le moteur ne peut pas fournir les","la puissance électrique sera de") -> la puissance électrique sera de | T17: =T15*T16 -> 140 | U17: Watts
C19: paramètres moteur
F20: en supposant un rendement moteur de | G20: 88 | H20: % | J20: η x 100
F21: pour la traction maximale, le moteur test aura une puissance de ≈ | G21: =G17*100/G20 -> 340.9090909 | H21: Watts | J21: Pm = P x η | AE21: =IF(OR((R25>3.7*$T$8),(R26>$T$11),(R27>$T$6)),0,1) -> 1 | AF21: 1 | AG21: 1 | AH21: 1 | AI21: 1 | AJ21: =IF(OR((W25>3.7*$T$8),(W26>$T$11),(W27>$T$6)),0,1) -> 1 | AK21: 1 | AL21: 1 | AM21: 0 | AN21: 0 | AP21: limite en proportion du max absolu
F22: la vitesse de rotation sera ≈ | G22: =((30373*POWER(G16,0.5)/G5^2)/10+0.5)*10 -> 4331.457896 | H22: trs/min | J22: n = 30373 x F1/2 / D2 | P22: F | Q22: grs | R22: =G10 -> 1063 | S22: =(($AA$22-$R$22)/9)+R22 -> 1181.555556 | T22: 1300.111111 | U22: 1418.666667 | V22: 1537.222222 | W22: =(($AA$22-$R$22)/9)+V22 -> 1655.777778 | X22: 1774.333333 | Y22: 1892.888889 | Z22: 2011.444444 | AA22: =G16 -> 2130 | AB22: grs | AD22: F | AE22: =R22/$AA$22 -> 0.4990610329 | AF22: =S22/$AA$22 -> 0.5547209181 | AG22: 0.6103808033 | AH22: =U22/$AA$22 -> 0.6660406886 | AI22: 0.7217005738 | AJ22: 0.7773604591 | AK22: 0.8330203443 | AL22: 0.8886802295 | AM22: 0.9443401148 | AN22: =AA22/$AA$22 -> 1 | AO22: F
P23: n | Q23: trs/min | R23: =G12 -> 3060 | S23: =$R$23*(S22/$R$22)^0.5 -> 3226.130028 | T23: 3384.114347 | U23: 3535.045243 | V23: 3679.790732 | W23: 3819.054175 | X23: 3953.414947 | Y23: 4083.357038 | Z23: 4209.289686 | AA23: =$R$23*(AA22/$R$22)^0.5 -> 4331.562607 | AB23: trs/min | AD23: n | AE23: =R23/$AA$23 -> 0.7064425192 | AF23: =S23/$AA$23 -> 0.7447958902 | AG23: 0.7812687139 | AH23: =U23/$AA$23 -> 0.8161131592 | AI23: 0.8495296192 | AJ23: 0.8816804745 | AK23: 0.9126994819 | AL23: 0.9426983767 | AM23: 0.9717716371 | AN23: 1 | AO23: n
F24: avec une batterie de | G24: 6 | H24: éléments | P24: Pméc | Q24: Watts | R24: =G11 -> 106.3 | S24: =$R$24*(S22/$R$22)^1.5 -> 124.5703221 | T24: 143.7818518 | U24: 163.8905507 | V24: 184.858042 | W24: 206.6504913 | X24: 229.2377752 | Y24: 252.5928486 | Z24: 276.6912534 | AA24: 301.5107305 | AB24: Watts | AD24: Pméc | AE24: =R24/$AA$24 -> 0.3525579333 | AF24: =S24/$AA$24 -> 0.41315386 | AG24: 0.4768714252 | AH24: 0.5435645705 | AI24: 0.6131060136 | AJ24: 0.6853835384 | AK24: 0.7602972367 | AL24: 0.8377574098 | AM24: 0.9176829393 | AN24: 1 | AO24: Pméc
F25: la tension est de | G25: =3.7*G24 -> 22.2 | H25: volts | J25: Vb | P25: V | Q25: volts | R25: =R23*(T16-$T$10)/($T$16*$T$7) -> 9.126155681 | S25: =S23*(S26-$T$10)/($T$16*$T$7) -> 10.15042994 | T25: 11.71585324 | U25: 13.35438108 | V25: 15.06288634 | W25: 16.8386121 | X25: 18.67910379 | Y25: 20.58215768 | Z25: 22.54578084 | AA25: 24.56815952 | AB25: volts | AD25: V | AE25: =(R25/($AA$23*($AA$26-$T$10)/($T$16*$T$7))) -> 0.3714627331 | AF25: =(S25/($AA$23*($AA$26-$T$10)/($T$16*$T$7))) -> 0.41315386 | AG25: 0.4768714252 | AH25: 0.5435645705 | AI25: 0.6131060136 | AJ25: 0.6853835384 | AK25: 0.7602972367 | AL25: 0.8377574098 | AM25: 0.9176829393 | AN25: 1 | AO25: V
P26: I | Q26: ampères | R26: =($T$7*(R24/0.8)/R23)+$T$10 -> 14.59542484 | S26: 16.14517066 | T26: 17.69491649 | U26: 19.24466231 | V26: 20.79440813 | W26: 22.34415396 | X26: 23.89389978 | Y26: 25.44364561 | Z26: 26.99339143 | AA26: 28.54313725 | AB26: ampères | AD26: I | AE26: =R26/$AA$26 -> 0.5113462023 | AF26: =S26/$AA$26 -> 0.5656410687 | AG26: 0.6199359351 | AH26: 0.6742308015 | AI26: 0.7285256679 | AJ26: 0.7828205343 | AK26: 0.8371154008 | AL26: 0.8914102672 | AM26: 0.9457051336 | AN26: 1 | AO26: I
F27: en supposant une résistance interne du moteur de | G27: 0.1 | H27: ohm | J27: ri | P27: Pélec | Q27: Watts | R27: =R25*R26 -> 133.2001193 | S27: =S25*S26 -> 163.8804236 | T27: 207.3110447 | U27: 257.0005542 | V27: 313.2238063 | W27: 376.2445412 | X27: 446.316634 | Y27: 523.6851259 | Z27: 608.5870874 | AA27: 701.2523492 | AB27: Watts | AD27: Pélec | AE27: =R27/$AA$27 -> 0.1899460578 | AF27: =S27/$AA$27 -> 0.2336967909 | AG27: 0.2956297329 | AH27: 0.366487976 | AI27: 0.4466634681 | AJ27: 0.5365323077 | AK27: 0.636456526 | AL27: 0.7467855565 | AM27: 0.8678574667 | AN27: 1 | AO27: Pélec
F28: le KV minimum sera | G28: =G22*G25/(G25^2-G27*G21) -> 209.609931 | J28: KVmin = n V / (V2 - ri P) | P28: rendement | Q28: η | R28: =IF(R27>0,R24/R27,0) -> 0.7980473333 | S28: =IF(S27>0,S24/S27,0) -> 0.7601293637 | T28: 0.6935561584 | U28: 0.6377050479 | V28: 0.5901787741 | W28: 0.5492451549 | X28: 0.5136214018 | Y28: 0.4823372598 | Z28: 0.4546452909 | AA28: 0.4299603856 | AB28: rendement
AD29: F | AE29: =R22 -> 1063 | AF29: =($AN$29-$AE$29)/10+AE29 -> 1169.7 | AG29: =($AN$29-$AE$29)/10+AF29 -> 1276.4 | AH29: 1383.1 | AI29: 1489.8 | AJ29: 1596.5 | AK29: 1703.2 | AL29: 1809.9 | AM29: 1916.6 | AN29: =AA22 -> 2130 | AO29: F | AP29: en chiffres jusqu'à la limite de traction possible
AB30: allure des courbes en proportion du maximum de leurs valeurs en fonction de la force de traction | AD30: n | AE30: =G12 -> 3060 | AF30: =$AE$30*(AF29/$AE$29)^0.5 -> 3209.903965 | AG30: =$AE$30*(AG29/$AE$29)^0.5 -> 3353.11302 | AH30: =$AE$30*(AH29/$AE$29)^0.5 -> 3490.451315 | AI30: 3622.586624 | AJ30: 3750.068974 | AK30: 3873.357816 | AL30: 3992.841624 | AM30: 4108.852357 | AN30: =$AE$30*(AN29/$AE$29)^0.5 -> 4331.562607 | AO30: n
C31: importer depuis moteurs et mesure le moteur n° | D31: 8 | AB31: la puissance mécanique évolue comme la tension | AD31: Pméc | AE31: =G11 -> 106.3 | AF31: =$AE$31*(AF29/$AE$29)^1.5 -> 122.7001525 | AG31: =$AE$31*(AG29/$AE$29)^1.5 -> 139.8664529 | AH31: 157.7661181 | AI31: 176.3702468 | AJ31: 195.6531084 | AK31: 215.5916024 | AL31: 236.1648384 | AM31: 257.3538048 | AN31: 301.5107305 | AO31: Pméc
G32: =INDEX('moteurs et mesures'!B:I,'moteur test'!D31+1,1) -> Turnigy Multistar | H32: =INDEX('moteurs et mesures'!B:I,'moteur test'!D31+1,2) -> 4014-320KV 22 Poles | I32: =INDEX('moteurs et mesures'!B:I,'moteur test'!D31+1,3) -> 0.102 | J32: =INDEX('moteurs et mesures'!B:I,'moteur test'!D31+1,4) -> 0.7 | K32: =INDEX('moteurs et mesures'!B:I,'moteur test'!D31+1,5) -> 720 | L32: =INDEX('moteurs et mesures'!B:I,'moteur test'!D31+1,6) -> 320 | M32: =INDEX('moteurs et mesures'!B:I,'moteur test'!D31+1,7) -> 26 | AD32: V | AE32: =AE30*(AE33-$T$10)/($T$16*$T$7) -> 8.661699544 | AF32: =AF30*(AF33-$T$10)/($T$16*$T$7) -> 9.998041912 | AG32: =AG30*(AG33-$T$10)/($T$16*$T$7) -> 11.39681271 | AH32: 12.85534067 | AI32: 14.3712708 | AJ32: 15.94250649 | AK32: 17.56716542 | AL32: 19.24354537 | AM32: 20.97009722 | AN32: 24.56815952 | AO32: V
AD33: I | AE33: =($T$7*(AE31/0.8)/AE30)+$T$10 -> 14.59542484 | AF33: 15.99019608 | AG33: 17.38496732 | AH33: 18.77973856 | AI33: 20.1745098 | AJ33: 21.56928105 | AK33: 22.96405229 | AL33: 24.35882353 | AM33: 25.75359477 | AN33: 28.54313725 | AO33: I
G34: =G32 -> Turnigy Multistar | K34: =H32 -> 4014-320KV 22 Poles | AD34: Pélec | AE34: =AE32*AE33 -> 126.4211847 | AF34: =AF32*AF33 -> 159.8706506 | AG34: 198.1332165 | AH34: 241.4199369 | AI34: 289.9333437 | AJ34: 343.868403 | AK34: 403.4133052 | AL34: 468.7501258 | AM34: 540.055386 | AN34: 701.2523492 | AO34: Pélec
AD35: η | AE35: =AE31/AE34 -> 0.8408400878 | AF35: =AF31/AF34 -> 0.7674964235 | AG35: 0.7059212752 | AH35: 0.6534924999 | AI35: =AI31/AI34 -> 0.6083130852 | AJ35: 0.5689766977 | AK35: 0.5344186708 | AL35: 0.5038181867 | AM35: 0.4765322437 | AN35: 0.4299603856 | AO35: η
K37: =K32 -> 720 | AD37: F | AE37: =S22*(AE$21-AF$21) -> 0 | AF37: =T22*(AF$21-AG$21) -> 0 | AG37: =U22*(AG$21-AH$21) -> 0 | AH37: =V22*(AH$21-AI$21) -> 0 | AI37: =W22*(AI21-AJ21) -> 0 | AJ37: =X22*(AJ21-AK21) -> 0 | AK37: =Y22*(AK21-AL21) -> 0 | AL37: =Z22*(AL21-AM21) -> 2011.444444 | AM37: =AA22*(AM21-AN21) -> 0 | AN37: =SUM(AE37:AM37) -> 2011.444444 | AP37: détection du maximum possible
K38: =L32 -> 320 | AD38: n | AE38: =S$23*(AE$21-AF$21) -> 0 | AF38: 0 | AG38: 0 | AH38: 0 | AI38: 0 | AJ38: 0 | AK38: 0 | AL38: 4209.289686 | AM38: 0 | AN38: 4209.289686
AD39: Pméc | AE39: =S$24*(AE$21-AF$21) -> 0 | AF39: 0 | AG39: 0 | AH39: 0 | AI39: 0 | AJ39: 0 | AK39: 0 | AL39: 276.6912534 | AM39: 0 | AN39: 276.6912534
K40: =I32 -> 0.102 | AD40: V | AE40: =S$25*(AE$21-AF$21) -> 0 | AF40: 0 | AG40: 0 | AH40: 0 | AI40: 0 | AJ40: 0 | AK40: 0 | AL40: 22.54578084 | AM40: 0 | AN40: 22.54578084
K41: =J32 -> 0.7 | AD41: I | AE41: =S$26*(AE$21-AF$21) -> 0 | AF41: 0 | AG41: 0 | AH41: 0 | AI41: 0 | AJ41: 0 | AK41: 0 | AL41: 26.99339143 | AM41: 0 | AN41: 26.99339143
K42: =M32 -> 26 | AD42: Pélec | AE42: =S$27*(AE$21-AF$21) -> 0 | AF42: 0 | AG42: 0 | AH42: 0 | AI42: 0 | AJ42: 0 | AK42: 0 | AL42: 608.5870874 | AM42: 0 | AN42: 608.5870874
AD43: η | AE43: 0.8 | AF43: =S$28*(AE$21-AF$21) -> 0 | AG43: =T$28*(AF$21-AG$21) -> 0 | AH43: 0 | AI43: 0 | AJ43: 0 | AK43: =X$28*(AJ$21-AK$21) -> 0 | AL43: 0 | AM43: 0.4546452909 | AN43: =AA$28*(AM$21-AN$21) -> 0
AD45: F | AE45: =AE29 -> 1063 | AF45: =AF29 -> 1169.7 | AG45: 1276.4 | AH45: 1383.1 | AI45: 1489.8 | AJ45: 1596.5 | AK45: 1703.2 | AL45: 1809.9 | AM45: 1916.6 | AN45: =AN29 -> 2130
AD46: n | AE46: =AE30/$AN30 -> 0.7064425192 | AF46: 0.7410498833 | AG46: =$AE$46*(AG45/$AE$45)^0.5 -> 0.7741116368 | AH46: 0.8058180458 | AI46: 0.8363232746 | AJ46: 0.8657543049 | AK46: 0.8942172069 | AL46: 0.9218016651 | AM46: 0.9485843171 | AN46: =AN30/$AN30 -> 1 | AP46: en proportion
AD47: Pméc | AE47: 0.3525579333 | AF47: 0.4069511965 | AG47: =$AE$47*(AG45/$AE$45)^1.5 -> 0.4638854898 | AH47: 0.5232520841 | AI47: 0.5849551242 | AJ47: 0.6489092712 | AK47: 0.7150379093 | AL47: 0.7832717529 | AM47: 0.8535477475 | AN47: =AN31/$AN31 -> 1
AD48: V | AE48: 0.3525579333 | AF48: 0.4069511965 | AG48: =AG32/$AN32 -> 0.4638854898 | AH48: 0.5232520841 | AI48: 0.5849551242 | AJ48: 0.6489092712 | AK48: 0.7150379093 | AL48: 0.7832717529 | AM48: 0.8535477475 | AN48: =AN32/$AN32 -> 1
AD49: I | AE49: 0.5113462023 | AF49: 0.5602115821 | AG49: 0.6090769618 | AH49: 0.6579423416 | AI49: 0.7068077214 | AJ49: 0.7556731011 | AK49: 0.8045384809 | AL49: 0.8534038607 | AM49: 0.9022692405 | AN49: =AN33/$AN33 -> 1
AD50: Pélec | AE50: 0.1802791603 | AF50: 0.2279787736 | AG50: 0.2825419648 | AH50: 0.3442697015 | AI50: 0.4134507984 | AJ50: 0.4903632814 | AK50: 0.5752755133 | AL50: 0.6684471379 | AM50: 0.7701298778 | AN50: =AN34/$AN34 -> 1
AD51: η | AE51: =AE35 -> 0.8408400878 | AF51: =AF35 -> 0.7674964235 | AG51: 0.7059212752 | AH51: 0.6534924999 | AI51: 0.6083130852 | AJ51: =AJ35 -> 0.5689766977 | AK51: 0.5344186708 | AL51: 0.5038181867 | AM51: 0.4765322437 | AN51: 0.4299603856
AE52: =AE45-$AE$45 -> 0 | AF52: =AF45-$AE$45 -> 106.7 | AG52: =AG45-$AE$45 -> 213.4 | AH52: 320.1 | AI52: 426.8 | AJ52: 533.5 | AK52: 640.2 | AL52: 746.9 | AM52: 853.6 | AN52: 1067

Sheet moteurs et mesures
A1: n° | B1: marque du moteur et | C1: type | D1: Ri | E1: Io | F1: Pmax | G1: KV | H1: Imax | I1: Poids | J1: =CONCATENATE("B",FIXED((P2-1)*3+1,0),":O",FIXED((P2-1)*3+1,0)) -> B118:O118
A2: 1 | B2: Turnigy AX | C2: 2810Q-750Kv | D2: 0.11 | E2: 0.6 | F2: 444 | G2: 750 | H2: 24 | I2: 70 | O2: sera copié dans base mesure en n° | P2: =MAX('base mesures'!V:V)/3+1 -> 40 | Q2: 1 | R2: 2 | S2: 3 | T2: 4 | U2: 5 | V2: 6 | W2: 7 | X2: 8 | Y2: 9 | Z2: 10
A3: 2 | B3: Turnigy Multistar | C3: 3508 - 380 KV | D3: 0.215 | E3: 0.3 | F3: 320 | G3: 380 | H3: 14 | I3: 102 | M3: marque | N3: diamètre | O3: pas | P3: RPM | Q3: 2580 | R3: 2700 | S3: 3210 | T3: 3350 | U3: 3900 | V3: 4100 | W3: 4380
A4: 3 | B4: AX | C4: 4008Q-620KV | D4: 0.11 | E4: 0.3 | F4: 1000 | G4: 620 | H4: 54 | I4: 88 | M4: RCTimer2 | N4: 18 | O4: 4 | P4: traction | Q4: 625 | R4: 865 | S4: 1005 | T4: 1305 | U4: 1430 | V4: 1605 | W4: 1910
A5: 4 | B5: Turnigy Multistar | C5: 4010 375KV | D5: 0.134 | E5: 0.6 | F5: 450 | G5: 375 | H5: 20 | I5: 128 | P5: P méc | Q5: =IF(Q7*Q8*Q9>0,(Q9-($N$8*Q7))*(Q7-$N$9),0) -> 34.4965 | R5: 62.60757962 | S5: 82.79586029 | T5: 115.9596844 | U5: 139.0298705 | V5: 164.491667 | W5: 212.6177122 | X5: =IF(X7*X8*X9>0,(X9-($N$8*X7))*(X7-$N$9),0) -> 0 | Y5: 0 | Z5: 0
A6: 5 | B6: Turnigy Multistar | C6: 4010-485KV 22 Poles | D6: 0.085 | E6: 0.8 | F6: 500 | G6: 320 | H6: 26 | I6: 128 | M6: moteur n° | N6: 8
A7: 6 | B7: MT | C7: 4012 400KV | D7: 0.41 | E7: 0.8 | F7: 400 | G7: 350 | H7: 15.8 | I7: 144 | O7: =IF(VLOOKUP(N$6,A:E,3,0)>"",CONCATENATE(VLOOKUP(N$6,A:E,2,0)," ",VLOOKUP(N$6,A:E,3,0)),"aucun moteur sous ce n°") -> Turnigy Multistar 4014-320KV 22 Poles | P7: I | Q7: 3.2 | R7: 5.3 | S7: 6.9 | T7: 10.1 | U7: 11.8 | V7: 14.8 | W7: 20.5
A8: 7 | B8: Tarot | C8: 4014-11 320KV | D8: 0.102 | E8: 0.7 | F8: 720 | G8: 320 | H8: 26 | I8: 163 | M8: Ri | N8: =VLOOKUP(N$6,A:E,4,0) -> 0.102 | P8: P élec | Q8: 45.2 | R8: 75 | S8: 97 | T8: 135 | U8: 162 | V8: 195 | W8: 263
A9: 8 | B9: Turnigy Multistar | C9: 4014-320KV 22 Poles | D9: 0.102 | E9: 0.7 | F9: 720 | G9: 320 | H9: 26 | I9: 163 | M9: Io | N9: =VLOOKUP(N$6,A:E,5,0) -> 0.7 | P9: V | Q9: =IF(Q7=0,0,Q8/Q7) -> 14.125 | R9: =IF(R7=0,0,R8/R7) -> 14.1509434 | S9: 14.05797101 | T9: 13.36633663 | U9: 13.72881356 | V9: 13.17567568 | W9: 12.82926829 | X9: 0 | Y9: 0 | Z9: 0
A10: 9 | B10: Turnigy Multistar | C10: 4112-320KV 22 Poles | D10: 0.172 | E10: 0.5 | F10: 660 | G10: 320 | H10: 20 | I10: 147
A11: 10 | B11: Quanum MT Series | C11: 4114 340KV | D11: 0.12 | E11: 1.7 | F11: 560 | G11: 340 | H11: 30.3 | I11: 148
A12: 11 | B12: Tarot | C12: 4114-11 320KV | D12: 0.126 | E12: 1.3 | F12: 425 | G12: 320 | H12: 16.8 | I12: 148
A13: 12 | B13: Quanum MT | C13: 4212 400KV | D13: 0.41 | E13: 0.8 | F13: 350 | G13: 400 | H13: 15.8 | I13: 144
A14: 13 | B14: Turnigy Multistar | C14: 4225-390Kv 16 Poles | D14: 0.24 | E14: 0.2 | F14: 330 | G14: 390 | H14: 15 | I14: 86
A15: 14 | B15: Turnigy Multistar | C15: 4230-400Kv 16 Poles | D15: 0.24 | E15: 0.6 | F15: 550 | G15: 400 | H15: 25 | I15: 138
A16: 15 | B16: Turnigy | C16: 4260 500KV | D16: 0.019 | E16: 1.36 | F16: 1000 | G16: 500 | I16: 278
A17: 16 | B17: Turnigy Multistar | C17: 4822 - 690 KV | D17: 0.052 | E17: 0.85 | F17: 320 | G17: 390 | H17: 22 | I17: 95
A18: 17 | B18: Turnigy Multistar | C18: 4822-390Kv 22 Poles | D18: 0.17 | E18: 0.25 | F18: 300 | G18: 390 | H18: 15 | I18: 98
A19: 18 | B19: Turnigy Multistar Elite | C19: 5010-274KV | D19: 0.12 | E19: 0.43 | F19: 630 | G19: 274 | H19: 28 | I19: 211
A20: 19 | B20: Turnigy | C20: 5017 620KV | D20: 0.108 | E20: 1.3 | F20: 290 | G20: 620 | H20: 35 | I20: 125
A21: 20 | B21: Turnigy Multistar | C21: 5130 - 350 KV | D21: 0.099 | E21: 0.5 | F21: 400 | G21: 350 | H21: 16 | I21: 152
A22: 21 | B22: ACK | C22: 5312CP 330KV | D22: 0.052 | E22: 1.5 | F22: 1000 | G22: 330 | H22: 40 | I22: 250
A23: 22
A24: 23
A25: 24
A26: 25
A27: 26
A28: 27
A29: 28
A30: 29
A31: 30
A32: 31
A33: 32
A34: 33
A35: 34
A36: 35
A37: 36
A38: 37
A39: 38
A40: 39
A41: 40
A42: 41
A43: 42
A44: 43
A45: 44
A46: 45
A47: 46
A48: 47
A49: 48
A50: 49
A51: 50

Sheet base mesures
A1: 1 | B1: marque | C1: diamètre | D1: pas | E1: RPM | F1: 4162 | G1: 5151 | H1: 5742 | I1: 7143 | J1: 7914 | P1: facteur F | Q1: exp F | R1: n10N | S1: facteur P | T1: exp P | U1: n100W | V1: =IF(SUM(F1:O1)>0,1,0) -> 1 | W1: pour adaptation | Y1: Hélice n° | Z1: 4 | AB1: 1
B2: RCTimer | C2: 13 | D2: 4 | E2: traction | F2: 550 | G2: 850 | H2: 1020 | I2: 1320 | J2: 1800 | P2: 39 | Q2: 1.85 | R2: 5857 | S2: 1.6 | T2: 2.43 | U2: 5700 | V2: =IF(SUM(F2:O2)>0,1+V1,0) -> 2 | W2: rangée du tableau | Y2: =(Z1-1)*3+1 -> 10 | AB2: 2
E3: P méc | F3: 53.04052713 | G3: 90.83064439 | H3: 114.7745639 | I3: 176.5530313 | J3: 240.176023 | V3: =IF(SUM(F3:O3)>0,1+V2,0) -> 3 | AB3: 3
A4: 2 | B4: marque | C4: diamètre | D4: pas | E4: RPM | F4: 4660 | G4: 5000 | H4: 6600 | V4: 4 | W4: =INDEX($A:$O,$Y$2,2) -> marque | X4: =INDEX($A:$O,$Y$2,3) -> diamètre | Y4: =INDEX($A:$O,$Y$2,4) -> pas | AB4: 4
B5: RCTimer | C5: 13 | D5: 6.5 | E5: traction | F5: 850 | G5: 1000 | H5: 1700 | P5: 45 | Q5: 1,92 | R5: 5100 | S5: 1,1 | T5: 2,8 | U5: 5100 | V5: 5 | W5: =INDEX($A:$O,$Y$2+1,2) -> RCTimer | X5: =INDEX($A:$O,$Y$2+1,3) -> 18 | Y5: =INDEX($A:$O,$Y$2+1,4) -> 4 | AB5: 5
E6: P méc | F6: 79.96683843 | G6: 112.5618234 | H6: 198.1720969 | V6: 6 | W6: =INDEX(C:Q,$Y$2,3) -> RPM | X6: =INDEX(C:Q,$Y$2+1,3) -> traction | Y6: =INDEX(C:Q,$Y$2-1,3) -> P méc | AB6: 6
A7: 3 | B7: marque | C7: diamètre | D7: pas | E7: RPM | F7: 5100 | G7: 5470 | H7: 6525 | I7: 7560 | V7: 7 | W7: =INDEX($F:$O,$Y$2,AB1) -> 2580 | X7: =INDEX($F:$O,$Y$2+1,AB1) -> 625 | Y7: =INDEX($F:$O,$Y$2+2,AB1) -> 26.18086 | AB7: 7
B8: RCTimer | C8: 14 | D8: 4.7 | E8: traction | F8: 850 | G8: 1000 | H8: 1450 | I8: 1870 | P8: 39 | Q8: 1.91 | R8: 5500 | S8: 2.2 | T8: 2.36 | U8: 5350 | V8: 8 | W8: =INDEX($F:$O,$Y$2,AB2) -> 2700 | X8: =INDEX($F:$O,$Y$2+1,AB2) -> 865 | Y8: 54.31417358 | AB8: 8
E9: P méc | F9: 92.57415047 | G9: 112.9221417 | H9: 202.3333105 | I9: 257.2468618 | V9: 9 | W9: 3210 | X9: 1005 | Y9: 74.55151768 | AB9: 9
A10: 4 | B10: marque | C10: diamètre | D10: pas | E10: RPM | F10: 2580 | G10: 2700 | H10: 3210 | I10: 3350 | J10: 3900 | K10: 4100 | L10: 4380 | V10: 10 | W10: 3350 | X10: 1305 | Y10: 108.0247224 | AB10: 10
B11: RCTimer | C11: 18 | D11: 4 | E11: traction | F11: 625 | G11: 865 | H11: 1005 | I11: 1305 | J11: 1430 | K11: 1605 | L11: 1910 | P11: 85 | Q11: 2,11 | R11: 3200 | S11: 2,6 | T11: 2,95 | U11: 3450 | V11: 11 | W11: 3900 | X11: 1430 | Y11: 130.7713424 | AB11: 11
E12: P méc | F12: 26.18086 | G12: 54.31417358 | H12: 74.55151768 | I12: 108.0247224 | J12: 130.7713424 | K12: 156.2932216 | L12: 203.8131512 | M12: 0 | N12: 0 | O12: 0 | V12: 12 | W12: 4100 | X12: 1605 | Y12: 156.2932216 | AB12: 12
A13: 5 | B13: marque | C13: diamètre | D13: pas | E13: RPM | F13: 2340 | G13: 2760 | H13: 3000 | I13: 3840 | J13: 4200 | V13: 13 | W13: 4380 | X13: 1910 | Y13: 203.8131512
B14: HK | C14: 18 | D14: 5.5 | E14: traction | F14: 520 | G14: 780 | H14: 925 | I14: 1550 | J14: 1815 | P14: 90 | Q14: 2.11 | R14: 3150 | S14: 2.5 | T14: 3.27 | U14: 3020 | V14: 14 | W14: 0 | X14: 0 | Y14: 0 | AC14: =IF((AC16*AC17*AC18)>0,1,0) -> 1 | AD14: =IF((AD16*AD17*AD18)>0,1,0) -> 1 | AE14: 1 | AF14: 1 | AG14: 1 | AH14: 1 | AI14: 1 | AJ14: 0 | AK14: 0 | AL14: 0 | AM14: =SUM(AC14:AL14) -> 7
E15: P méc | F15: 9 | G15: 62 | H15: 91 | I15: 210 | J15: 277 | V15: 15 | W15: 0 | X15: 0 | Y15: 0 | AC15: 1 | AD15: 2 | AE15: 3 | AF15: 4 | AG15: 5 | AH15: 6 | AI15: 7 | AJ15: 8 | AK15: 9 | AL15: 10
A16: 6 | B16: marque | C16: diamètre | D16: pas | E16: RPM | F16: 5576 | G16: 9885 | H16: 15188 | I16: 17994 | V16: 16 | W16: 0 | X16: 0 | Y16: 0 | AC16: =INDEX($F:$O,$Y$2,AC$15) -> 2580 | AD16: =INDEX($F:$O,$Y$2,AD$15) -> 2700 | AE16: 3210 | AF16: 3350 | AG16: 3900 | AH16: 4100 | AI16: 4380 | AJ16: 0 | AK16: 0 | AL16: 0
B17: APC Sport | C17: 10 | D17: 6 | E17: traction | F17: 449 | G17: 1409 | H17: 3320 | I17: 4656 | P17: 19 | Q17: 1.9 | R17: 8450 | S17: 0.26 | T17: 2.99 | U17: 7216 | V17: 17 | AC17: =INDEX($F:$O,$Y$2+1,AC$15) -> 625 | AD17: =INDEX($F:$O,$Y$2+1,AD$15) -> 865 | AE17: 1005 | AF17: 1305 | AG17: 1430 | AH17: 1605 | AI17: 1910 | AJ17: 0 | AK17: 0 | AL17: 0
E18: P méc | F18: 45.8 | G18: 254.7 | H18: 921.5 | I18: 1530 | V18: 18 | W18: facteur F | X18: exp F | Y18: n10N | Z18: facteur P | AA18: exp P | AB18: n100W | AC18: =INDEX($F:$O,$Y$2+2,AC$15) -> 26.18086 | AD18: =INDEX($F:$O,$Y$2+2,AD$15) -> 54.31417358 | AE18: 74.55151768 | AF18: 108.0247224 | AG18: 130.7713424 | AH18: 156.2932216 | AI18: 203.8131512 | AJ18: 0 | AK18: 0 | AL18: 0
A19: 7 | B19: marque | C19: diamètre | D19: pas | E19: RPM | F19: 6382 | G19: 7254 | H19: 7992 | I19: 9894 | V19: 19 | W19: =INDEX($P:$U,$Y$2+1,1) -> 85 | X19: =INDEX($P:$U,$Y$2+1,2) -> 2,11 | Y19: =IF(INDEX($P:$U,$Y$2+1,3)>0,INDEX($P:$U,$Y$2+1,3),$AM$19) -> 3200 | Z19: =INDEX($P:$U,$Y$2+1,4) -> 2,6 | AA19: =INDEX($P:$U,$Y$2+1,5) -> 2,95 | AB19: =IF(INDEX($P:$U,$Y$2+1,6)>0,INDEX($P:$U,$Y$2+1,6),$AM$20) -> 3450 | AC19: =IF(AC14=1,AC16/(AC17/1019.7)^0.5,0) -> 3295.458956 | AD19: =IF(AD14=1,AD16/(AD17/1019.7)^0.5,0) -> 2931.513646 | AE19: 3233.390896 | AF19: 2961.254685 | AG19: 3293.311403 | AH19: 3268.003763 | AI19: 3200.321702 | AJ19: 0 | AK19: 0 | AL19: 0 | AM19: =IF(AM$14>0,SUM(AC19:AL19)/AM$14,SUM(AC19:AL19)) -> 3169.036436
B20: APC Sport | C20: 10 | D20: 8 | E20: traction | F20: 638 | G20: 824 | H20: 1000 | I20: 1534 | P20: 16.7 | Q20: 1.97 | R20: 8030 | S20: 0.38 | T20: 2.99 | U20: 6446 | V20: 20 | AC20: =IF(AC14=1,AC16/(AC18/100)^(1/3),0) -> 4032.970728 | AD20: =IF(AD14=1,AD16/(AD18/100)^(1/3),0) -> 3309.223036 | AE20: 3540.132655 | AF20: 3264.904036 | AG20: 3566.375599 | AH20: 3532.947162 | AI20: 3454.591573 | AJ20: 0 | AK20: 0 | AL20: 0 | AM20: =IF(AM$14>0,SUM(AC20:AL20)/AM$14,SUM(AC20:AL20)) -> 3528.73497
E21: P méc | F21: 96.4 | G21: 141.4 | H21: 189.1 | I21: 358.9 | V21: 21 | W21: valeurs trouvées par mes propres mesures
A22: 8 | B22: marque | C22: diamètre | D22: pas | E22: RPM | F22: 4817 | G22: 5409 | H22: 6946 | I22: 9276 | V22: 22 | W22: valeurs trouvées dans la base d'hélice de Drive Calculator
B23: APC E | C23: 10 | D23: 10 | E23: traction | F23: 434 | G23: 543 | H23: 881 | I23: 1540 | P23: 18 | Q23: 2 | R23: 7500 | S23: 0.6 | T23: 2.95 | U23: 5700 | V23: 23 | W23: valeurs trouvées par simulation dans Drive Calculator
E24: P méc | F24: 63.9 | G24: 89.4 | H24: 184.6 | I24: 427 | V24: 24 | W24: valeurs contradictoires trouvées par simulation dans Drive Calculator
A25: 9 | B25: marque | C25: diamètre | D25: pas | E25: RPM | F25: 5063 | G25: 7103 | H25: 9737 | I25: 15739 | V25: 25 | W25: =W4 -> marque | X25: =X4 -> diamètre | Y25: pas | Z25: =W18 -> facteur F | AA25: =X18 -> exp F | AB25: n10N | AC25: facteur P | AD25: exp P | AE25: n100W
B26: APC Sport | C26: 11 | D26: 5 | E26: traction | F26: 501 | G26: 985 | H26: 1852 | I26: 4836 | P26: 20.5 | Q26: 1.98 | R26: 7250 | S26: 0.309 | T26: 3 | U26: 6866 | V26: 26 | W26: =W5 -> RCTimer | X26: 18 | Y26: 4 | Z26: =W19 -> 85 | AA26: 2,11 | AB26: 3200 | AC26: 2,6 | AD26: 2,95 | AE26: 3450
E27: P méc | F27: 39.9 | G27: 110 | H27: 283.3 | I27: 1195.8 | V27: 27
A28: 10 | B28: marque | C28: diamètre | D28: pas | E28: RPM | F28: 3513 | G28: 5207 | H28: 7239 | I28: 11789 | V28: 28
B29: APC Sport | C29: 11 | D29: 7 | E29: traction | F29: 293 | G29: 643 | H29: 1243 | I29: 3299 | P29: 23.8 | Q29: 2 | R29: 6550 | S29: 0.53219 | T29: 3.0009 | U29: 5725 | V29: 29
E30: P méc | F30: 22.9 | G30: 74.7 | H30: 200.5 | I30: 867.1 | V30: 30
A31: 11 | B31: marque | C31: diamètre | D31: pas | E31: RPM | F31: 3929 | G31: 5929 | H31: 8271 | I31: 9490 | V31: 31
B32: APC E | C32: 11 | D32: 10 | E32: traction | F32: 369 | G32: 842 | H32: 1637 | I32: 2156 | P32: 23.8 | Q32: 2 | R32: 6550 | S32: 0.7121 | T32: 3 | U32: 7216 | V32: 32
E33: P méc | F33: 42.5 | G33: 146.1 | H33: 396.2 | I33: 598.8 | V33: 33
A34: 12 | B34: marque | C34: diamètre | D34: pas | E34: RPM | F34: 5004 | G34: 6888 | H34: 7722 | V34: 34
B35: APC E | C35: 11 | D35: 11 | E35: traction | F35: 645 | G35: 1222 | H35: 1536 | P35: 25.8 | Q35: 2 | R35: 6300 | S35: 0.8462 | T35: 3 | U35: 7216 | V35: 35
E36: P méc | F36: 105.2 | G36: 274.4 | H36: 386.8 | V36: 36
A37: 13 | B37: marque | C37: diamètre | D37: pas | E37: RPM | F37: 6040 | G37: 8699 | H37: 11943 | I37: 13878 | V37: 37
B38: APC Sport | C38: 12 | D38: 7 | E38: traction | F38: 1058 | G38: 2196 | H38: 4141 | I38: 5596 | P38: 29 | Q38: 2 | R38: 5940 | S38: 0.6167776 | T38: 3.001983 | U38: 5447 | V38: 38
E39: P méc | F39: 135.3 | G39: 404.4 | H39: 1047.4 | I39: 1645.3 | V39: 39
A40: 14 | B40: marque | C40: diamètre | D40: pas | E40: RPM | F40: 3717 | G40: 5441 | H40: 7461 | I40: 10641 | V40: 40
B41: APC Sport | C41: 12 | D41: 8 | E41: traction | F41: 450 | G41: 963 | H41: 1811 | I41: 3683 | P41: 32.5 | Q41: 2 | R41: 5600 | S41: 0.8120836 | T41: 3 | U41: 4975 | V41: 41
E42: P méc | F42: 41.4 | G42: 129.9 | H42: 334.8 | I42: 971.1 | V42: 42
A43: 15 | B43: marque | C43: diamètre | D43: pas | E43: RPM | F43: 3734 | G43: 5546 | H43: 6683 | I43: 11234 | V43: 43
B44: APC Sport | C44: 12 | D44: 9 | E44: traction | F44: 398 | G44: 879 | H44: 1278 | I44: 3615 | P44: 28.8 | Q44: 2 | R44: 5960 | S44: 0.7242426 | T44: 3.005054 | U44: 5154 | V44: 44
E45: P méc | F45: 37.7 | G45: 123.6 | H45: 216.7 | I45: 1031.3 | V45: 45
A46: 16 | B46: marque | C46: diamètre | D46: pas | E46: RPM | F46: 4527 | G46: 6222 | H46: 8526 | I46: 14698 | V46: 46
B47: APC Sport | C47: 12 | D47: 10 | E47: traction | F47: 670 | G47: 1268 | H47: 2383 | I47: 7091 | P47: 33 | Q47: 2 | R47: 5560 | S47: 0.9580072 | T47: 3.00627 | U47: 4693 | V47: 47
E48: P méc | F48: 89.1 | G48: 231.8 | H48: 597.3 | I48: 3066.6 | V48: 48
A49: 17 | B49: marque | C49: diamètre | D49: pas | E49: RPM | F49: 4320 | G49: 6112 | H49: 8205 | I49: 13271 | V49: 49
B50: APC E | C50: 12 | D50: 12 | E50: traction | F50: 681 | G50: 1332 | H50: 2353 | I50: 5962 | P50: 34 | Q50: 2 | R50: 5500 | S50: 1.528 | T50: 2.9 | U50: 4400 | V50: 50
E51: P méc | F51: 104.7 | G51: 286.3 | H51: 672.1 | I51: 2710.6 | V51: 51
A52: 18 | B52: marque | C52: diamètre | D52: pas | E52: RPM | F52: 4787 | G52: 6520 | H52: 9165 | I52: 14411 | V52: 52
B53: APC E | C53: 13 | D53: 6 | E53: traction | F53: 784 | G53: 1456 | H53: 2876 | I53: 7112 | P53: 34 | Q53: 2 | R53: 5480 | S53: 0.61 | T53: 3 | U53: 5480 | V53: 53
E54: P méc | F54: 66.8 | G54: 169 | H54: 469.5 | I54: 1825.4 | V54: 54
A55: 19 | B55: marque | C55: diamètre | D55: pas | E55: RPM | F55: 4750 | G55: 6921 | H55: 9679 | I55: 14183 | V55: 55
B56: APC Sport | C56: 13 | D56: 6 | E56: traction | F56: 810 | G56: 1722 | H56: 3366 | I56: 7222 | P56: 36 | Q56: 2 | R56: 5340 | S56: 0.6610884 | T56: 2.999494 | U56: 5330 | V56: 56
E57: P méc | F57: 70.2 | G57: 217.4 | H57: 594.3 | I57: 1867.7 | V57: 57
A58: 20 | B58: marque | C58: diamètre | D58: pas | E58: RPM | F58: 4560 | G58: 6568 | H58: 9201 | I58: 14137 | V58: 58
B59: APC Sport | C59: 13 | D59: 8 | E59: traction | F59: 806 | G59: 1668 | H59: 3268 | I59: 7698 | P59: 38.5 | Q59: 2 | R59: 5150 | S59: 0.9284264 | T59: 2.992447 | U59: 4800 | V59: 59
E60: P méc | F60: 86.4 | G60: 257.3 | H60: 705.6 | I60: 2550.6 | V60: 60
A61: 21 | B61: marque | C61: diamètre | D61: pas | E61: RPM | F61: 4286 | G61: 5822 | H61: 6071 | I61: 11253 | V61: 61
B62: APC Sport | C62: 13 | D62: 10 | E62: traction | F62: 832 | G62: 1534 | H62: 1669 | I62: 5735 | P62: 45 | Q62: 2 | R62: 4760 | S62: 1.367369 | T62: 3.001193 | U62: 4180 | V62: 62
E63: P méc | F63: 107.1 | G63: 268.1 | H63: 304.3 | I63: 1939 | V63: 63
A64: 22 | B64: marque | C64: diamètre | D64: pas | E64: RPM | F64: 4020 | G64: 6203 | H64: 8926 | I64: 14040 | V64: 64
B65: APC Sport | C65: 13 | D65: 12 | E65: traction | F65: 682 | G65: 1622 | H65: 3359 | I65: 8314 | P65: 42 | Q65: 2 | R65: 4925 | S65: 1.41244 | T65: 3 | U65: 4137 | V65: 65
E66: P méc | F66: 91.1 | G66: 334.4 | H66: 996.5 | I66: 3879.7 | V66: 66
A67: 23 | B67: marque | C67: diamètre | D67: pas | E67: RPM | F67: 3903 | G67: 5852 | H67: 8572 | I67: 14604 | V67: =IF(SUM(F67:O67)>0,1+V66,0) -> 67
B68: APC Sport | C68: 13 | D68: 13 | E68: traction | F68: 717 | G68: 1545 | H68: 3190 | I68: 8759 | P68: 41.4 | Q68: 2 | R68: 4980 | S68: 2.1798 | T68: 2.8461 | U68: 4100 | V68: 68
E69: P méc | F69: 104.4 | G69: 330.1 | H69: 979.3 | I69: 4455.1 | V69: 69
A70: 24 | B70: marque | C70: diamètre | D70: pas | E70: RPM | F70: 4087 | G70: 6083 | H70: 7900 | I70: 13532 | V70: 70
B71: APC Sport | C71: 14 | D71: 8 | E71: traction | F71: 856 | G71: 1898 | H71: 3200 | I71: 9389 | P71: 51 | Q71: 2 | R71: 4470 | S71: 1.228723 | T71: 2.999266 | U71: 4335 | V71: 71
E72: P méc | F72: 83.1 | G72: 274.3 | H72: 600.4 | I72: 3017.8 | V72: 72
A73: 25 | B73: marque | C73: diamètre | D73: pas | E73: RPM | F73: 3908 | G73: 5616 | H73: 7998 | I73: 13335 | V73: 73
B74: APC Sport | C74: 14 | D74: 10 | E74: traction | F74: 889 | G74: 1835 | H74: 3727 | I74: 10372 | P74: 58.4 | Q74: 2 | R74: 4180 | S74: 1.748672 | T74: 3.002273 | U74: 3849 | V74: 74
E75: P méc | F75: 103.9 | G75: 308.3 | H75: 892.1 | I75: 4142 | V75: 75
A76: 26 | B76: marque | C76: diamètre | D76: pas | E76: RPM | F76: 3909 | G76: 5603 | H76: 7852 | I76: 11237 | V76: 76
B77: APC E | C77: 14 | D77: 12 | E77: traction | F77: 811 | G77: 1747 | H77: 3590 | I77: 7708 | P77: 48 | Q77: 2.1 | R77: 4100 | S77: 1.4 | T77: 3.18 | U77: 3600 | V77: 77
E78: P méc | F78: 103.8 | G78: 328.4 | H78: 966.9 | I78: 3042.5 | V78: =IF(SUM(F78:O78)>0,1+V77,0) -> 78
A79: 27 | B79: marque | C79: diamètre | D79: pas | E79: RPM | F79: 3831 | G79: 5700 | H79: 8609 | I79: 11879 | V79: =IF(SUM(F79:O79)>0,1+V78,0) -> 79
B80: APC Sport | C80: 14 | D80: 12 | E80: traction | F80: 854 | G80: 1893 | H80: 4327 | I80: 8256 | P80: 58.5 | Q80: 2 | R80: 4170 | S80: 1.990297 | T80: 3.007494 | U80: 3678 | V80: 80
E81: P méc | F81: 112.2 | G81: 370.4 | H81: 1279.8 | I81: 3372.6 | V81: 81
A82: 28 | B82: marque | C82: diamètre | D82: pas | E82: RPM | F82: 4020 | G82: 5699 | H82: 8321 | I82: 14599 | V82: 82
B83: APC Sport | C83: 14 | D83: 14 | E83: traction | F83: 682 | G83: 1369 | H83: 2920 | I83: 8989 | P83: 42 | Q83: 2 | R83: 4920 | S83: 1.43 | T83: 2.9935 | U83: 4150 | V83: 83
E84: P méc | F84: 91.1 | G84: 259.2 | H84: 807.4 | I84: 4361.9 | V84: 84
A85: 29 | B85: marque | C85: diamètre | D85: pas | E85: RPM | F85: 3994 | G85: 5634 | H85: 7695 | I85: 12317 | V85: 85
B86: APC Sport | C86: 15 | D86: 8 | E86: traction | F86: 1009 | G86: 2122 | H86: 4164 | I86: 11504 | P86: 56 | Q86: 2.12 | R86: 3700 | S86: 1.065 | T86: 3.242 | U86: 3750 | V86: 86
E87: P méc | F87: 94.2 | G87: 287.3 | H87: 789.8 | I87: 3627 | V87: 87
A88: 30 | B88: marque | C88: diamètre | D88: pas | E88: RPM | F88: 3678 | G88: 5413 | H88: 7023 | I88: 9383 | V88: 88
B89: APC E | C89: 15 | D89: 10 | E89: traction | F89: 1103 | G89: 2390 | H89: 4020 | I89: 7182 | P89: 81 | Q89: 2 | R89: 3550 | S89: 2.6476 | T89: 3 | U89: 3355 | V89: 89
E90: P méc | F90: 127.3 | G90: 406 | H90: 885.7 | I90: 2115.3 | V90: 90
A91: 31 | B91: marque | C91: diamètre | D91: pas | E91: RPM | F91: 3815 | G91: 5443 | H91: 7597 | I91: 11355 | V91: 91
B92: APC Sport | C92: 15 | D92: 10 | E92: traction | F92: 1024 | G92: 2088 | H92: 4076 | I92: 9122 | P92: 71 | Q92: 2 | R92: 3800 | S92: 2.043809 | T92: 3.007975 | U92: 3645 | V92: 92
E93: P méc | F93: 113.8 | G93: 331.6 | H93: 904.5 | I93: 3027.6 | V93: 93
A94: 32 | B94: marque | C94: diamètre | D94: pas | E94: RPM | F94: 3658 | G94: 5274 | H94: 7411 | I94: 9186 | V94: 94
B95: APC Sport | C95: 15 | D95: 13 | E95: traction | F95: 977 | G95: 2030 | H95: 4012 | I95: 6158 | P95: 73 | Q95: 2 | R95: 3750 | S95: 2.66 | T95: 3 | U95: 3350 | V95: 95
E96: P méc | F96: 129.2 | G96: 386.9 | H96: 1075 | I96: 2044.8 | V96: 96
A97: 33 | B97: marque | C97: diamètre | D97: pas | E97: RPM | F97: 3786 | G97: 6052 | H97: 7712 | I97: 11029 | V97: 97
B98: APC Sport | C98: 16 | D98: 8 | E98: traction | F98: 1255 | G98: 3205 | H98: 5210 | I98: 10655 | P98: 88 | Q98: 2 | R98: 3400 | S98: 2.164871 | T98: 3.000933 | U98: 3587 | V98: 98
E99: P méc | F99: 116.7 | G99: 476.5 | H99: 987.4 | I99: 2888 | V99: 99
A100: 34 | B100: marque | C100: diamètre | D100: pas | E100: RPM | F100: 3672 | G100: 5295 | H100: 7448 | I100: 9272 | V100: 100
B101: APC Sport | C101: 16 | D101: 10 | E101: traction | F101: 1193 | G101: 2485 | H101: 4919 | I101: 7623 | P101: 88 | Q101: 2 | R101: 3400 | S101: 2.596832 | T101: 3.002817 | U101: 3373 | V101: 101
E102: P méc | F102: 128 | G102: 384.6 | H102: 1070.8 | I102: 2066.1 | V102: 102
A103: 35 | B103: marque | C103: diamètre | D103: pas | E103: RPM | F103: 3009 | G103: 4264 | H103: 5788 | I103: 6995 | V103: 103
B104: APC Sport | C104: 16 | D104: 12 | E104: traction | F104: 750 | G104: 1596 | H104: 3093 | I104: 4661 | P104: 65 | Q104: 2.2 | R104: 3340 | S104: 2.058854 | T104: 3.248077 | U104: 3130 | V104: 104
E105: P méc | F105: 73.1 | G105: 227 | H105: 612.3 | I105: 1132.5 | V105: 105
A106: 36 | B106: marque | C106: diamètre | D106: pas | E106: RPM | F106: 3050 | G106: 4345 | H106: 6133 | I106: 6582 | V106: 106
B107: APC E | C107: 17 | D107: 8 | E107: traction | F107: 821 | G107: 1801 | H107: 3867 | I107: 4523 | P107: 71 | Q107: 2.2 | R107: 3200 | S107: 1.40916 | T107: 3.3265 | U107: 3500 | V107: 107
E108: P méc | F108: 55.6 | G108: 180.5 | H108: 567.9 | I108: 718.3 | V108: 108
A109: 37 | B109: marque | C109: diamètre | D109: pas | E109: RPM | F109: 1788 | G109: 3037 | H109: 4428 | I109: 6722 | V109: 109
B110: APC E | C110: 17 | D110: 10 | E110: traction | F110: 292 | G110: 912 | H110: 2051 | I110: 5035 | P110: 76 | Q110: 2.2 | R110: 3100 | S110: 2.205101 | T110: 3.227091 | U110: 3100 | V110: 110
E111: P méc | F111: 13.9 | G111: 76.9 | H111: 259.3 | I111: 997.5 | V111: 111
A112: 38 | B112: marque | C112: diamètre | D112: pas | E112: RPM | F112: 1812 | G112: 2554 | H112: 5065 | I112: 6659 | V112: 112
B113: APC Sport | C113: 18 | D113: 6 | E113: traction | F113: 364 | G113: 723 | H113: 2842 | I113: 4907 | P113: 110 | Q113: 2 | R113: 3040 | S113: 2.538046 | T113: 2.998681 | U113: 3405 | V113: 113
E114: P méc | F114: 15 | G114: 41.9 | H114: 326.7 | I114: 741.3 | V114: 114
A115: 39 | B115: marque | C115: diamètre | D115: pas | E115: RPM | F115: 1257 | G115: 2894 | H115: 4069 | I115: 6055 | V115: 115
B116: APC E | C116: 18 | D116: 8 | E116: traction | F116: 224 | G116: 1186 | H116: 2346 | I116: 5193 | P116: 142 | Q116: 2 | R116: 2680 | S116: 3.61296 | T116: 3 | U116: 3025 | V116: 116
E117: P méc | F117: 7.2 | G117: 88.1 | H117: 245.1 | I117: 807.1 | V117: 117
A118: 40 | B118: marque | C118: diamètre | D118: pas | E118: RPM | V118: 0
E119: traction | V119: 0
E120: P méc | V120: 0
A121: 41 | B121: marque | C121: diamètre | D121: pas | E121: RPM | V121: 0
E122: traction | V122: 0
E123: P méc | V123: 0
A124: 42 | B124: marque | C124: diamètre | D124: pas | E124: RPM | V124: 0
E125: traction | V125: 0
E126: P méc | V126: 0
A127: 43 | B127: marque | C127: diamètre | D127: pas | E127: RPM | V127: 0
E128: traction | V128: 0
E129: P méc | V129: 0
A130: 44 | B130: marque | C130: diamètre | D130: pas | E130: RPM | V130: 0
E131: traction | V131: 0
E132: P méc | V132: 0
A133: 45 | B133: marque | C133: diamètre | D133: pas | E133: RPM | V133: 0
E134: traction | V134: 0
E135: P méc | V135: 0
A136: 46 | B136: marque | C136: diamètre | D136: pas | E136: RPM | V136: 0
E137: traction | V137: 0
E138: P méc | V138: 0
A139: 47 | B139: marque | C139: diamètre | D139: pas | E139: RPM | V139: 0
E140: traction | V140: 0
E141: P méc | V141: 0
A142: 48 | B142: marque | C142: diamètre | D142: pas | E142: RPM | V142: 0
E143: traction | V143: =IF(SUM(F143:O143)>0,1+V142,0) -> 0
E144: P méc | V144: 0
A145: 49 | B145: marque | C145: diamètre | D145: pas | E145: RPM | V145: 0
E146: traction | V146: 0
E147: P méc | V147: 0
A148: 50 | B148: marque | C148: diamètre | D148: pas | E148: RPM | V148: 0
E149: traction | V149: 0
E150: P méc | V150: 0
A151: 51 | B151: marque | C151: diamètre | D151: pas | E151: RPM | V151: 0
E152: traction | V152: 0
E153: P méc | V153: 0
A154: 52 | B154: marque | C154: diamètre | D154: pas | E154: RPM | V154: 0
E155: traction | V155: 0
E156: P méc | V156: 0
A157: 53 | B157: marque | C157: diamètre | D157: pas | E157: RPM | V157: 0
E158: traction | V158: 0
E159: P méc | V159: 0
A160: 54 | B160: marque | C160: diamètre | D160: pas | E160: RPM | V160: 0
E161: traction | V161: 0
E162: P méc | V162: 0
A163: 55 | B163: marque | C163: diamètre | D163: pas | E163: RPM | V163: 0
E164: traction | V164: 0
E165: P méc | V165: 0
A166: 56 | B166: marque | C166: diamètre | D166: pas | E166: RPM | V166: 0
E167: traction | V167: 0
E168: P méc | V168: 0
A169: 57 | B169: marque | C169: diamètre | D169: pas | E169: RPM | V169: 0
E170: traction | V170: 0
E171: P méc | V171: 0
A172: 58 | B172: marque | C172: diamètre | D172: pas | E172: RPM | V172: 0
E173: traction | V173: 0
E174: P méc | V174: 0
A175: 59 | B175: marque | C175: diamètre | D175: pas | E175: RPM | V175: 0
E176: traction | V176: 0
E177: P méc | V177: 0
A178: 60 | B178: marque | C178: diamètre | D178: pas | E178: RPM | V178: 0
E179: traction | V179: 0
E180: P méc | V180: 0
A181: 61 | B181: marque | C181: diamètre | D181: pas | E181: RPM | V181: 0
E182: traction | V182: 0
E183: P méc | V183: 0
A184: 62 | B184: marque | C184: diamètre | D184: pas | E184: RPM | V184: 0
E185: traction | V185: 0
E186: P méc | V186: 0
A187: 63 | B187: marque | C187: diamètre | D187: pas | E187: RPM | V187: 0
E188: traction | V188: 0
E189: P méc | V189: 0
A190: 64 | B190: marque | C190: diamètre | D190: pas | E190: RPM | V190: 0
E191: traction | V191: 0
E192: P méc | V192: 0
A193: 65 | B193: marque | C193: diamètre | D193: pas | E193: RPM | V193: 0
E194: traction | V194: 0
E195: P méc | V195: 0
A196: 66 | B196: marque | C196: diamètre | D196: pas | E196: RPM | V196: 0
E197: traction | V197: 0
E198: P méc | V198: 0
A199: 67 | B199: marque | C199: diamètre | D199: pas | E199: RPM | V199: 0
E200: traction | V200: 0
... 400 more rows

Sheet adaptation
B1: mesures | C1: ='base mesures'!Y1 -> Hélice n° | D1: ='base mesures'!Z1 -> 4 | H1: calcul pour | L1: adaptation:
C2: ='base mesures'!W5 -> RCTimer | D2: ='base mesures'!X5 -> 18 | E2: ='base mesures'!Y5 -> 4 | H2: l'adaptation | I2: selon | J2: selon | L2: modifiez les facteurs et exposants en
G3: pour | H3: pour | I3: n10N | J3: n100W | L3: commencant par ces valeurs de départ
G4: exp=2 | H4: exp=3 | I4: =M6 -> 3200 | J4: =P6 -> 3450 | K4: =G6 -> 93.89459768 | L4: 2 | M4: ='base mesures'!AM19 -> 3169.036436 | N4: =H6 -> 1.524490739 | O4: 3 | P4: ='base mesures'!AM20 -> 3528.73497
B5: RPM | C5: F | D5: P méc | E5: n10N | F5: n100W | G5: facteur F | H5: facteur P | I5: F | J5: P méc | K5: facteur F | L5: exp F | M5: n10N | N5: facteur P | O5: exp P | P5: n100W | Q5: F | R5: P méc | S5: n10N | T5: n100W
A6: 1 | B6: ='base mesures'!W7 -> 2580 | C6: ='base mesures'!X7 -> 625 | D6: ='base mesures'!Y7 -> 26.18086 | E6: =IF(B6*C6>0,B6*(10/(9.80665*C6/1000))^0.5,0) -> 3295.485154 | F6: =IF(B6*D6>0,B6*(100/D6)^(1/3),0) -> 4032.970728 | G6: =IF(B6*C6>0,C6/(B6/1000)^2,0) -> 93.89459768 | H6: =IF(B6*D6>0,D6/(B6/1000)^3,0) -> 1.524490739 | I6: =IF($I$4>0,(B6/$I$4)^2/0.000980665,0) -> 662.8553711 | J6: =IF($J$4>0,(B6/$J$4)^3*100,0) -> 41.82171447 | K6: 85 | L6: 2.11 | M6: 3200 | N6: 2.6 | O6: 2.95 | P6: 3450 | Q6: =IF(B6*$K$6*$L$6>0,$K$6*(B6/1000)^$L$6,0) -> 627.9665422 | R6: =IF(B6*$N$6*$O$6>0,$N$6*(B6/1000)^$O$6,0) -> 42.58449296 | S6: =IF(B6*Q6>0,B6*(10/(9.80665*Q6/1000))^0.5,0) -> 3287.691929 | T6: =IF(B6*R6>0,B6*(100/R6)^(1/3),0) -> 3429.276835
A7: 2 | B7: =IF('base mesures'!W8>0,'base mesures'!W8,B6) -> 2700 | C7: =IF('base mesures'!X8>0,'base mesures'!X8,C6) -> 865 | D7: =IF('base mesures'!Y8>0,'base mesures'!Y8,D6) -> 54.31417358 | E7: =IF(B7*C7>0,B7*(10/(9.80665*C7/1000))^0.5,0) -> 2931.536951 | F7: =IF(B7*D7>0,B7*(100/D7)^(1/3),0) -> 3309.223036 | G7: =IF(B7*C7>0,C7/(B7/1000)^2,0) -> 118.6556927 | H7: 2.759445897 | I7: =IF($I$4>0,(B7/$I$4)^2/0.000980665,0) -> 725.9503118 | J7: =IF($J$4>0,(B7/$J$4)^3*100,0) -> 47.93293334 | L7: =IF(SUM(K10:P10)>0,"valeurs déjà dans la base de mesures","pas de valeurs dans la base de mesures") -> valeurs déjà dans la base de mesures | Q7: =IF(B7*$K$6*$L$6>0,$K$6*(B7/1000)^$L$6,0) -> 691.1884433 | R7: 48.69635471 | S7: =IF(B7*Q7>0,B7*(10/(9.80665*Q7/1000))^0.5,0) -> 3279.481553 | T7: 3431.876204
A8: 3 | B8: =IF('base mesures'!W9>0,'base mesures'!W9,B7) -> 3210 | C8: =IF('base mesures'!X9>0,'base mesures'!X9,C7) -> 1005 | D8: =IF('base mesures'!Y9>0,'base mesures'!Y9,D7) -> 74.55151768 | E8: 3233.416601 | F8: 3540.132655 | G8: 97.53399132 | H8: 2.253935022 | I8: 1026.099397 | J8: 80.54856579 | L8: (moyenne pour n10N et n100W) | Q8: 995.7367684 | R8: 81.12658476 | S8: 3248.421846 | T8: 3441.786826
A9: 4 | B9: =IF('base mesures'!W10>0,'base mesures'!W10,B8) -> 3350 | C9: =IF('base mesures'!X10>0,'base mesures'!X10,C8) -> 1305 | D9: =IF('base mesures'!Y10>0,'base mesures'!Y10,D8) -> 108.0247224 | E9: 2961.278227 | F9: 3264.904036 | G9: 116.2842504 | H9: 2.873351373 | I9: 1117.555195 | J9: 91.55396047 | K9: ='base mesures'!W18 -> facteur F | L9: ='base mesures'!X18 -> exp F | M9: ='base mesures'!Y18 -> n10N | N9: ='base mesures'!Z18 -> facteur P | O9: ='base mesures'!AA18 -> exp P | P9: ='base mesures'!AB18 -> n100W | Q9: 1089.590903 | R9: 92.01434283 | S9: 3240.803767 | T9: 3444.236494
A10: 5 | B10: =IF('base mesures'!W11>0,'base mesures'!W11,B9) -> 3900 | C10: =IF('base mesures'!X11>0,'base mesures'!X11,C9) -> 1430 | D10: =IF('base mesures'!Y11>0,'base mesures'!Y11,D9) -> 130.7713424 | E10: 3293.337585 | F10: 3566.375599 | G10: 94.01709402 | H10: 2.204543947 | I10: 1514.63707 | J10: 144.4563163 | K10: ='base mesures'!W19 -> 85 | L10: ='base mesures'!X19 -> 2,11 | M10: ='base mesures'!Y19 -> 3200 | N10: ='base mesures'!Z19 -> 2,6 | O10: ='base mesures'!AA19 -> 2,95 | P10: ='base mesures'!AB19 -> 3450 | Q10: 1501.637988 | R10: 144.0833969 | S10: 3213.820717 | T10: 3452.973888
A11: 6 | B11: =IF('base mesures'!W12>0,'base mesures'!W12,B10) -> 4100 | C11: =IF('base mesures'!X12>0,'base mesures'!X12,C10) -> 1605 | D11: =IF('base mesures'!Y12>0,'base mesures'!Y12,D10) -> 156.2932216 | E11: =IF(B11*C11>0,B11*(10/(9.80665*C11/1000))^0.5,0) -> 3268.029744 | F11: 3532.947162 | G11: 95.47888162 | H11: 2.267715524 | I11: 1673.967729 | J11: 167.8395417 | Q11: 1668.756089 | R11: 166.9881777 | S11: 3204.993014 | T11: 3455.853166
A12: 7 | B12: =IF('base mesures'!W13>0,'base mesures'!W13,B11) -> 4380 | C12: =IF('base mesures'!X13>0,'base mesures'!X13,C11) -> 1910 | D12: =IF('base mesures'!Y13>0,'base mesures'!Y13,D11) -> 203.8131512 | E12: 3200.347144 | F12: 3454.591573 | G12: 99.56005921 | H12: 2.425547994 | I12: 1910.414425 | J12: 204.6279938 | Q12: 1918.356416 | R12: 202.9186545 | S12: 3193.369134 | T12: 3459.660256
A13: 8 | B13: =IF('base mesures'!W14>0,'base mesures'!W14,B12) -> 4380 | C13: =IF('base mesures'!X14>0,'base mesures'!X14,C12) -> 1910 | D13: =IF('base mesures'!Y14>0,'base mesures'!Y14,D12) -> 203.8131512 | E13: 3200.347144 | F13: 3454.591573 | G13: 99.56005921 | H13: 2.425547994 | I13: 1910.414425 | J13: 204.6279938 | Q13: 1918.356416 | R13: 202.9186545 | S13: 3193.369134 | T13: 3459.660256
A14: 9 | B14: =IF('base mesures'!W15>0,'base mesures'!W15,B13) -> 4380 | C14: =IF('base mesures'!X15>0,'base mesures'!X15,C13) -> 1910 | D14: =IF('base mesures'!Y15>0,'base mesures'!Y15,D13) -> 203.8131512 | E14: 3200.347144 | F14: 3454.591573 | G14: 99.56005921 | H14: 2.425547994 | I14: 1910.414425 | J14: 204.6279938 | Q14: 1918.356416 | R14: 202.9186545 | S14: 3193.369134 | T14: 3459.660256
A15: 10 | B15: =IF('base mesures'!W16>0,'base mesures'!W16,B14) -> 4380 | C15: =IF('base mesures'!X16>0,'base mesures'!X16,C14) -> 1910 | D15: =IF('base mesures'!Y16>0,'base mesures'!Y16,D14) -> 203.8131512 | E15: 3200.347144 | F15: 3454.591573 | G15: 99.56005921 | H15: 2.425547994 | I15: 1910.414425 | J15: 204.6279938 | Q15: 1918.356416 | R15: 202.9186545 | S15: 3193.369134 | T15: 3459.660256
A16: 11 | B16: =IF('base mesures'!W17>0,'base mesures'!W17,B15) -> 4380 | C16: =IF('base mesures'!X17>0,'base mesures'!X17,C15) -> 1910 | D16: =IF('base mesures'!Y17>0,'base mesures'!Y17,D15) -> 203.8131512 | E16: 3200.347144 | F16: 3454.591573 | G16: 99.56005921 | H16: 2.425547994 | I16: 1910.414425 | J16: 204.6279938 | Q16: 1918.356416 | R16: 202.9186545 | S16: =IF(B16*Q16>0,B16*(10/(9.80665*Q16/1000))^0.5,0) -> 3193.369134 | T16: 3459.660256
G18: F = facteur * (rpm/1000)^exposant (grs)
G19: P = facteur * (rpm/1000)^exposant (watts)
C20: traction | L20: puissance mécanique
B52: position
B53: =CONCATENATE("P",FIXED('base mesures'!Y2+1,0,0),":U",FIXED('base mesures'!Y2+1,0,0)) -> P11:U11 | D53: valeurs à copier pour la base mesures
D54: Attention collage spécial (valeurs)
C55: =K6 -> 85 | D55: =L6 -> 2.11 | E55: =I4 -> 3200 | F55: =N6 -> 2.6 | G55: =O6 -> 2.95 | H55: =J4 -> 3450

Sheet test hélices
A1: diamètre hélice conseillé | D1: =taille!E6 -> 18
I2: Utiliser le moteur de moteurs et mesures n° | J2: 8 | O2: gamme des forces de traction | U2: =IF(V2*X2>0,CONCATENATE(B11," - ",F10),"") -> Hélice n°1 - 1 | V2: =C13 -> 13 | W2: =IF(V2*X2>0,"x","") -> x | X2: =C14 -> 4 | Y2: =E20 -> 8.647803286 | Z2: =IF(Y2>0,"grs/watt","") -> grs/watt | AD2: =IF(Y2=MAX($Y$2,$Y$3,$Y$4,$Y$5,$Y$6,$Y$7),CONCATENATE(" à ",FIXED(E18,0)," trs/min, meilleure hélice"),CONCATENATE(" à ",FIXED(E18,0)," trs/min ")) -> à 5.969 trs/min
E3: moteur de test | H3: P | I3: =INDEX('moteurs et mesures'!F:M,'test hélices'!$J$2+1,1) -> 720 | J3: watts | L3: ='moteur test'!G10 -> 1063 | M3: =($Q$3-$L$3)/5+L3 -> 1276.4 | N3: =($Q$3-$L$3)/5+M3 -> 1489.8 | O3: =($Q$3-$L$3)/5+N3 -> 1703.2 | P3: =($Q$3-$L$3)/5+O3 -> 1916.6 | Q3: ='moteur test'!G16 -> 2130 | R3: grs | U3: =IF(V3*X3>0,CONCATENATE(B24," - ",F23),"") -> Hélice n°2 - 2 | V3: =C26 -> 13 | W3: x | X3: =C27 -> 6.5 | Y3: =E33 -> 9.602430028 | Z3: grs/watt | AD3: =IF(Y3=MAX($Y$2,$Y$3,$Y$4,$Y$5,$Y$6,$Y$7),CONCATENATE(" à ",FIXED(E31,0)," trs/min, meilleure hélice"),CONCATENATE(" à ",FIXED(E31,0)," trs/min ")) -> à 5.191 trs/min
E4: =INDEX('moteurs et mesures'!B:I,'test hélices'!$J$2+1,1) -> Turnigy Multistar | H4: KV | I4: =INDEX('moteurs et mesures'!G:N,'test hélices'!$J$2+1,1) -> 320 | U4: =IF(V4*X4>0,CONCATENATE(B37," - ",F36),"") -> Hélice n°3 - 3 | V4: =C39 -> 14 | W4: x | X4: =C40 -> 4.7 | Y4: =E46 -> 8.136591343 | Z4: grs/watt | AD4: =IF(Y4=MAX($Y$2,$Y$3,$Y$4,$Y$5,$Y$6,$Y$7),CONCATENATE(" à ",FIXED(E44,0)," trs/min, meilleure hélice"),CONCATENATE(" à ",FIXED(E44,0)," trs/min ")) -> à 5.644 trs/min
E5: =INDEX('moteurs et mesures'!C:J,'test hélices'!$J$2+1,1) -> 4014-320KV 22 Poles | H5: ri | I5: =INDEX('moteurs et mesures'!D:K,'test hélices'!$J$2+1,1) -> 0.102 | J5: ohm | U5: =IF(V5*X5>0,CONCATENATE(B50," - ",F49),"") -> Hélice n°4 - 4 | V5: =C52 -> 18 | W5: x | X5: =C53 -> 4 | Y5: =E59 -> 11.95858183 | Z5: grs/watt | AD5: =IF(Y5=MAX($Y$2,$Y$3,$Y$4,$Y$5,$Y$6,$Y$7),CONCATENATE(" à ",FIXED(E57,0)," trs/min, meilleure hélice"),CONCATENATE(" à ",FIXED(E57,0)," trs/min ")) -> à 3.311 trs/min, meilleure hélice
H6: I0 | I6: =INDEX('moteurs et mesures'!E:L,'test hélices'!$J$2+1,1) -> 0.7 | J6: ampère(s) | U6: =IF(V6*X6>0,CONCATENATE(B63," - ",F62),"") -> Hélice n°5 - 5 | V6: =C65 -> 18 | W6: x | X6: =C66 -> 5.5 | Y6: =E72 -> 9.263960248 | Z6: grs/watt | AD6: =IF(Y6=MAX($Y$2,$Y$3,$Y$4,$Y$5,$Y$6,$Y$7),CONCATENATE(" à ",FIXED(E70,0)," trs/min, meilleure hélice"),CONCATENATE(" à ",FIXED(E70,0)," trs/min ")) -> à 3.223 trs/min
U7: =IF(V7*X7>0,CONCATENATE(B76," - ",F75),"") ->  | V7: =C78 -> 0 | X7: =C79 -> 0 | Y7: =E85 ->  | Z7: grs/watt | AD7: =IF(Y7=MAX($Y$2,$Y$3,$Y$4,$Y$5,$Y$6,$Y$7),CONCATENATE(" à ",FIXED(E83,0)," trs/min, meilleure hélice"),CONCATENATE(" à ",FIXED(E83,0)," trs/min ")) -> à 0 trs/min | AJ7: vitesse de rotation selon traction (n10N, n100W et formule)
R9: Puissances en fonction de RPM | Z9: efficacités en fonction de RPM
E10: Hélice de base mesure n° | F10: 1
B11: Hélice n°1 | F11: F = kf x (n / 1000)exp_f | K11: =CONCATENATE("traction vol stationnaire: ",FIXED('moteur test'!G$10,0)," grs / "," traction maximale: ",FIXED('moteur test'!G$16,0)," grs = ",FIXED('moteur test'!G$15,1)) -> traction vol stationnaire: 1.063 grs / traction maximale: 2.130 grs = 2,0
B12: marque | C12: =IF($F10>0,INDEX('base mesures'!A:U,'test hélices'!F10*3-1,2),"") -> RCTimer | F12: P = kp x (n / 1000)exp_p | H12: traction | I12: =$L$3 -> 1063 | J12: =I12+($N$12-$I$12)/5 -> 1276.4 | K12: =J12+($N$12-$I$12)/5 -> 1489.8 | L12: =K12+($N$12-$I$12)/5 -> 1703.2 | M12: =L12+($N$12-$I$12)/5 -> 1916.6 | N12: =$Q$3 -> 2130 | O12: grs | AQ12: =I12 -> 1063 | AR12: =J12 -> 1276.4 | AS12: 1489.8 | AT12: 1703.2 | AU12: 1916.6 | AV12: 2130 | AW12: traction
B13: diamètre | C13: =IF($F10>0,INDEX('base mesures'!A:U,'test hélices'!F10*3-1,3),0) -> 13 | E13: kf | F13: =IF($F10>0,INDEX('base mesures'!A:U,'test hélices'!F10*3-1,16),0) -> 39 | H13: vitesse | I13: =IF($F13*$F14>0,(I12/$F13)^(1/$F14)*1000,0) -> 5969.376947 | J13: =IF($F13*$F14>0,(J12/$F13)^(1/$F14)*1000,0) -> 6589.870173 | K13: =IF($F13*$F14>0,(K12/$F13)^(1/$F14)*1000,0) -> 7164.227779 | L13: =IF($F13*$F14>0,(L12/$F13)^(1/$F14)*1000,0) -> 7701.851798 | M13: =IF($F13*$F14>0,(M12/$F13)^(1/$F14)*1000,0) -> 8209.30554 | N13: =IF($F13*$F14>0,(N12/$F13)^(1/$F14)*1000,0) -> 8691.388984 | O13: trs/min | AQ13: =$C$16/(10/(AQ12*0.009806))^0.5 -> 5979.815723 | AR13: =$C$16/(10/(AR12*0.009806))^0.5 -> 6552.613711 | AS13: 7079.215834 | AT13: 7569.269924 | AU13: 8029.470565 | AV13: 8464.688295 | AW13: vitesse selon n10N
B14: pas | C14: =IF($F10>0,INDEX('base mesures'!A:U,'test hélices'!F10*3-1,4),0) -> 4 | E14: exp_f | F14: =IF($F10>0,INDEX('base mesures'!A:U,'test hélices'!F10*3-1,17),0) -> 1.85 | H14: P méc | I14: =IF($C13*$C14>0,$F15*(I13/1000)^$F16,"") -> 122.92139 | J14: =IF($C13*$C14>0,$F15*(J13/1000)^$F16,"") -> 156.3114347 | K14: 191.5056489 | L14: 228.321188 | M14: 266.6150021 | N14: =IF($C13*$C14>0,$F15*(N13/1000)^$F16,"") -> 306.2715861 | O14: watts | AQ14: =$C$15/(100/AQ17)^(1/3) -> 6105.913907 | AR14: 6615.130844 | AS14: 7078.404636 | AT14: 7505.683737 | AU14: 7903.808028 | AV14: 8277.714147 | AW14: vitesse selon n100W
B15: n100W | C15: =IF($F10>0,INDEX('base mesures'!A:U,'test hélices'!F10*3-1,21),"") -> 5700 | E15: kp | F15: =IF($F10>0,INDEX('base mesures'!A:U,'test hélices'!F10*3-1,19),0) -> 1.6 | H15: P élec | I15: =IF($C13*$C14>0,I14+$I$5*(($I$4*I14/I13)+$I$6)^2+($I$6*$I$13/$I$4)+(($I$4*I14/I13)+$I$6)*$I$5*$I$6,"") -> 141.9197318 | J15: 176.9718915 | K15: 213.9590486 | L15: 252.6902903 | M15: 293.0159143 | N15: 334.814803 | O15: watts | AQ15: =(AQ12/$F$13)^(1/$F$14)*1000 -> 5969.376947 | AR15: =(AR12/$F$13)^(1/$F$14)*1000 -> 6589.870173 | AS15: 7164.227779 | AT15: 7701.851798 | AU15: 8209.30554 | AV15: 8691.388984 | AW15: vitesse selon formule F = kf x (n / 1000)exp_f
B16: n10N | C16: =IF($F10>0,INDEX('base mesures'!A:U,'test hélices'!F10*3-1,18),"") -> 5857 | E16: exp_p | F16: =IF($F10>0,INDEX('base mesures'!A:U,'test hélices'!F10*3-1,20),0) -> 2.43 | H16: n100W | I16: =IF($C13*$C14>0,(I13*(100/I14)^(1/3)),"") -> 5572.539855 | J16: =IF($C13*$C14>0,(J13*(100/J14)^(1/3)),"") -> 5678.233866 | K16: 5769.110477 | L16: 5848.974829 | M16: 5920.316057 | N16: 5984.854796 | O16: n100W | AQ16: =100*(AQ15/$C$15)^3 -> 114.8583162 | AR16: =100*(AR15/$C$15)^3 -> 154.527582 | AS16: 198.5562624 | AT16: 246.6953171 | AU16: 298.7409052 | AV16: 354.5218401 | AW16: puissance mécanique selon n100W et vitesse selon formule
H17: n10N | I17: =IF($C13*$C14>0,I13*(10/(9.80665*I12/1000))^0.5,"") -> 5846.58185 | J17: =IF($C13*$C14>0,J13*(10/(9.80665*J12/1000))^0.5,"") -> 5890.10617 | K17: 5927.138323 | L17: 5959.392575 | M17: 5987.979987 | N17: 6013.662456 | O17: n10N | AQ17: =I14 -> 122.92139 | AR17: 156.3114347 | AS17: 191.5056489 | AT17: 228.321188 | AU17: 266.6150021 | AV17: 306.2715861 | AW17: puissance mécanique selon formule P = kp x (n / 1000)exp_p
D18: =CONCATENATE("vitesse pour ",FIXED('moteur test'!$G$10,0)," grs") -> vitesse pour 1.063 grs | E18: =I13 -> 5969.376947 | F18: trs/min | H18: efficacité | I18: =IF($C13*$C14>0,I12/I14,"") -> 8.647803286 | J18: =IF($C13*$C14>0,J12/J14,"") -> 8.165749376 | K18: 7.779404985 | L18: 7.459666863 | M18: 7.188642743 | N18: 6.954611843 | O18: grs/W | AQ18: =I18 -> 8.647803286 | AR18: 8.165749376 | AS18: 7.779404985 | AT18: 7.459666863 | AU18: 7.188642743 | AV18: 6.954611843 | AW18: efficacité selon formules
D19: =CONCATENATE("P mécanique pour ",FIXED('moteur test'!$G$10,0)," grs") -> P mécanique pour 1.063 grs | E19: =I14 -> 122.92139 | F19: watts | AQ19: =AQ12/AQ16 -> 9.254880583 | AR19: 8.260014061 | AS19: 7.503162994 | AT19: 6.904062956 | AU19: 6.415592798 | AV19: 6.008092477 | AW19: efficacité selon n10N et n100W
D20: efficacité | E20: =I18 -> 8.647803286 | F20: grs/wattméc
E23: Hélice de base mesure n° | F23: 2
B24: Hélice n°2 | F24: F = kf x (n / 1000)exp_f | K24: =CONCATENATE("traction vol stationnaire: ",FIXED('moteur test'!G$10,0)," grs / "," traction maximale: ",FIXED('moteur test'!G$16,0)," grs = ",FIXED('moteur test'!G$15,1)) -> traction vol stationnaire: 1.063 grs / traction maximale: 2.130 grs = 2,0
B25: marque | C25: =IF($F23>0,INDEX('base mesures'!A:U,'test hélices'!F23*3-1,2),"") -> RCTimer | F25: P = kp x (n / 1000)exp_p | H25: traction | I25: =$L$3 -> 1063 | J25: =I25+($N$12-$I$12)/5 -> 1276.4 | K25: =J25+($N$12-$I$12)/5 -> 1489.8 | L25: =K25+($N$12-$I$12)/5 -> 1703.2 | M25: =L25+($N$12-$I$12)/5 -> 1916.6 | N25: =$Q$3 -> 2130 | O25: grs | AQ25: =I25 -> 1063 | AR25: =J25 -> 1276.4 | AS25: 1489.8 | AT25: 1703.2 | AU25: 1916.6 | AV25: 2130 | AW25: traction
B26: diamètre | C26: =IF($F23>0,INDEX('base mesures'!A:U,'test hélices'!F23*3-1,3),0) -> 13 | E26: kf | F26: =IF($F23>0,INDEX('base mesures'!A:U,'test hélices'!F23*3-1,16),0) -> 45 | H26: vitesse | I26: =IF($F26*$F27>0,(I25/$F26)^(1/$F27)*1000,0) -> 5191.241396 | J26: =IF($F26*$F27>0,(J25/$F26)^(1/$F27)*1000,0) -> 5710.225666 | K26: =IF($F26*$F27>0,(K25/$F26)^(1/$F27)*1000,0) -> 6189.030649 | L26: =IF($F26*$F27>0,(L25/$F26)^(1/$F27)*1000,0) -> 6635.943418 | M26: =IF($F26*$F27>0,(M25/$F26)^(1/$F27)*1000,0) -> 7056.732099 | N26: =IF($F26*$F27>0,(N25/$F26)^(1/$F27)*1000,0) -> 7455.604456 | O26: trs/min | AQ26: =$C$29/(10/(AQ25*0.009806))^0.5 -> 5206.942152 | AR26: =$C$29/(10/(AR25*0.009806))^0.5 -> 5705.707688 | AS26: 6164.248037 | AT26: 6590.96408 | AU26: 6991.685143 | AV26: 7370.652263 | AW26: vitesse selon n10N
B27: pas | C27: =IF($F23>0,INDEX('base mesures'!A:U,'test hélices'!F23*3-1,4),0) -> 6.5 | E27: exp_f | F27: =IF($F23>0,INDEX('base mesures'!A:U,'test hélices'!F23*3-1,17),0) -> 1,92 | H27: P méc | I27: =IF($C26*$C27>0,$F28*(I26/1000)^$F29,"") -> 110.7011451 | J27: =IF($C26*$C27>0,$F28*(J26/1000)^$F29,"") -> 144.5512482 | K27: 181.1073428 | L27: 220.150752 | M27: 261.5067178 | N27: 305.0315004 | O27: watts | AQ27: =$C$28/(100/AQ30)^(1/3) -> 5275.790569 | AR27: =$C$28/(100/AR30)^(1/3) -> 5766.480018 | AS27: 6216.541859 | AT27: 6634.531094 | AU27: 7026.371789 | AV27: 7396.366219 | AW27: vitesse selon n100W
B28: n100W | C28: =IF($F23>0,INDEX('base mesures'!A:U,'test hélices'!F23*3-1,21),"") -> 5100 | E28: kp | F28: =IF($F23>0,INDEX('base mesures'!A:U,'test hélices'!F23*3-1,19),0) -> 1,1 | H28: P élec | I28: =IF($C26*$C27>0,I27+$I$5*(($I$4*I27/I26)+$I$6)^2+($I$6*$I$13/$I$4)+(($I$4*I27/I26)+$I$6)*$I$5*$I$6,"") -> 130.0704438 | J28: 166.1376278 | K28: 205.2149938 | L28: 247.0783978 | M28: 291.5483905 | N28: 338.4771318 | O28: watts | AQ28: =(AQ25/$F$26)^(1/$F$27)*1000 -> 5191.241396 | AR28: =(AR25/$F$26)^(1/$F$27)*1000 -> 5710.225666 | AS28: 6189.030649 | AT28: 6635.943418 | AU28: 7056.732099 | AV28: 7455.604456 | AW28: vitesse selon formule F = kf x (n / 1000)exp_f
B29: n10N | C29: =IF($F23>0,INDEX('base mesures'!A:U,'test hélices'!F23*3-1,18),"") -> 5100 | E29: exp_p | F29: =IF($F23>0,INDEX('base mesures'!A:U,'test hélices'!F23*3-1,20),0) -> 2,8 | H29: n100W | I29: =IF($C26*$C27>0,(I26*(100/I27)^(1/3)),"") -> 5018.268025 | J29: =IF($C26*$C27>0,(J26*(100/J27)^(1/3)),"") -> 5050.247431 | K29: 5077.430029 | L29: 5101.085661 | M29: 5122.036634 | N29: 5140.84641 | O29: n100W | AQ29: =100*(AQ28/$C$28)^3 -> 105.4637343 | AR29: =100*(AR28/$C$28)^3 -> 140.3619157 | AS29: 178.7135048 | AT29: 220.2913755 | AU29: 264.9112259 | AV29: 312.4194398 | AW29: puissance mécanique selon n100W et vitesse selon formule
H30: n10N | I30: =IF($C26*$C27>0,I26*(10/(9.80665*I25/1000))^0.5,"") -> 5084.453201 | J30: =IF($C26*$C27>0,J26*(10/(9.80665*J25/1000))^0.5,"") -> 5103.869203 | K30: 5120.334232 | L30: 5134.634237 | M30: 5147.27712 | N30: 5158.610285 | O30: n10N | AQ30: =I27 -> 110.7011451 | AR30: =J27 -> 144.5512482 | AS30: =K27 -> 181.1073428 | AT30: =L27 -> 220.150752 | AU30: =M27 -> 261.5067178 | AV30: =N27 -> 305.0315004 | AW30: puissance mécanique selon formule P = kp x (n / 1000)exp_p
D31: =CONCATENATE("vitesse pour ",FIXED('moteur test'!$G$10,0)," grs") -> vitesse pour 1.063 grs | E31: =I26 -> 5191.241396 | F31: trs/min | H31: efficacité | I31: =IF($C26*$C27>0,I25/I27,"") -> 9.602430028 | J31: =IF($C26*$C27>0,J25/J27,"") -> 8.830086327 | K31: 8.226060726 | L31: 7.736516841 | M31: 7.329066023 | N31: 6.982885366 | O31: grs/W | AQ31: =I31 -> 9.602430028 | AR31: =J31 -> 8.830086327 | AS31: =K31 -> 8.226060726 | AT31: =L31 -> 7.736516841 | AU31: =M31 -> 7.329066023 | AV31: =N31 -> 6.982885366 | AW31: efficacité selon formules
D32: =CONCATENATE("P mécanique pour ",FIXED('moteur test'!$G$10,0)," grs") -> P mécanique pour 1.063 grs | E32: =I27 -> 110.7011451 | F32: watts | AQ32: =AQ25/AQ29 -> 10.07929415 | AR32: =AR25/AR29 -> 9.093634792 | AS32: 8.336247458 | AT32: 7.731578217 | AU32: 7.234876489 | AV32: 6.817757568 | AW32: efficacité selon n10N et n100W
D33: efficacité | E33: =I31 -> 9.602430028 | F33: grs/wattméc
E36: Hélice de base mesure n° | F36: 3
B37: Hélice n°3 | F37: F = kf x (n / 1000)exp_f | K37: =CONCATENATE("traction vol stationnaire: ",FIXED('moteur test'!G$10,0)," grs / "," traction maximale: ",FIXED('moteur test'!G$16,0)," grs = ",FIXED('moteur test'!G$15,1)) -> traction vol stationnaire: 1.063 grs / traction maximale: 2.130 grs = 2,0
B38: marque | C38: =IF($F36>0,INDEX('base mesures'!A:U,'test hélices'!F36*3-1,2),"") -> RCTimer | F38: P = kp x (n / 1000)exp_p | H38: traction | I38: =$L$3 -> 1063 | J38: =I38+($N$12-$I$12)/5 -> 1276.4 | K38: =J38+($N$12-$I$12)/5 -> 1489.8 | L38: =K38+($N$12-$I$12)/5 -> 1703.2 | M38: =L38+($N$12-$I$12)/5 -> 1916.6 | N38: =$Q$3 -> 2130 | O38: grs | AQ38: =I38 -> 1063 | AR38: =J38 -> 1276.4 | AS38: 1489.8 | AT38: 1703.2 | AU38: 1916.6 | AV38: 2130 | AW38: traction
B39: diamètre | C39: =IF($F36>0,INDEX('base mesures'!A:U,'test hélices'!F36*3-1,3),0) -> 14 | E39: kf | F39: =IF($F36>0,INDEX('base mesures'!A:U,'test hélices'!F36*3-1,16),0) -> 39 | H39: vitesse | I39: =IF($F39*$F40>0,(I38/$F39)^(1/$F40)*1000,0) -> 5643.57461 | J39: =IF($F39*$F40>0,(J38/$F39)^(1/$F40)*1000,0) -> 6210.877711 | K39: =IF($F39*$F40>0,(K38/$F39)^(1/$F40)*1000,0) -> 6734.50106 | L39: =IF($F39*$F40>0,(L38/$F39)^(1/$F40)*1000,0) -> 7223.438852 | M39: =IF($F39*$F40>0,(M38/$F39)^(1/$F40)*1000,0) -> 7683.953928 | N39: =IF($F39*$F40>0,(N38/$F39)^(1/$F40)*1000,0) -> 8120.61654 | O39: trs/min | AQ39: =$C$42/(10/(AQ38*0.009806))^0.5 -> 5615.329772 | AR39: =$C$42/(10/(AR38*0.009806))^0.5 -> 6153.214173 | AS39: 6647.718471 | AT39: 7107.902439 | AU39: 7540.052605 | AV39: 7948.742636 | AW39: vitesse selon n10N
B40: pas | C40: =IF($F36>0,INDEX('base mesures'!A:U,'test hélices'!F36*3-1,4),0) -> 4.7 | E40: exp_f | F40: =IF($F36>0,INDEX('base mesures'!A:U,'test hélices'!F36*3-1,17),0) -> 1.91 | H40: P méc | I40: =IF($C39*$C40>0,$F41*(I39/1000)^$F42,"") -> 130.6443884 | J40: =IF($C39*$C40>0,$F41*(J39/1000)^$F42,"") -> 163.7810721 | K40: 198.254697 | L40: 233.9152426 | M40: 270.6466751 | N40: 308.356231 | O40: watts | AQ40: =$C$41/(100/AQ43)^(1/3) -> 5848.5836 | AR40: =$C$41/(100/AR43)^(1/3) -> 6306.305686 | AS40: 6720.913054 | AT40: 7101.879342 | AU40: 7455.69295 | AV40: 7787.021222 | AW40: vitesse selon n100W
B41: n100W | C41: =IF($F36>0,INDEX('base mesures'!A:U,'test hélices'!F36*3-1,21),"") -> 5350 | E41: kp | F41: =IF($F36>0,INDEX('base mesures'!A:U,'test hélices'!F36*3-1,19),0) -> 2.2 | H41: P élec | I41: =IF($C39*$C40>0,I40+$I$5*(($I$4*I40/I39)+$I$6)^2+($I$6*$I$13/$I$4)+(($I$4*I40/I39)+$I$6)*$I$5*$I$6,"") -> 150.9863305 | J41: 186.0096447 | K41: 222.4823397 | L41: 260.2457632 | M41: 299.1768673 | N41: 339.1770478 | O41: watts | AQ41: =(AQ38/$F$39)^(1/$F$40)*1000 -> 5643.57461 | AR41: =(AR38/$F$39)^(1/$F$40)*1000 -> 6210.877711 | AS41: 6734.50106 | AT41: 7223.438852 | AU41: 7683.953928 | AV41: 8120.61654 | AW41: vitesse selon formule F = kf x (n / 1000)exp_f
B42: n10N | C42: =IF($F36>0,INDEX('base mesures'!A:U,'test hélices'!F36*3-1,18),"") -> 5500 | E42: exp_p | F42: =IF($F36>0,INDEX('base mesures'!A:U,'test hélices'!F36*3-1,20),0) -> 2.36 | H42: n100W | I42: =IF($C39*$C40>0,(I39*(100/I40)^(1/3)),"") -> 5162.467741 | J42: =IF($C39*$C40>0,(J39*(100/J40)^(1/3)),"") -> 5269.042987 | K42: 5360.816363 | L42: 5441.57342 | M42: 5513.793794 | N42: 5579.193539 | O42: n100W | AQ42: =100*(AQ41/$C$41)^3 -> 117.3819897 | AR42: =100*(AR41/$C$41)^3 -> 156.4579331 | AS42: 199.459594 | AT42: 246.1334596 | AU42: 296.27357 | AV42: 349.7080778 | AW42: puissance mécanique selon n100W et vitesse selon formule
H43: n10N | I43: =IF($C39*$C40>0,I39*(10/(9.80665*I38/1000))^0.5,"") -> 5527.481541 | J43: =IF($C39*$C40>0,J39*(10/(9.80665*J38/1000))^0.5,"") -> 5551.358094 | K43: 5571.61505 | L43: 5589.215294 | M43: 5604.78132 | N43: 5618.739065 | O43: n10N | AQ43: =I40 -> 130.6443884 | AR43: =J40 -> 163.7810721 | AS43: =K40 -> 198.254697 | AT43: =L40 -> 233.9152426 | AU43: =M40 -> 270.6466751 | AV43: =N40 -> 308.356231 | AW43: puissance mécanique selon formule P = kp x (n / 1000)exp_p
D44: =CONCATENATE("vitesse pour ",FIXED('moteur test'!$G$10,0)," grs") -> vitesse pour 1.063 grs | E44: =I39 -> 5643.57461 | F44: trs/min | H44: efficacité | I44: =IF($C39*$C40>0,I38/I40,"") -> 8.136591343 | J44: =IF($C39*$C40>0,J38/J40,"") -> 7.793330352 | K44: 7.514576062 | L44: 7.281269837 | M44: 7.08155753 | N44: 6.907595131 | O44: grs/W | AQ44: =I44 -> 8.136591343 | AR44: =J44 -> 7.793330352 | AS44: =K44 -> 7.514576062 | AT44: =L44 -> 7.281269837 | AU44: =M44 -> 7.08155753 | AV44: =N44 -> 6.907595131 | AW44: efficacité selon formules
D45: =CONCATENATE("P mécanique pour ",FIXED('moteur test'!$G$10,0)," grs") -> P mécanique pour 1.063 grs | E45: =I40 -> 130.6443884 | F45: watts | AQ45: =AQ38/AQ42 -> 9.055903745 | AR45: =AR38/AR42 -> 8.158103424 | AS45: 7.469181953 | AT45: 6.919823102 | AU45: 6.469021181 | AV45: 6.090794395 | AW45: efficacité selon n10N et n100W
D46: efficacité | E46: =I44 -> 8.136591343 | F46: grs/wattméc
E49: Hélice de base mesure n° | F49: 4
B50: Hélice n°4 | F50: F = kf x (n / 1000)exp_f | K50: =CONCATENATE("traction vol stationnaire: ",FIXED('moteur test'!G$10,0)," grs / "," traction maximale: ",FIXED('moteur test'!G$16,0)," grs = ",FIXED('moteur test'!G$15,1)) -> traction vol stationnaire: 1.063 grs / traction maximale: 2.130 grs = 2,0
B51: marque | C51: =IF($F49>0,INDEX('base mesures'!A:U,'test hélices'!F49*3-1,2),"") -> RCTimer | F51: P = kp x (n / 1000)exp_p | H51: traction | I51: =$L$3 -> 1063 | J51: =I51+($N$12-$I$12)/5 -> 1276.4 | K51: =J51+($N$12-$I$12)/5 -> 1489.8 | L51: =K51+($N$12-$I$12)/5 -> 1703.2 | M51: =L51+($N$12-$I$12)/5 -> 1916.6 | N51: =$Q$3 -> 2130 | O51: grs | AQ51: =I51 -> 1063 | AR51: =J51 -> 1276.4 | AS51: 1489.8 | AT51: 1703.2 | AU51: 1916.6 | AV51: 2130 | AW51: traction
B52: diamètre | C52: =IF($F49>0,INDEX('base mesures'!A:U,'test hélices'!F49*3-1,3),0) -> 18 | E52: kf | F52: =IF($F49>0,INDEX('base mesures'!A:U,'test hélices'!F49*3-1,16),0) -> 85 | H52: vitesse | I52: =IF($F52*$F53>0,(I51/$F52)^(1/$F53)*1000,0) -> 3311.001689 | J52: =IF($F52*$F53>0,(J51/$F52)^(1/$F53)*1000,0) -> 3610.897031 | K52: =IF($F52*$F53>0,(K51/$F52)^(1/$F53)*1000,0) -> 3885.39848 | L52: =IF($F52*$F53>0,(L51/$F52)^(1/$F53)*1000,0) -> 4139.891586 | M52: =IF($F52*$F53>0,(M51/$F52)^(1/$F53)*1000,0) -> 4378.098947 | N52: =IF($F52*$F53>0,(N51/$F52)^(1/$F53)*1000,0) -> 4602.719822 | O52: trs/min | AQ52: =$C$55/(10/(AQ51*0.009806))^0.5 -> 3267.100958 | AR52: =$C$55/(10/(AR51*0.009806))^0.5 -> 3580.051883 | AS52: 3867.763474 | AT52: 4135.506874 | AU52: 4386.939698 | AV52: 4624.722988 | AW52: vitesse selon n10N
B53: pas | C53: =IF($F49>0,INDEX('base mesures'!A:U,'test hélices'!F49*3-1,4),0) -> 4 | E53: exp_f | F53: =IF($F49>0,INDEX('base mesures'!A:U,'test hélices'!F49*3-1,17),0) -> 2,11 | H53: P méc | I53: =IF($C52*$C53>0,$F54*(I52/1000)^$F55,"") -> 88.89013887 | J53: =IF($C52*$C53>0,$F54*(J52/1000)^$F55,"") -> 114.7989472 | K53: 142.4978355 | L53: 171.8267611 | M53: 202.6589495 | N53: 234.8909253 | O53: watts | AQ53: =$C$54/(100/AQ56)^(1/3) -> 3317.189561 | AR53: =$C$54/(100/AR56)^(1/3) -> 3612.421321 | AS53: 3882.294866 | AT53: 4132.212969 | AU53: 4365.905764 | AV53: 4586.07523 | AW53: vitesse selon n100W
B54: n100W | C54: =IF($F49>0,INDEX('base mesures'!A:U,'test hélices'!F49*3-1,21),"") -> 3450 | E54: kp | F54: =IF($F49>0,INDEX('base mesures'!A:U,'test hélices'!F49*3-1,19),0) -> 2,6 | H54: P élec | I54: =IF($C52*$C53>0,I53+$I$5*(($I$4*I53/I52)+$I$6)^2+($I$6*$I$13/$I$4)+(($I$4*I53/I52)+$I$6)*$I$5*$I$6,"") -> 111.416459 | J54: 140.6932216 | K54: 172.2186776 | L54: 205.8226703 | M54: 241.3697969 | N54: 278.7490767 | O54: watts | AQ54: =(AQ51/$F$52)^(1/$F$53)*1000 -> 3311.001689 | AR54: =(AR51/$F$52)^(1/$F$53)*1000 -> 3610.897031 | AS54: 3885.39848 | AT54: 4139.891586 | AU54: 4378.098947 | AV54: 4602.719822 | AW54: vitesse selon formule F = kf x (n / 1000)exp_f
B55: n10N | C55: =IF($F49>0,INDEX('base mesures'!A:U,'test hélices'!F49*3-1,18),"") -> 3200 | E55: exp_p | F55: =IF($F49>0,INDEX('base mesures'!A:U,'test hélices'!F49*3-1,20),0) -> 2,95 | H55: n100W | I55: =IF($C52*$C53>0,(I52*(100/I53)^(1/3)),"") -> 3443.564384 | J55: =IF($C52*$C53>0,(J52*(100/J53)^(1/3)),"") -> 3448.544245 | K55: 3452.758026 | L55: 3456.410906 | M55: 3459.635224 | N55: 3462.521348 | O55: n100W | AQ55: =100*(AQ54/$C$54)^3 -> 88.39362033 | AR55: =100*(AR54/$C$54)^3 -> 114.6536876 | AS55: 142.839859 | AT55: 172.786425 | AU55: 204.361665 | AV55: 237.4577413 | AW55: puissance mécanique selon n100W et vitesse selon formule
H56: n10N | I56: =IF($C52*$C53>0,I52*(10/(9.80665*I51/1000))^0.5,"") -> 3242.891603 | J56: =IF($C52*$C53>0,J52*(10/(9.80665*J51/1000))^0.5,"") -> 3227.463717 | K56: 3214.483814 | L56: 3203.286667 | M56: 3193.445383 | N56: 3184.669728 | O56: n10N | AQ56: =I53 -> 88.89013887 | AR56: =J53 -> 114.7989472 | AS56: =K53 -> 142.4978355 | AT56: =L53 -> 171.8267611 | AU56: =M53 -> 202.6589495 | AV56: =N53 -> 234.8909253 | AW56: puissance mécanique selon formule P = kp x (n / 1000)exp_p
D57: =CONCATENATE("vitesse pour ",FIXED('moteur test'!$G$10,0)," grs") -> vitesse pour 1.063 grs | E57: =I52 -> 3311.001689 | F57: trs/min | H57: efficacité | I57: =IF($C52*$C53>0,I51/I53,"") -> 11.95858183 | J57: =IF($C52*$C53>0,J51/J53,"") -> 11.11856886 | K57: 10.45489565 | L57: 9.912309286 | M57: 9.457268012 | N57: 9.068038698 | O57: grs/W | AQ57: =I57 -> 11.95858183 | AR57: =J57 -> 11.11856886 | AS57: =K57 -> 10.45489565 | AT57: =L57 -> 9.912309286 | AU57: =M57 -> 9.457268012 | AV57: =N57 -> 9.068038698 | AW57: efficacité selon formules
D58: =CONCATENATE("P mécanique pour ",FIXED('moteur test'!$G$10,0)," grs") -> P mécanique pour 1.063 grs | E58: =I53 -> 88.89013887 | F58: watts | AQ58: =AQ51/AQ55 -> 12.02575476 | AR58: 11.13265545 | AS58: 10.42986188 | AT58: 9.857255856 | AU58: 9.378471249 | AV58: 8.970017102 | AW58: efficacité selon n10N et n100W
D59: efficacité | E59: =I57 -> 11.95858183 | F59: grs/wattméc
E62: Hélice de base mesure n° | F62: 5
B63: Hélice n°5 | F63: F = kf x (n / 1000)exp_f | K63: =CONCATENATE("traction vol stationnaire: ",FIXED('moteur test'!G$10,0)," grs / "," traction maximale: ",FIXED('moteur test'!G$16,0)," grs = ",FIXED('moteur test'!G$15,1)) -> traction vol stationnaire: 1.063 grs / traction maximale: 2.130 grs = 2,0
B64: marque | C64: =IF($F62>0,INDEX('base mesures'!A:U,'test hélices'!F62*3-1,2),"") -> HK | F64: P = kp x (n / 1000)exp_p | H64: traction | I64: =$L$3 -> 1063 | J64: =I64+($N$12-$I$12)/5 -> 1276.4 | K64: =J64+($N$12-$I$12)/5 -> 1489.8 | L64: =K64+($N$12-$I$12)/5 -> 1703.2 | M64: =L64+($N$12-$I$12)/5 -> 1916.6 | N64: =$Q$3 -> 2130 | O64: grs | AQ64: =I64 -> 1063 | AR64: =J64 -> 1276.4 | AS64: 1489.8 | AT64: 1703.2 | AU64: 1916.6 | AV64: 2130 | AW64: traction
B65: diamètre | C65: =IF($F62>0,INDEX('base mesures'!A:U,'test hélices'!F62*3-1,3),0) -> 18 | E65: kf | F65: =IF($F62>0,INDEX('base mesures'!A:U,'test hélices'!F62*3-1,16),0) -> 90 | H65: vitesse | I65: =IF($F65*$F66>0,(I64/$F65)^(1/$F66)*1000,0) -> 3222.512945 | J65: =IF($F65*$F66>0,(J64/$F65)^(1/$F66)*1000,0) -> 3514.393383 | K65: =IF($F65*$F66>0,(K64/$F65)^(1/$F66)*1000,0) -> 3781.558597 | L65: =IF($F65*$F66>0,(L64/$F65)^(1/$F66)*1000,0) -> 4029.250203 | M65: =IF($F65*$F66>0,(M64/$F65)^(1/$F66)*1000,0) -> 4261.091312 | N65: =IF($F65*$F66>0,(N64/$F65)^(1/$F66)*1000,0) -> 4479.709044 | O65: trs/min | AQ65: =$C$68/(10/(AQ64*0.009806))^0.5 -> 3216.052506 | AR65: =$C$68/(10/(AR64*0.009806))^0.5 -> 3524.113572 | AS65: 3807.32967 | AT65: 4070.889579 | AU65: 4318.393765 | AV65: 4552.461692 | AW65: vitesse selon n10N
B66: pas | C66: =IF($F62>0,INDEX('base mesures'!A:U,'test hélices'!F62*3-1,4),0) -> 5.5 | E66: exp_f | F66: =IF($F62>0,INDEX('base mesures'!A:U,'test hélices'!F62*3-1,17),0) -> 2.11 | H66: P méc | I66: =IF($C65*$C66>0,$F67*(I65/1000)^$F68,"") -> 114.7457428 | J66: =IF($C65*$C66>0,$F67*(J65/1000)^$F68,"") -> 152.3599168 | K66: 193.6081508 | L66: 238.2447076 | M66: 286.070555 | N66: 336.9200678 | O66: watts | AQ66: =$C$67/(100/AQ69)^(1/3) -> 3161.688917 | AR66: =$C$67/(100/AR69)^(1/3) -> 3475.072358 | AS66: 3763.987351 | AT66: 4033.493521 | AU66: 4287.110351 | AV66: 4527.403853 | AW66: vitesse selon n100W
B67: n100W | C67: =IF($F62>0,INDEX('base mesures'!A:U,'test hélices'!F62*3-1,21),"") -> 3020 | E67: kp | F67: =IF($F62>0,INDEX('base mesures'!A:U,'test hélices'!F62*3-1,19),0) -> 2.5 | H67: P élec | I67: =IF($C65*$C66>0,I66+$I$5*(($I$4*I66/I65)+$I$6)^2+($I$6*$I$13/$I$4)+(($I$4*I66/I65)+$I$6)*$I$5*$I$6,"") -> 143.5873237 | J67: 188.1204134 | K67: 237.6536901 | L67: 291.9728634 | M67: 350.9068284 | N67: 414.3151271 | O67: watts | AQ67: =(AQ64/$F$65)^(1/$F$66)*1000 -> 3222.512945 | AR67: =(AR64/$F$65)^(1/$F$66)*1000 -> 3514.393383 | AS67: 3781.558597 | AT67: 4029.250203 | AU67: 4261.091312 | AV67: 4479.709044 | AW67: vitesse selon formule F = kf x (n / 1000)exp_f
B68: n10N | C68: =IF($F62>0,INDEX('base mesures'!A:U,'test hélices'!F62*3-1,18),"") -> 3150 | E68: exp_p | F68: =IF($F62>0,INDEX('base mesures'!A:U,'test hélices'!F62*3-1,20),0) -> 3.27 | H68: n100W | I68: =IF($C65*$C66>0,(I65*(100/I66)^(1/3)),"") -> 3078.098241 | J68: =IF($C65*$C66>0,(J65*(100/J66)^(1/3)),"") -> 3054.171805 | K68: 3034.098125 | L68: 3016.822899 | M68: 3001.671221 | N68: 2988.185228 | O68: n100W | AQ68: =100*(AQ67/$C$67)^3 -> 121.4963366 | AR68: =100*(AR67/$C$67)^3 -> 157.5905927 | AS68: 196.3322638 | AT68: 237.4935835 | AU68: 280.8935028 | AV68: 326.3837995 | AW68: puissance mécanique selon n100W et vitesse selon formule
H69: n10N | I69: =IF($C65*$C66>0,I65*(10/(9.80665*I64/1000))^0.5,"") -> 3156.223148 | J69: =IF($C65*$C66>0,J65*(10/(9.80665*J64/1000))^0.5,"") -> 3141.207582 | K69: 3128.574575 | L69: 3117.67668 | M69: 3108.09841 | N69: 3099.557291 | O69: n10N | AQ69: =I66 -> 114.7457428 | AR69: =J66 -> 152.3599168 | AS69: =K66 -> 193.6081508 | AT69: =L66 -> 238.2447076 | AU69: =M66 -> 286.070555 | AV69: =N66 -> 336.9200678 | AW69: puissance mécanique selon formule P = kp x (n / 1000)exp_p
D70: =CONCATENATE("vitesse pour ",FIXED('moteur test'!$G$10,0)," grs") -> vitesse pour 1.063 grs | E70: =I65 -> 3222.512945 | F70: trs/min | H70: efficacité | I70: =IF($C65*$C66>0,I64/I66,"") -> 9.263960248 | J70: =IF($C65*$C66>0,J64/J66,"") -> 8.377531483 | K70: 7.694923966 | L70: 7.148952088 | M70: 6.699745802 | N70: 6.32197427 | O70: grs/W | AQ70: =I70 -> 9.263960248 | AR70: =J70 -> 8.377531483 | AS70: =K70 -> 7.694923966 | AT70: =L70 -> 7.148952088 | AU70: =M70 -> 6.699745802 | AV70: =N70 -> 6.32197427 | AW70: efficacité selon formules
D71: =CONCATENATE("P mécanique pour ",FIXED('moteur test'!$G$10,0)," grs") -> P mécanique pour 1.063 grs | E71: =I66 -> 114.7457428 | F71: watts | AQ71: =AQ64/AQ68 -> 8.749234996 | AR71: 8.099468239 | AS71: 7.588156787 | AT71: 7.171562173 | AU71: 6.823226528 | AV71: 6.526059207 | AW71: efficacité selon n10N et n100W
D72: efficacité | E72: =I70 -> 9.263960248 | F72: grs/wattméc
E75: Hélice de base mesure n°
B76: Hélice n°6 | F76: F = kf x (n / 1000)exp_f | K76: =CONCATENATE("traction vol stationnaire: ",FIXED('moteur test'!G$10,0)," grs / "," traction maximale: ",FIXED('moteur test'!G$16,0)," grs = ",FIXED('moteur test'!G$15,1)) -> traction vol stationnaire: 1.063 grs / traction maximale: 2.130 grs = 2,0
B77: marque | C77: =IF($F75>0,INDEX('base mesures'!A:U,'test hélices'!F75*3-1,2),"") ->  | F77: P = kp x (n / 1000)exp_p | H77: traction | I77: =$L$3 -> 1063 | J77: =I77+($N$12-$I$12)/5 -> 1276.4 | K77: =J77+($N$12-$I$12)/5 -> 1489.8 | L77: =K77+($N$12-$I$12)/5 -> 1703.2 | M77: =L77+($N$12-$I$12)/5 -> 1916.6 | N77: =$Q$3 -> 2130 | O77: grs | AQ77: =I77 -> 1063 | AR77: =J77 -> 1276.4 | AS77: 1489.8 | AT77: 1703.2 | AU77: 1916.6 | AV77: 2130 | AW77: traction
B78: diamètre | C78: =IF($F75>0,INDEX('base mesures'!A:U,'test hélices'!F75*3-1,3),0) -> 0 | E78: kf | F78: =IF($F75>0,INDEX('base mesures'!A:U,'test hélices'!F75*3-1,16),0) -> 0 | H78: vitesse | I78: =IF($F78*$F79>0,(I77/$F78)^(1/$F79)*1000,0) -> 0 | J78: =IF($F78*$F79>0,(J77/$F78)^(1/$F79)*1000,0) -> 0 | K78: 0 | L78: 0 | M78: 0 | N78: 0 | O78: trs/min | AQ78: =$C$81/(10/(AQ77*0.009806))^0.5 ->  | AR78: =$C$81/(10/(AR77*0.009806))^0.5 ->  | AW78: vitesse selon n10N
B79: pas | C79: =IF($F75>0,INDEX('base mesures'!A:U,'test hélices'!F75*3-1,4),0) -> 0 | E79: exp_f | F79: =IF($F75>0,INDEX('base mesures'!A:U,'test hélices'!F75*3-1,17),0) -> 0 | H79: P méc | I79: =IF($C78*$C79>0,$F80*(I78/1000)^$F81,"") ->  | J79: =IF($C78*$C79>0,$F80*(J78/1000)^$F81,"") ->  | O79: watts | AQ79: =$C$80/(100/AQ82)^(1/3) ->  | AR79: =$C$80/(100/AR82)^(1/3) ->  | AW79: vitesse selon n100W
B80: n100W | C80: =IF($F75>0,INDEX('base mesures'!A:U,'test hélices'!F75*3-1,21),"") ->  | E80: kp | F80: =IF($F75>0,INDEX('base mesures'!A:U,'test hélices'!F75*3-1,19),0) -> 0 | H80: P élec | I80: =IF($C78*$C79>0,I79+$I$5*(($I$4*I79/I78)+$I$6)^2+($I$6*$I$13/$I$4)+(($I$4*I79/I78)+$I$6)*$I$5*$I$6,"") ->  | O80: watts | AQ80: =(AQ77/$F$78)^(1/$F$79)*1000 ->  | AR80: =(AR77/$F$78)^(1/$F$79)*1000 ->  | AW80: vitesse selon formule F = kf x (n / 1000)exp_f
B81: n10N | C81: =IF($F75>0,INDEX('base mesures'!A:U,'test hélices'!F75*3-1,18),"") ->  | E81: exp_p | F81: =IF($F75>0,INDEX('base mesures'!A:U,'test hélices'!F75*3-1,20),0) -> 0 | H81: n100W | I81: =IF($C78*$C79>0,(I78*(100/I79)^(1/3)),"") ->  | J81: =IF($C78*$C79>0,(J78*(100/J79)^(1/3)),"") ->  | O81: n100W | AQ81: =100*(AQ80/$C$80)^3 ->  | AR81: =100*(AR80/$C$80)^3 ->  | AW81: puissance mécanique selon n100W et vitesse selon formule
H82: n10N | I82: =IF($C78*$C79>0,I78*(10/(9.80665*I77/1000))^0.5,"") ->  | J82: =IF($C78*$C79>0,J78*(10/(9.80665*J77/1000))^0.5,"") ->  | O82: n10N | AQ82: =I79 ->  | AR82: =J79 ->  | AS82: =K79 ->  | AT82: =L79 ->  | AU82: =M79 ->  | AV82: =N79 ->  | AW82: puissance mécanique selon formule P = kp x (n / 1000)exp_p
D83: =CONCATENATE("vitesse pour ",FIXED('moteur test'!$G$10,0)," grs") -> vitesse pour 1.063 grs | E83: =I78 -> 0 | F83: trs/min | H83: efficacité | I83: =IF($C78*$C79>0,I77/I79,"") ->  | J83: =IF($C78*$C79>0,J77/J79,"") ->  | O83: grs/W | AQ83: =I83 ->  | AR83: =J83 ->  | AS83: =K83 ->  | AT83: =L83 ->  | AU83: =M83 ->  | AV83: =N83 ->  | AW83: efficacité selon formules
D84: =CONCATENATE("P mécanique pour ",FIXED('moteur test'!$G$10,0)," grs") -> P mécanique pour 1.063 grs | E84: =I79 ->  | F84: watts | AQ84: =AQ77/AQ81 ->  | AW84: efficacité selon n10N et n100W
D85: efficacité | E85: =I83 ->  | F85: grs/wattméc
F88: Efficacité en fonction de la traction

Sheet moteurs
B1: au départ | D1: rapport traction max/poids | E1: =IF(E3=0,'moteur test'!G15,E3) -> 2.35 | G1: traction en stationnaire | H1: =E2/4 -> 1062.5 | I1: grs / moteur | J1: =H1/1000*9.806 -> 10.418875 | K1: Newtons | Q1: Helice 1 | R1: Helice 2 | S1: Helice 3 | T1: Helice 4 | U1: Helice 5 | V1: Helice 6
D2: poids du quadricoptère | E2: =IF(E4=0,taille!E4,E4) -> 4250 | F2: grs | H2: =FIXED($H$1*(1+$E$1)/2,0) -> 1.780 | I2: grs / moteur | J2: =CONCATENATE("traction/poids de ",FIXED((1+$E$1)/2,1)) -> traction/poids de 1,7 | P2: marque | Q2: ='test hélices'!C12 -> RCTimer | R2: ='test hélices'!C25 -> RCTimer | S2: ='test hélices'!C38 -> RCTimer | T2: ='test hélices'!C51 -> RCTimer | U2: ='test hélices'!C64 -> HK | V2: ='test hélices'!C77 -> 
B3: modifier ? | D3: rapport traction max/poids | E3: 2.35 | H3: =FIXED($H$1*$E$1,0) -> 2.497 | I3: grs / moteur | J3: =CONCATENATE("traction/poids de ",FIXED(E1,1)) -> traction/poids de 2,4 | P3: diamètre | Q3: ='test hélices'!C13 -> 13 | R3: ='test hélices'!C26 -> 13 | S3: ='test hélices'!C39 -> 14 | T3: ='test hélices'!C52 -> 18 | U3: ='test hélices'!C65 -> 18 | V3: ='test hélices'!C78 -> 0 | W3: pouces
D4: poids du quadricoptère | E4: 4250 | P4: pas | Q4: ='test hélices'!C14 -> 4 | R4: ='test hélices'!C27 -> 6.5 | S4: ='test hélices'!C40 -> 4.7 | T4: ='test hélices'!C53 -> 4 | U4: ='test hélices'!C66 -> 5.5 | V4: ='test hélices'!C79 -> 0 | W4: pouces
P5: n100W | Q5: ='test hélices'!C15 -> 5700 | R5: ='test hélices'!C28 -> 5100 | S5: ='test hélices'!C41 -> 5350 | T5: ='test hélices'!C54 -> 3450 | U5: ='test hélices'!C67 -> 3020 | V5: ='test hélices'!C80 -> 
B6: moteur 1: | D6: dans moteurs et mesures n° | E6: 8 | G6: rendements moteur 1 | P6: n10N | Q6: ='test hélices'!C16 -> 5857 | R6: ='test hélices'!C29 -> 5100 | S6: ='test hélices'!C42 -> 5500 | T6: ='test hélices'!C55 -> 3200 | U6: ='test hélices'!C68 -> 3150 | V6: ='test hélices'!C81 -> 
D7: marque | E7: =INDEX('moteurs et mesures'!B:I,moteurs!$E$6+1,1) -> Turnigy Multistar | P7: kf | Q7: ='test hélices'!F13 -> 39 | R7: ='test hélices'!F26 -> 45 | S7: ='test hélices'!F39 -> 39 | T7: ='test hélices'!F52 -> 85 | U7: ='test hélices'!F65 -> 90 | V7: ='test hélices'!F78 -> 0
D8: type | E8: =INDEX('moteurs et mesures'!B:I,moteurs!$E$6+1,2) -> 4014-320KV 22 Poles | G8: =IF(Q$7>0,Q$1,"") -> Helice 1 | H8: =IF(R$5>0,R$1,"") -> Helice 2 | I8: Helice 3 | J8: Helice 4 | K8: Helice 5 | P8: exp_f | Q8: ='test hélices'!F14 -> 1.85 | R8: ='test hélices'!F27 -> 1,92 | S8: ='test hélices'!F40 -> 1.91 | T8: ='test hélices'!F53 -> 2,11 | U8: ='test hélices'!F66 -> 2.11 | V8: ='test hélices'!F79 -> 0
D9: puissance | E9: =INDEX('moteurs et mesures'!B:I,moteurs!$E$6+1,5) -> 720 | F9: watts | G9: =IF(G19>0,G19*100/G22,"") -> 86.22123251 | H9: =IF(H19>0,H19*100/H22,"") -> 85.83406657 | I9: 86.69074437 | J9: 84.29782382 | K9: 83.8424925 | M9: =CONCATENATE("% pour ",FIXED($H$1,0)," grs") -> % pour 1.063 grs | P9: kp | Q9: ='test hélices'!F15 -> 1.6 | R9: ='test hélices'!F28 -> 1,1 | S9: ='test hélices'!F41 -> 2.2 | T9: ='test hélices'!F54 -> 2,6 | U9: ='test hélices'!F67 -> 2.5 | V9: ='test hélices'!F80 -> 0
D10: KV | E10: =INDEX('moteurs et mesures'!B:I,moteurs!$E$6+1,6) -> 320 | F10: KV | G10: =IF(G24>0,G24*100/G27,"") -> 89.18073964 | H10: 88.78761301 | I10: 89.13473772 | J10: 85.54829701 | K10: 83.27863584 | M10: =CONCATENATE("% pour ",FIXED($H$2,0)," grs") -> % pour 1.780 grs | P10: exp_p | Q10: ='test hélices'!F16 -> 2.43 | R10: ='test hélices'!F29 -> 2,8 | S10: ='test hélices'!F42 -> 2.36 | T10: ='test hélices'!F55 -> 2,95 | U10: ='test hélices'!F68 -> 3.27 | V10: ='test hélices'!F81 -> 0
D11: pour une batterie de | E11: 6 | F11: S | G11: =IF(G29>0,G29*100/G32,"") -> 90.45765818 | H11: 89.75714313 | I11: 90.20973279 | J11: 85.46710482 | K11: 81.7558172 | M11: =CONCATENATE("% pour ",FIXED($H$3,0)," grs") -> % pour 2.497 grs
D12: avec une résistance interne de | E12: =INDEX('moteurs et mesures'!B:I,moteurs!$E$6+1,3) -> 0.102 | F12: ohm(s) | P12: efficacité électrique pour les 3 valeurs de traction en grs/watt
D13: courant à vide | E13: =INDEX('moteurs et mesures'!B:I,moteurs!$E$6+1,4) -> 0.7 | F13: ampères
D14: courant maximum | E14: =INDEX('moteurs et mesures'!B:I,moteurs!$E$6+1,7) -> 26 | F14: ampères
D15: poids du moteur | E15: =INDEX('moteurs et mesures'!B:I,moteurs!$E$6+1,8) -> 163 | F15: grs
G17: pour hélice 1 | H17: pour hélice 2 | I17: pour hélice 3 | J17: pour hélice 4 | K17: pour hélice 5 | L17: pour hélice 6
F18: vitesse de rotation en stationnaire | G18: =IF(Q$7*Q$8>0,(($H$1+$E$15-MAX($E$15,$E$47,$E$79))/Q$7)^(1/Q$8)*1000,0) -> 5609.534419 | H18: =IF(R$7*R$8>0,(($H$1+$E$15-MAX($E$15,$E$47,$E$79))/R$7)^(1/R$8)*1000,0) -> 4889.376627 | I18: 5313.740239 | J18: 3135.33896 | K18: 3051.54492 | L18: 0 | M18: trs/min
F19: puissance mécanique en stationnaire | G19: =IF((Q$9*Q$10)>0,Q$9*(G18 /1000)^Q$10,0) -> 105.6847071 | H19: =IF((R$9*R$10)>0,R$9*(H18 /1000)^R$10,0) -> 93.60573615 | I19: 113.335884 | J19: 75.6854888 | K19: 96.01070265 | L19: =IF((V$9*V$10)>0,V$9*(L18 /1000)^V$10,0) -> 0 | M19: watts
F20: courant en stationnaire | G20: =IF($E10*G18>0,$E10*G19/G18+$E13,0) -> 6.728861533 | H20: =IF($E10*H18>0,$E10*H19/H18+$E13,0) -> 6.826309723 | I20: 7.525226914 | J20: 8.424637345 | K20: 10.76815421 | L20: =IF($E10*L18>0,$E10*L19/L18+$E13,0) -> 0 | M20: ampères
F21: tension en stationnaire | G21: =IF(G20-$E13>0,G19/(G20-$E13)+($E12*G20),0) -> 18.21613893 | H21: =IF(H20-$E13>0,H19/(H20-$E13)+($E12*H20),0) -> 15.97558555 | I21: 17.37301139 | J21: 10.65724726 | K21: 10.63442961 | L21: =IF(L20-$E13>0,L19/(L20-$E13)+($E12*L20),0) -> 0 | M21: volts
F22: puissance électrique en stationnaire | G22: =G20*G21 -> 122.5738766 | H22: =H20*H21 -> 109.054295 | I22: 130.7358529 | J22: 89.78344324 | K22: 114.513178 | L22: =L20*L21 -> 0 | M22: watts
F23: =CONCATENATE("vitesse de rotation pour ",FIXED(($H$2+$E$15-MAX($E$15,$E$47,$E$79)),0)," grs") -> vitesse de rotation pour 1.665 grs | G23: =IF(Q$7*Q$8>0,(($H$2+$E$15-MAX($E$15,$E$47,$E$79))/Q$7)^(1/Q$8)*1000,0) -> 7607.992411 | H23: =IF(R$7*R$8>0,(($H$2+$E$15-MAX($E$15,$E$47,$E$79))/R$7)^(1/R$8)*1000,0) -> 6558.004816 | I23: 7138.158616 | J23: 4095.623754 | K23: 3986.165459 | L23: 0 | M23: trs/min
F24: =CONCATENATE("puissance mécanique pour ",FIXED(($H$2+$E$15-MAX($E$15,$E$47,$E$79)),0)," grs") -> puissance mécanique pour 1.665 grs | G24: =IF((Q$9*Q$10)>0,Q$9*(G23 /1000)^Q$10,0) -> 221.6186242 | H24: =IF((R$9*R$10)>0,R$9*(H23 /1000)^R$10,0) -> 212.987214 | I24: =IF((S$9*S$10)>0,S$9*(I23 /1000)^S$10,0) -> 227.4500827 | J24: =IF((T$9*T$10)>0,T$9*(J23 /1000)^T$10,0) -> 166.4629186 | K24: =IF((U$9*U$10)>0,U$9*(K23 /1000)^U$10,0) -> 230.0148683 | L24: 0 | M24: watts
F25: =CONCATENATE("courant pour ",FIXED(($H$2+$E$15-MAX($E$15,$E$47,$E$79)),0)," grs") -> courant pour 1.665 grs | G25: =IF($E10*G23>0,$E10*G24/G23+$E13,0) -> 10.02150769 | H25: 11.0927811 | I25: 10.89647088 | J25: 13.70611021 | K25: 19.16505335 | L25: =IF($E10*L23>0,$E10*L24/L23+$E13,0) -> 0 | M25: ampères
F26: =CONCATENATE("tension pour ",FIXED(($H$2+$E$15-MAX($E$15,$E$47,$E$79)),0)," grs") -> tension pour 1.665 grs | G26: =IF(G25-$E13>0,G24/(G25-$E13)+($E12*G25),0) -> 24.79717007 | H26: 21.62522872 | I26: 23.41818571 | J26: 14.19684747 | K26: 14.4116025 | L26: =IF(L25-$E13>0,L24/(L25-$E13)+($E12*L25),0) -> 0 | M26: volts
F27: =CONCATENATE("puissance électrique pour ",FIXED(($H$2+$E$15-MAX($E$15,$E$47,$E$79)),0)," grs") -> puissance électrique pour 1.665 grs | G27: =G25*G26 -> 248.5050305 | H27: 239.8839284 | I27: 255.1755786 | J27: 194.5835561 | K27: 276.1991308 | L27: =L25*L26 -> 0 | M27: watts
F28: =CONCATENATE("vitesse de rotation pour ",FIXED(($H$3+$E$15-MAX($E$15,$E$47,$E$79)),0)," grs") -> vitesse de rotation pour 2.382 grs | G28: =IF(Q$7*Q$8>0,(($H$3+$E$15-MAX($E$15,$E$47,$E$79))/Q$7)^(1/Q$8)*1000,0) -> 9232.918459 | H28: =IF(R$7*R$8>0,(($H$3+$E$15-MAX($E$15,$E$47,$E$79))/R$7)^(1/R$8)*1000,0) -> 7902.702764 | I28: 8610.219335 | J28: 4853.217757 | K28: 4723.512253 | L28: 0 | M28: trs/min
F29: =CONCATENATE("puissance mécanique pour ",FIXED(($H$3+$E$15-MAX($E$15,$E$47,$E$79)),0)," grs") -> puissance mécanique pour 2.382 grs | G29: =IF((Q$9*Q$10)>0,Q$9*(G28 /1000)^Q$10,0) -> 354.7265972 | H29: =IF((R$9*R$10)>0,R$9*(H28 /1000)^R$10,0) -> 359.0579098 | I29: =IF((S$9*S$10)>0,S$9*(I28 /1000)^S$10,0) -> 354.0431756 | J29: =IF((T$9*T$10)>0,T$9*(J28 /1000)^T$10,0) -> 274.6383574 | K29: =IF((U$9*U$10)>0,U$9*(K28 /1000)^U$10,0) -> 400.669893 | L29: 0 | M29: watts
F30: =CONCATENATE("courant pour ",FIXED(($H$3+$E$15-MAX($E$15,$E$47,$E$79)),0)," grs") -> courant pour 2.382 grs | G30: =IF(G28>0,$E$10*G29/G28+$E$13,0) -> 12.99432618 | H30: 15.2391437 | I30: 13.8580639 | J30: 18.80845479 | K30: 27.84386221 | L30: =IF(L28>0,$E$10*L29/L28+$E$13,0) -> 0 | M30: ampères
F31: =CONCATENATE("tension pour ",FIXED(($H$3+$E$15-MAX($E$15,$E$47,$E$79)),0)," grs") -> tension pour 2.382 grs | G31: =IF(G30-$E13>0,G29/(G30-$E13)+($E12*G30),0) -> 30.17829145 | H31: 26.2503388 | I31: 28.32045794 | J31: 17.08476788 | K31: 17.60104974 | L31: =IF(L30-$E13>0,L29/(L30-$E13)+($E12*L30),0) -> 0 | M31: volts
F32: =CONCATENATE("puissance électrique pour ",FIXED(($H$3+$E$15-MAX($E$15,$E$47,$E$79)),0)," grs") -> puissance électrique pour 2.382 grs | G32: =G30*G31 -> 392.1465626 | H32: 400.0326852 | I32: 392.4667158 | J32: 321.3380843 | K32: 490.0812037 | L32: =L30*L31 -> 0 | M32: watts
F33: efficacité électrique en stationnaire | G33: =IF(G22>0,$H$1/G22,0) -> 8.668241796 | H33: 9.742853321 | I33: 8.127074375 | J33: 11.83403044 | K33: 9.278408118 | L33: =IF(L22>0,$H$1/L22,0) -> 0 | M33: grs/watt
F34: =CONCATENATE("efficacité électrique pour ",FIXED(($H$1+$E$15-MAX($E$15,$E$47,$E$79))*(1+$E$1)/2,0)," grs") -> efficacité électrique pour 1.587 grs | G34: =IF(G27>0,$H$2/G27,0) -> 7.162832867 | H34: 7.420255338 | I34: 6.975589161 | J34: 9.147741131 | K34: 6.444625639 | L34: =IF(L27>0,$H$2/L27,0) -> 0 | M34: grs/watt
F35: =CONCATENATE("efficacité électrique pour ",FIXED(($H$3+$E$15-MAX($E$15,$E$47,$E$79)),0)," grs") -> efficacité électrique pour 2.382 grs | G35: =IF(G32>0,$H$3/G32,0) -> 6.367517245 | H35: 6.241989948 | I35: 6.362322967 | J35: 7.770631997 | K35: 5.095074002 | L35: =IF(L32>0,$H$3/L32,0) -> 0 | M35: grs/watt | P35: =$H$1+$E$15-MAX($E$15,$E$47,$E$79) -> 947.5 | Q35: grs | T35: =($H$1+$E$15-MAX($E$15,$E$47,$E$79))*(1+$E$1)/2 -> 1587.0625 | U35: grs | X35: =($H$1+$E$15-MAX($E$15,$E$47,$E$79))*$E$1 -> 2226.625 | Y35: grs
B38: moteur 2: | D38: dans moteurs et mesures n° | E38: 14 | G38: rendements moteur 2
D39: marque | E39: =INDEX('moteurs et mesures'!B:I,moteurs!$E$38+1,1) -> Turnigy Multistar
D40: type | E40: =INDEX('moteurs et mesures'!B:I,moteurs!$E$38+1,2) -> 4230-400Kv 16 Poles | G40: =IF(Q$7>0,Q$1,"") -> Helice 1 | H40: =IF(R$5>0,R$1,"") -> Helice 2 | I40: Helice 3 | J40: Helice 4 | K40: Helice 5 | P40: efficacité électrique pour les 3 valeurs de traction en grs/watt
D41: puissance | E41: =INDEX('moteurs et mesures'!B:I,moteurs!$E$38+1,5) -> 550 | F41: watts | G41: =IF(G51>0,G51*100/G54,"") -> 81.2259813 | H41: 79.75224991 | I41: 80.1403171 | J41: 71.72574411 | K41: 67.66633905 | M41: =CONCATENATE("% pour ",FIXED($H$1,0)," grs") -> % pour 1.063 grs
D42: KV | E42: =INDEX('moteurs et mesures'!B:I,moteurs!$E$38+1,6) -> 400 | F42: KV | G42: =IF(G56>0,G56*100/G59,"") -> 82.35370189 | H42: 79.74861216 | I42: 80.96088758 | J42: 69.21507475 | K42: 62.2374586 | M42: =CONCATENATE("% pour ",FIXED($H$2,0)," grs") -> % pour 1.780 grs
D43: pour une batterie de | E43: 6 | F43: S | G43: =IF(G61>0,G61*100/G64,"") -> 85.99450626 | H43: 83.6065813 | I43: 85.06155206 | J43: 74.56159811 | K43: 67.38591787 | M43: =CONCATENATE("% pour ",FIXED($H$3,0)," grs") -> % pour 2.497 grs
D44: avec une résistance interne de | E44: =INDEX('moteurs et mesures'!B:I,moteurs!$E$38+1,3) -> 0.24 | F44: ohm(s)
D45: courant à vide | E45: =INDEX('moteurs et mesures'!B:I,moteurs!$E$38+1,4) -> 0.6 | F45: ampères
D46: courant maximum | E46: =INDEX('moteurs et mesures'!B:I,moteurs!$E$38+1,7) -> 25 | F46: ampères
D47: poids du moteur | E47: =INDEX('moteurs et mesures'!B:I,moteurs!$E$38+1,8) -> 138 | F47: grs
G49: pour hélice 1 | H49: pour hélice 2 | I49: pour hélice 3 | J49: pour hélice 4 | K49: pour hélice 5 | L49: pour hélice 6
F50: vitesse de rotation en stationnaire | G50: =IF(Q$7*Q$8>0,(($H$1+$E$47-MAX($E$15,$E$47,$E$79))/Q$7)^(1/Q$8)*1000,0) -> 5529.038375 | H50: =IF(R$7*R$8>0,(($H$1+$E$47-MAX($E$15,$E$47,$E$79))/R$7)^(1/R$8)*1000,0) -> 4821.754961 | I50: 5239.867405 | J50: 3095.856212 | K50: 3013.117376 | L50: 0 | M50: trs/min
F51: puissance mécanique en stationnaire | G51: =IF((Q$9*Q$10)>0,Q$9*(G50 /1000)^Q$10,0) -> 102.0371972 | H51: =IF((R$9*R$10)>0,R$9*(H50 /1000)^R$10,0) -> 90.02581586 | I51: =IF((S$9*S$10)>0,S$9*(I50 /1000)^S$10,0) -> 109.6525113 | J51: =IF((T$9*T$10)>0,T$9*(J50 /1000)^T$10,0) -> 72.90824656 | K51: =IF((U$9*U$10)>0,U$9*(K50 /1000)^U$10,0) -> 92.11333195 | L51: =IF((V$9*V$10)>0,V$9*(L50 /1000)^V$10,0) -> 0 | M51: watts
F52: courant en stationnaire | G52: =IF($E42*G50>0,$E42*G51/G50+$E45,0) -> 7.981912754 | H52: =IF($E42*H50>0,$E42*H51/H50+$E45,0) -> 8.068302856 | I52: =IF($E42*I50>0,$E42*I51/I50+$E45,0) -> 8.970632522 | J52: =IF($E42*J50>0,$E42*J51/J50+$E45,0) -> 10.0201076 | K52: =IF($E42*K50>0,$E42*K51/K50+$E45,0) -> 12.82830981 | L52: =IF($E42*L50>0,$E42*L51/L50+$E45,0) -> 0 | M52: ampères
F53: tension en stationnaire | G53: =IF(G52-$E45>0,G51/(G52-$E45)+($E44*G52),0) -> 15.738255 | H53: =IF(H52-$E45>0,H51/(H52-$E45)+($E44*H52),0) -> 13.99078009 | I53: 15.25262032 | J53: 10.14446635 | K53: 10.6115878 | L53: 0 | M53: volts
F54: puissance électrique en stationnaire | G54: =G52*G53 -> 125.6213783 | H54: =H52*H53 -> 112.8818509 | I54: 136.8256519 | J54: 101.6486444 | K54: 136.1287359 | L54: 0 | M54: watts
F55: =CONCATENATE("vitesse de rotation pour ",FIXED(($H$2+$E$47-MAX($E$15,$E$47,$E$79)),0)," grs") -> vitesse de rotation pour 1.640 grs | G55: =IF(Q$7*Q$8>0,(($H$2+$E$47-MAX($E$15,$E$47,$E$79))/Q$7)^(1/Q$8)*1000,0) -> 7546.029674 | H55: =IF(R$7*R$8>0,(($H$2+$E$47-MAX($E$15,$E$47,$E$79))/R$7)^(1/R$8)*1000,0) -> 6506.533247 | I55: 7081.841451 | J55: 4066.362806 | K55: 3957.686529 | L55: 0 | M55: trs/min
F56: =CONCATENATE("puissance mécanique pour ",FIXED(($H$2+$E$47-MAX($E$15,$E$47,$E$79)),0)," grs") -> puissance mécanique pour 1.640 grs | G56: =IF((Q$9*Q$10)>0,Q$9*(G55 /1000)^Q$10,0) -> 217.2580908 | H56: =IF((R$9*R$10)>0,R$9*(H55 /1000)^R$10,0) -> 208.3395464 | I56: =IF((S$9*S$10)>0,S$9*(I55 /1000)^S$10,0) -> 223.2377885 | J56: =IF((T$9*T$10)>0,T$9*(J55 /1000)^T$10,0) -> 162.9789122 | K56: =IF((U$9*U$10)>0,U$9*(K55 /1000)^U$10,0) -> 224.684629 | L56: =IF((V$9*V$10)>0,V$9*(L55 /1000)^V$10,0) -> 0 | M56: watts
F57: =CONCATENATE("courant pour ",FIXED(($H$2+$E$47-MAX($E$15,$E$47,$E$79)),0)," grs") -> courant pour 1.640 grs | G57: =IF($E42*G55>0,$E42*G56/G55+$E45,0) -> 12.11641858 | H57: 13.40802163 | I57: 13.20902493 | J57: 16.63191058 | K57: 23.30868371 | L57: 0 | M57: ampères
F58: =CONCATENATE("tension pour ",FIXED(($H$2+$E$47-MAX($E$15,$E$47,$E$79)),0)," grs") -> tension pour 1.640 grs | G58: =IF(G57-$E45>0,G56/(G57-$E45)+($E44*G57),0) -> 21.77301464 | H58: 19.48425831 | I58: 20.87476961 | J58: 14.15756555 | K58: 15.48830041 | L58: 0 | M58: volts
F59: =CONCATENATE("puissance électrique pour ",FIXED(($H$2+$E$47-MAX($E$15,$E$47,$E$79)),0)," grs") -> puissance électrique pour 1.640 grs | G59: =G57*G58 -> 263.8109591 | H59: 261.2453569 | I59: 275.7353522 | J59: 235.4673642 | K59: 361.0118956 | L59: 0 | M59: watts
F60: =CONCATENATE("vitesse de rotation pour ",FIXED(($H$3+$E$47-MAX($E$15,$E$47,$E$79)),0)," grs") -> vitesse de rotation pour 2.357 grs | G60: =IF(Q$7*Q$8>0,(($H$3+$E$47-MAX($E$15,$E$47,$E$79))/Q$7)^(1/Q$8)*1000,0) -> 9180.411513 | H60: =IF(R$7*R$8>0,(($H$3+$E$47-MAX($E$15,$E$47,$E$79))/R$7)^(1/R$8)*1000,0) -> 7859.394676 | I60: 8562.787579 | J60: 4829.010294 | K60: 4699.951751 | L60: 0 | M60: trs/min
F61: =CONCATENATE("puissance mécanique pour ",FIXED(($H$3+$E$47-MAX($E$15,$E$47,$E$79)),0)," grs") -> puissance mécanique pour 2.357 grs | G61: =IF((Q$9*Q$10)>0,Q$9*(G60 /1000)^Q$10,0) -> 349.8444629 | H61: =IF((R$9*R$10)>0,R$9*(H60 /1000)^R$10,0) -> 353.5754969 | I61: =IF((S$9*S$10)>0,S$9*(I60 /1000)^S$10,0) -> 349.4575944 | J61: =IF((T$9*T$10)>0,T$9*(J60 /1000)^T$10,0) -> 270.6168503 | K61: =IF((U$9*U$10)>0,U$9*(K60 /1000)^U$10,0) -> 394.1716863 | L61: =IF((V$9*V$10)>0,V$9*(L60 /1000)^V$10,0) -> 0 | M61: watts
F62: =CONCATENATE("courant pour ",FIXED(($H$3+$E$47-MAX($E$15,$E$47,$E$79)),0)," grs") -> courant pour 2.357 grs | G62: =IF(G60>0,$E$10*G61/G60+$E$13,0) -> 12.89446731 | H62: 15.09603986 | I62: 13.75958243 | J62: 18.63274125 | K62: 27.5374967 | L62: 0 | M62: ampères
F63: =CONCATENATE("tension pour ",FIXED(($H$3+$E$47-MAX($E$15,$E$47,$E$79)),0)," grs") -> tension pour 2.357 grs | G63: =IF(G62-$E45>0,G61/(G62-$E45)+($E44*G62),0) -> 31.55011101 | H63: 28.01422815 | I63: 29.85767084 | J63: 19.4788303 | K63: 21.24182462 | L63: 0 | M63: volts
F64: =CONCATENATE("puissance électrique pour ",FIXED(($H$3+$E$47-MAX($E$15,$E$47,$E$79)),0)," grs") -> puissance électrique pour 2.357 grs | G64: =G62*G63 -> 406.8218751 | H64: 422.9039047 | I64: 410.8290831 | J64: 362.9440049 | K64: 584.9466754 | L64: 0 | M64: watts
F65: efficacité électrique en stationnaire | G65: =IF(G54>0,$H$1/G54,0) -> 8.457955281 | H65: 9.412496262 | I65: 7.765356755 | J65: 10.4526726 | K65: 7.805111781 | L65: 0 | M65: grs/watt
F66: =CONCATENATE("efficacité électrique pour ",FIXED(($H$1+$E$47-MAX($E$15,$E$47,$E$79))*(1+$E$1)/2,0)," grs") -> efficacité électrique pour 1.545 grs | G66: =IF(G59>0,$H$2/G59,0) -> 6.74725571 | H66: 6.813518224 | I66: 6.455465306 | J66: 7.559434004 | K66: 4.930585451 | L66: 0 | M66: grs/watt
F67: =CONCATENATE("efficacité électrique pour ",FIXED(($H$1+$E$47-MAX($E$15,$E$47,$E$79))*$E$1,0)," grs") -> efficacité électrique pour 2.168 grs | G67: =IF(G64>0,$H$3/G64,0) -> 6.137821373 | H67: 5.904414625 | I67: 6.077953345 | J67: 6.87984914 | K67: 4.26876518 | L67: 0 | M67: grs/watt | P67: =$H$1+$E$47-MAX($E$15,$E$47,$E$79) -> 922.5 | Q67: grs | T67: =($H$1+$E$47-MAX($E$15,$E$47,$E$79))*(1+$E$1)/2 -> 1545.1875 | U67: grs | X67: =($H$1+$E$47-MAX($E$15,$E$47,$E$79))*E1 -> 2167.875 | Y67: grs
B70: moteur 3: | D70: dans moteurs et mesures n° | E70: 15 | G70: rendements moteur 3
D71: marque | E71: =INDEX('moteurs et mesures'!B:I,moteurs!$E$70+1,1) -> Turnigy
D72: type | E72: =INDEX('moteurs et mesures'!B:I,moteurs!$E$70+1,2) -> 4260 500KV | G72: =IF(Q$7>0,Q$1,"") -> Helice 1 | H72: =IF(R$5>0,R$1,"") -> Helice 2 | I72: Helice 3 | J72: Helice 4 | K72: Helice 5 | P72: efficacité électrique pour les 3 valeurs de traction en grs/watt
D73: puissance | E73: =INDEX('moteurs et mesures'!B:I,moteurs!$E$70+1,5) -> 1000 | F73: watts | G73: =IF(G83>0,G83*100/G86,"") -> 86.71989215 | H73: 86.7744284 | I73: 87.57572027 | J73: 87.10288272 | K73: 87.93337099 | M73: =CONCATENATE("% pour ",FIXED($H$1,0)," grs") -> % pour 1.063 grs
D74: KV | E74: =INDEX('moteurs et mesures'!B:I,moteurs!$E$70+1,6) -> 500 | F74: KV | G74: =IF(G88>0,G88*100/G91,"") -> 90.04385597 | H74: 90.34975156 | I74: 90.37437764 | J74: 89.46156591 | K74: 89.13699316 | M74: =CONCATENATE("% pour ",FIXED($H$2,0)," grs") -> % pour 1.780 grs
D75: pour une batterie de | E75: 6 | F75: S | G75: =IF(G93>0,G93*100/G96,"") -> 89.15897472 | H75: 90.41246029 | I75: 89.65355379 | J75: 90.95707019 | K75: 92.04029832 | L75: =IF(L93>0,L93*100/L96,"") ->  | M75: =CONCATENATE("% pour ",FIXED($H$3,0)," grs") -> % pour 2.497 grs
D76: avec une résistance interne de | E76: =INDEX('moteurs et mesures'!B:I,moteurs!$E$70+1,3) -> 0.019 | F76: ohm(s)
D77: courant à vide | E77: =INDEX('moteurs et mesures'!B:I,moteurs!$E$70+1,4) -> 1.36 | F77: ampères
D78: courant maximum | E78: =INDEX('moteurs et mesures'!B:I,moteurs!$E$70+1,7) -> 0 | F78: ampères
D79: poids du moteur | E79: =INDEX('moteurs et mesures'!B:I,moteurs!$E$70+1,8) -> 278 | F79: grs
G81: pour hélice 1 | H81: pour hélice 2 | I81: pour hélice 3 | J81: pour hélice 4 | K81: pour hélice 5 | L81: pour hélice 6
F82: vitesse de rotation en stationnaire | G82: =IF(Q$7*Q$8>0,(($H$1+$E$79-MAX($E$15,$E$47,$E$79))/Q$7)^(1/Q$8)*1000,0) -> 5967.859055 | H82: =IF(R$7*R$8>0,(($H$1+$E$79-MAX($E$15,$E$47,$E$79))/R$7)^(1/R$8)*1000,0) -> 5189.969488 | I82: 5642.184637 | J82: 3310.2635 | K82: 3221.794485 | L82: 0 | M82: trs/min
F83: puissance mécanique en stationnaire | G83: =IF((Q$9*Q$10)>0,Q$9*(G82 /1000)^Q$10,0) -> 122.8454506 | H83: =IF((R$9*R$10)>0,R$9*(H82 /1000)^R$10,0) -> 110.6252177 | I83: =IF((S$9*S$10)>0,S$9*(I82 /1000)^S$10,0) -> 130.5684639 | J83: =IF((T$9*T$10)>0,T$9*(J82 /1000)^T$10,0) -> 88.83168824 | K83: =IF((U$9*U$10)>0,U$9*(K82 /1000)^U$10,0) -> 114.6621089 | L83: =IF((V$9*V$10)>0,V$9*(L82 /1000)^V$10,0) -> 0 | M83: watts
F84: courant en stationnaire | G84: =IF($E74*G82>0,$E74*G83/G82+$E77,0) -> 11.65225469 | H84: =IF($E74*H82>0,$E74*H83/H82+$E77,0) -> 12.01759808 | I84: 12.93073654 | J84: 14.77761588 | K84: 19.15475839 | L84: =IF($E74*L82>0,$E74*L83/L82+$E77,0) -> 0 | M84: ampères
F85: tension en stationnaire | G85: =IF(G84-$E77>0,G83/(G84-$E77)+($E76*G84),0) -> 12.15711095 | H85: =IF(H84-$E77>0,H83/(H84-$E77)+($E76*H84),0) -> 10.60827334 | I85: 11.53005327 | J85: 6.901301702 | K85: 6.80752938 | L85: 0 | M85: volts
F86: puissance électrique en stationnaire | G86: =G84*G85 -> 141.657753 | H86: =H84*H85 -> 127.4859653 | I86: 149.0920811 | J86: 101.9847857 | K86: 130.3965805 | L86: 0 | M86: watts
F87: =CONCATENATE("vitesse de rotation pour ",FIXED(($H$2+$E$79-MAX($E$15,$E$47,$E$79)),0)," grs") -> vitesse de rotation pour 1.780 grs | G87: =IF(Q$7*Q$8>0,(($H$2+$E$79-MAX($E$15,$E$47,$E$79))/Q$7)^(1/Q$8)*1000,0) -> 7887.672357 | H87: =IF(R$7*R$8>0,(($H$2+$E$79-MAX($E$15,$E$47,$E$79))/R$7)^(1/R$8)*1000,0) -> 6790.142682 | I87: 7392.17872 | J87: 4227.336904 | K87: 4114.358486 | L87: 0 | M87: trs/min
F88: =CONCATENATE("puissance mécanique pour ",FIXED(($H$2+$E$79-MAX($E$15,$E$47,$E$79)),0)," grs") -> puissance mécanique pour 1.780 grs | G88: =IF((Q$9*Q$10)>0,Q$9*(G87 /1000)^Q$10,0) -> 241.9389091 | H88: =IF((R$9*R$10)>0,R$9*(H87 /1000)^R$10,0) -> 234.7759497 | I88: =IF((S$9*S$10)>0,S$9*(I87 /1000)^S$10,0) -> 247.0163399 | J88: =IF((T$9*T$10)>0,T$9*(J87 /1000)^T$10,0) -> 182.7555555 | K88: =IF((U$9*U$10)>0,U$9*(K87 /1000)^U$10,0) -> 255.0985391 | L88: 0 | M88: watts
F89: =CONCATENATE("courant pour ",FIXED(($H$2+$E$79-MAX($E$15,$E$47,$E$79)),0)," grs") -> courant pour 1.780 grs | G89: =IF($E74*G87>0,$E74*G88/G87+$E77,0) -> 16.69652123 | H89: =IF($E74*H87>0,$E74*H88/H87+$E77,0) -> 18.64799825 | I89: =IF($E74*I87>0,$E74*I88/I87+$E77,0) -> 18.06795236 | J89: =IF($E74*J87>0,$E74*J88/J87+$E77,0) -> 22.97592034 | K89: =IF($E74*K87>0,$E74*K88/K87+$E77,0) -> 32.36101024 | L89: 0 | M89: ampères
F90: =CONCATENATE("tension pour ",FIXED(($H$2+$E$79-MAX($E$15,$E$47,$E$79)),0)," grs") -> tension pour 1.780 grs | G90: =IF(G89-$E77>0,G88/(G89-$E77)+($E76*G89),0) -> 16.09257862 | H90: =IF(H89-$E77>0,H88/(H89-$E77)+($E76*H89),0) -> 13.93459733 | I90: =IF(I89-$E77>0,I88/(I89-$E77)+($E76*I89),0) -> 15.12764854 | J90: =IF(J89-$E77>0,J88/(J89-$E77)+($E76*J89),0) -> 8.891216294 | K90: =IF(K89-$E77>0,K88/(K89-$E77)+($E76*K89),0) -> 8.843576167 | L90: 0 | M90: volts
F91: =CONCATENATE("puissance électrique pour ",FIXED(($H$2+$E$79-MAX($E$15,$E$47,$E$79)),0)," grs") -> puissance électrique pour 1.780 grs | G91: =G89*G90 -> 268.6900805 | H91: =H89*H90 -> 259.8523467 | I91: 273.3256331 | J91: 204.2838773 | K91: 286.1870589 | L91: 0 | M91: watts
F92: =CONCATENATE("vitesse de rotation pour ",FIXED(($H$3+$E$79-MAX($E$15,$E$47,$E$79)),0)," grs") -> vitesse de rotation pour 2.497 grs | G92: =IF(Q$7*Q$8>0,(($H$3+$E$79-MAX($E$15,$E$47,$E$79))/Q$7)^(1/Q$8)*1000,0) -> 9471.255067 | H92: =IF(R$7*R$8>0,(($H$3+$E$79-MAX($E$15,$E$47,$E$79))/R$7)^(1/R$8)*1000,0) -> 8099.172332 | I92: 8825.413134 | J92: 4962.887327 | K92: 4830.25083 | L92: 0 | M92: trs/min
F93: =CONCATENATE("puissance mécanique pour ",FIXED(($H$3+$E$79-MAX($E$15,$E$47,$E$79)),0)," grs") -> puissance mécanique pour 2.497 grs | G93: =IF((Q$9*Q$10)>0,Q$9*(G92 /1000)^Q$10,0) -> 377.389912 | H93: =IF((R$9*R$10)>0,R$9*(H92 /1000)^R$10,0) -> 384.6152295 | I93: =IF((S$9*S$10)>0,S$9*(I92 /1000)^S$10,0) -> 375.2816991 | J93: =IF((T$9*T$10)>0,T$9*(J92 /1000)^T$10,0) -> 293.352554 | K93: =IF((U$9*U$10)>0,U$9*(K92 /1000)^U$10,0) -> 431.0432761 | L93: 0 | M93: watts
F94: =CONCATENATE("courant pour ",FIXED(($H$3+$E$79-MAX($E$15,$E$47,$E$79)),0)," grs") -> courant pour 2.497 grs | G94: =IF(G92>0,$E$10*G93/G92+$E$13,0) -> 13.45066198 | H94: =IF(H92>0,$E$10*H93/H92+$E$13,0) -> 15.8962285 | I94: 14.30731128 | J94: 19.6149604 | K94: 29.2562496 | L94: 0 | M94: ampères
F95: =CONCATENATE("tension pour ",FIXED(($H$3+$E$79-MAX($E$15,$E$47,$E$79)),0)," grs") -> tension pour 2.497 grs | G95: =IF(G94-$E77>0,G93/(G94-$E77)+($E76*G94),0) -> 31.46890001 | H95: =IF(H94-$E77>0,H93/(H94-$E77)+($E76*H94),0) -> 26.76110811 | I95: =IF(I94-$E77>0,I93/(I94-$E77)+($E76*I94),0) -> 29.25713871 | J95: =IF(J94-$E77>0,J93/(J94-$E77)+($E76*J94),0) -> 16.44242899 | K95: =IF(K94-$E77>0,K93/(K94-$E77)+($E76*K94),0) -> 16.00752559 | L95: 0 | M95: volts
F96: =CONCATENATE("puissance électrique pour ",FIXED(($H$3+$E$79-MAX($E$15,$E$47,$E$79)),0)," grs") -> puissance électrique pour 2.497 grs | G96: =G94*G95 -> 423.2775368 | H96: =H94*H95 -> 425.4006895 | I96: 418.5909908 | J96: 322.5175936 | K96: 468.3201641 | L96: 0 | M96: watts
F97: efficacité électrique en stationnaire | G97: =IF(G86>0,$H$1/G86,0) -> 7.500471929 | H97: =IF(H86>0,$H$1/H86,0) -> 8.334250737 | I97: 7.126468367 | J97: 10.41822065 | K97: 8.148219807 | L97: 0 | M97: grs/watt
F98: =CONCATENATE("efficacité électrique pour ",FIXED(($H$2+$E$79-MAX($E$15,$E$47,$E$79)),0)," grs") -> efficacité électrique pour 1.780 grs | G98: =IF(G91>0,$H$2/G91,0) -> 6.62473284 | H98: =IF(H91>0,$H$2/H91,0) -> 6.850043968 | I98: 6.512378585 | J98: 8.713365067 | K98: 6.21970821 | L98: 0 | M98: grs/watt
F99: =CONCATENATE("efficacité électrique pour ",FIXED(($H$3+$E$79-MAX($E$15,$E$47,$E$79)),0)," grs") -> efficacité électrique pour 2.497 grs | G99: =IF(G96>0,$H$3/G96,0) -> 5.899202729 | H99: =IF(H96>0,$H$3/H96,0) -> 5.869760115 | I99: 5.96525022 | J99: 7.742213292 | K99: 5.331822526 | L99: 0 | M99: grs/watt
P100: =($H$1+$E$79-MAX($E$15,$E$47,$E$79)) -> 1062.5 | Q100: grs | T100: =($H$1+$E$79-MAX($E$15,$E$47,$E$79))*(1+$E$1)/2 -> 1779.6875 | U100: grs | X100: =($H$1+$E$79-MAX($E$15,$E$47,$E$79))*E1 -> 2496.875 | Y100: grs

Sheet moteur-hélice
F1: ='mesures hélices'!B10 -> Helice 1 | I1: ='mesures hélices'!B25 -> Helice 2 | L1: ='mesures hélices'!B40 -> Helice 3 | O1: ='mesures hélices'!B55 -> Helice 4 | R1: ='mesures hélices'!B70 -> Helice 5 | U1: ='mesures hélices'!B85 -> Helice 6
F2: ='mesures hélices'!B11 -> marque | G2: ='test hélices'!C12 -> RCTimer | I2: ='mesures hélices'!B26 -> marque | J2: ='test hélices'!C25 -> RCTimer | L2: ='mesures hélices'!B41 -> marque | M2: ='test hélices'!C38 -> RCTimer | O2: ='mesures hélices'!B56 -> marque | P2: ='test hélices'!C51 -> RCTimer | R2: ='mesures hélices'!B71 -> marque | S2: ='test hélices'!C64 -> HK | U2: ='mesures hélices'!B86 -> marque | V2: ='test hélices'!C77 -> 
F3: ='mesures hélices'!B12 -> diamètre | G3: ='test hélices'!C13 -> 13 | I3: ='mesures hélices'!B27 -> diamètre | J3: ='test hélices'!C26 -> 13 | L3: ='mesures hélices'!B42 -> diamètre | M3: ='test hélices'!C39 -> 14 | O3: ='mesures hélices'!B57 -> diamètre | P3: ='test hélices'!C52 -> 18 | R3: ='mesures hélices'!B72 -> diamètre | S3: ='test hélices'!C65 -> 18 | U3: ='mesures hélices'!B87 -> diamètre | V3: ='test hélices'!C78 -> 0
F4: ='mesures hélices'!B13 -> pas | G4: ='test hélices'!C14 -> 4 | I4: ='mesures hélices'!B28 -> pas | J4: ='test hélices'!C27 -> 6.5 | L4: ='mesures hélices'!B43 -> pas | M4: ='test hélices'!C40 -> 4.7 | O4: ='mesures hélices'!B58 -> pas | P4: ='test hélices'!C53 -> 4 | R4: ='mesures hélices'!B73 -> pas | S4: ='test hélices'!C66 -> 5.5 | U4: ='mesures hélices'!B88 -> pas | V4: ='test hélices'!C79 -> 0
F5: ='mesures hélices'!B14 -> n100W | G5: ='test hélices'!C15 -> 5700 | I5: ='mesures hélices'!B29 -> n100W | J5: ='test hélices'!C28 -> 5100 | L5: ='mesures hélices'!B44 -> n100W | M5: ='test hélices'!C41 -> 5350 | O5: ='mesures hélices'!B59 -> n100W | P5: ='test hélices'!C54 -> 3450 | R5: ='mesures hélices'!B74 -> n100W | S5: ='test hélices'!C67 -> 3020 | U5: ='mesures hélices'!B89 -> n100W | V5: ='test hélices'!C80 -> 
F6: ='mesures hélices'!B15 -> n10N | G6: ='test hélices'!C16 -> 5857 | I6: ='mesures hélices'!B30 -> n10N | J6: ='test hélices'!C29 -> 5100 | L6: ='mesures hélices'!B45 -> n10N | M6: ='test hélices'!C42 -> 5500 | O6: ='mesures hélices'!B60 -> n10N | P6: ='test hélices'!C55 -> 3200 | R6: ='mesures hélices'!B75 -> n10N | S6: ='test hélices'!C68 -> 3150 | U6: ='mesures hélices'!B90 -> n10N | V6: ='test hélices'!C81 -> 
F7: ='test hélices'!E78 -> kf | G7: ='test hélices'!F13 -> 39 | I7: ='test hélices'!E26 -> kf | J7: ='test hélices'!F26 -> 45 | L7: ='test hélices'!E26 -> kf | M7: ='test hélices'!F39 -> 39 | O7: ='test hélices'!E52 -> kf | P7: ='test hélices'!F52 -> 85 | R7: ='test hélices'!E65 -> kf | S7: ='test hélices'!F65 -> 90 | U7: ='test hélices'!E78 -> kf | V7: ='test hélices'!F78 -> 0
F8: ='test hélices'!E79 -> exp_f | G8: ='test hélices'!F14 -> 1.85 | I8: ='test hélices'!E27 -> exp_f | J8: ='test hélices'!F27 -> 1,92 | L8: ='test hélices'!E27 -> exp_f | M8: ='test hélices'!F40 -> 1.91 | O8: ='test hélices'!E53 -> exp_f | P8: ='test hélices'!F53 -> 2,11 | R8: ='test hélices'!E66 -> exp_f | S8: ='test hélices'!F66 -> 2.11 | U8: ='test hélices'!E79 -> exp_f | V8: ='test hélices'!F79 -> 0
F9: ='test hélices'!E80 -> kp | G9: ='test hélices'!F15 -> 1.6 | I9: ='test hélices'!E28 -> kp | J9: ='test hélices'!F28 -> 1,1 | L9: ='test hélices'!E28 -> kp | M9: ='test hélices'!F41 -> 2.2 | O9: ='test hélices'!E54 -> kp | P9: ='test hélices'!F54 -> 2,6 | R9: ='test hélices'!E67 -> kp | S9: ='test hélices'!F67 -> 2.5 | U9: ='test hélices'!E80 -> kp | V9: ='test hélices'!F80 -> 0
F10: ='test hélices'!E81 -> exp_p | G10: ='test hélices'!F16 -> 2.43 | I10: ='test hélices'!E29 -> exp_p | J10: ='test hélices'!F29 -> 2,8 | L10: ='test hélices'!E29 -> exp_p | M10: ='test hélices'!F42 -> 2.36 | O10: ='test hélices'!E55 -> exp_p | P10: ='test hélices'!F55 -> 2,95 | R10: ='test hélices'!E68 -> exp_p | S10: ='test hélices'!F68 -> 3.27 | U10: ='test hélices'!E81 -> exp_p | V10: ='test hélices'!F81 -> 0
E13: efficacité des couples moteur-hélice en grs/Watt pour différentes forces de traction
E15: efficacité | F15: hélice 1 | G15: hélice 2 | H15: hélice 3 | I15: hélice 4 | J15: hélice 5 | K15: hélice 6 | M15: =CONCATENATE("pour traction de ",FIXED(moteurs!H1,0)," grs") -> pour traction de 1.063 grs
E16: moteur 1 | F16: =moteurs!G33 -> 8.668241796 | G16: =moteurs!H33 -> 9.742853321 | H16: =moteurs!I33 -> 8.127074375 | I16: =moteurs!J33 -> 11.83403044 | J16: =moteurs!K33 -> 9.278408118 | K16: =moteurs!L33 -> 0 | L16: moteur 1 | M16: =CONCATENATE(moteurs!E7," ",moteurs!E8) -> Turnigy Multistar 4014-320KV 22 Poles
E17: moteur 2 | F17: =moteurs!G65 -> 8.457955281 | G17: =moteurs!H65 -> 9.412496262 | H17: =moteurs!I65 -> 7.765356755 | I17: =moteurs!J65 -> 10.4526726 | J17: =moteurs!K65 -> 7.805111781 | K17: =moteurs!L65 -> 0 | L17: moteur 2 | M17: =CONCATENATE(moteurs!E39," ",moteurs!E40) -> Turnigy Multistar 4230-400Kv 16 Poles
E18: moteur 3 | F18: =moteurs!G97 -> 7.500471929 | G18: =moteurs!H97 -> 8.334250737 | H18: =moteurs!I97 -> 7.126468367 | I18: =moteurs!J97 -> 10.41822065 | J18: =moteurs!K97 -> 8.148219807 | K18: =moteurs!L97 -> 0 | L18: moteur 3 | M18: =CONCATENATE(moteurs!E71," ",moteurs!E72) -> Turnigy 4260 500KV
E20: efficacité | F20: hélice 1 | G20: hélice 2 | H20: hélice 3 | I20: hélice 4 | J20: hélice 5 | K20: hélice 6 | L20: efficacité | M20: =CONCATENATE("pour traction de ",FIXED(moteurs!H2,0)," grs") -> pour traction de 1.780 grs
E21: moteur 1 | F21: =moteurs!G34 -> 7.162832867 | G21: =moteurs!H34 -> 7.420255338 | H21: =moteurs!I34 -> 6.975589161 | I21: =moteurs!J34 -> 9.147741131 | J21: =moteurs!K34 -> 6.444625639 | K21: =moteurs!L34 -> 0 | L21: moteur 1 | M21: =CONCATENATE(moteurs!E7," ",moteurs!E8) -> Turnigy Multistar 4014-320KV 22 Poles
E22: moteur 2 | F22: =moteurs!G66 -> 6.74725571 | G22: =moteurs!H66 -> 6.813518224 | H22: =moteurs!I66 -> 6.455465306 | I22: =moteurs!J66 -> 7.559434004 | J22: =moteurs!K66 -> 4.930585451 | K22: =moteurs!L66 -> 0 | L22: moteur 2 | M22: =CONCATENATE(moteurs!E39," ",moteurs!E40) -> Turnigy Multistar 4230-400Kv 16 Poles
E23: moteur 3 | F23: =moteurs!G98 -> 6.62473284 | G23: =moteurs!H98 -> 6.850043968 | H23: =moteurs!I98 -> 6.512378585 | I23: =moteurs!J98 -> 8.713365067 | J23: =moteurs!K98 -> 6.21970821 | K23: =moteurs!L98 -> 0 | L23: moteur 3 | M23: =CONCATENATE(moteurs!E71," ",moteurs!E72) -> Turnigy 4260 500KV
E25: efficacité | F25: hélice 1 | G25: hélice 2 | H25: hélice 3 | I25: hélice 4 | J25: hélice 5 | K25: hélice 6 | L25: efficacité | M25: =CONCATENATE("pour traction de ",FIXED(moteurs!H3,0)," grs") -> pour traction de 2.497 grs
E26: moteur 1 | F26: =moteurs!G35 -> 6.367517245 | G26: =moteurs!H35 -> 6.241989948 | H26: =moteurs!I35 -> 6.362322967 | I26: =moteurs!J35 -> 7.770631997 | J26: =moteurs!K35 -> 5.095074002 | K26: =moteurs!L35 -> 0 | L26: moteur 1 | M26: =CONCATENATE(moteurs!E7," ",moteurs!E8) -> Turnigy Multistar 4014-320KV 22 Poles
E27: moteur 2 | F27: =moteurs!G67 -> 6.137821373 | G27: =moteurs!H67 -> 5.904414625 | H27: =moteurs!I67 -> 6.077953345 | I27: =moteurs!J67 -> 6.87984914 | J27: =moteurs!K67 -> 4.26876518 | K27: =moteurs!L67 -> 0 | L27: moteur 2 | M27: =CONCATENATE(moteurs!E39," ",moteurs!E40) -> Turnigy Multistar 4230-400Kv 16 Poles
E28: moteur 3 | F28: =moteurs!G99 -> 5.899202729 | G28: =moteurs!H99 -> 5.869760115 | H28: =moteurs!I99 -> 5.96525022 | I28: =moteurs!J99 -> 7.742213292 | J28: =moteurs!K99 -> 5.331822526 | K28: =moteurs!L99 -> 0 | L28: moteur 3 | M28: =CONCATENATE(moteurs!E71," ",moteurs!E72) -> Turnigy 4260 500KV
L30: efficacité max
F31: =MAX(F16,F17,F18) -> 8.668241796 | G31: 9.742853321 | H31: 8.127074375 | I31: 11.83403044 | J31: 9.278408118 | K31: 0 | L31: =MAX(F31,G31,H31,I31,J31,K31) -> 11.83403044 | M31: =CONCATENATE("avec ",HLOOKUP(L31,F31:K34,4,FALSE)," en stationnaire") -> avec hélice 4 en stationnaire
F32: =MAX(F21,F22,F23) -> 7.162832867 | G32: 7.420255338 | H32: 6.975589161 | I32: 9.147741131 | J32: 6.444625639 | K32: 0 | L32: =MAX(F32,G32,H32,I32,J32,K32) -> 9.147741131 | M32: =CONCATENATE("avec ",HLOOKUP(L32,F32:K34,3,FALSE)," en traction 1,5 x stationnaire") -> avec hélice 4 en traction 1,5 x stationnaire
F33: =MAX(F26,F27,F28) -> 6.367517245 | G33: 6.241989948 | H33: 6.362322967 | I33: 7.770631997 | J33: 5.331822526 | K33: 0 | L33: =MAX(F33,G33,H33,I33,J33,K33) -> 7.770631997 | M33: =CONCATENATE("avec ",HLOOKUP(L33,F33:K34,2,FALSE)," en traction max") -> avec hélice 4 en traction max
F34: =IF(F31+F32+F33>0,"hélice 1","") -> hélice 1 | G34: =IF(G31+G32+G33>0,"hélice 2","") -> hélice 2 | H34: =IF(H31+H32+H33>0,"hélice 3","") -> hélice 3 | I34: =IF(I31+I32+I33>0,"hélice 4","") -> hélice 4 | J34: =IF(J31+J32+J33>0,"hélice 5","") -> hélice 5 | K34: =IF(K31+K32+K33>0,"hélice 6","") ->  | L34: efficacité max
D35: meilleur moteur par hélice | F35: =IF(F31+F32+F33>0,VLOOKUP(F31,$F$16:$L$18,7,FALSE),"") -> moteur 1 | G35: =IF(G31+G32+G33>0,VLOOKUP(G31,G$16:$L$18,6,FALSE),"") -> moteur 1 | H35: =IF(H31+H32+H33>0,VLOOKUP(H31,H$16:$L$18,5,FALSE),"") -> moteur 1 | I35: =IF(I31+I32+I33>0,VLOOKUP(I31,I$16:$L$18,4,FALSE),"") -> moteur 1 | J35: =IF(J31+J32+J33>0,VLOOKUP(J31,J$16:$L$18,3,FALSE),"") -> moteur 1 | K35: =IF(K31+K32+K33>0,VLOOKUP(K31,K$16:$L$18,2,FALSE),"") ->  | L35: =MAX(F31,G31,H31,I31,J31,K31) -> 11.83403044 | M35: grs/watt en stationnaire
D36: et | F36: =IF(F31+F32+F33>0,VLOOKUP(F32,$F$21:$L$23,7,FALSE),"") -> moteur 1 | G36: =IF(G31+G32+G33>0,VLOOKUP(G32,$G$21:$L$23,6,FALSE),"") -> moteur 1 | H36: =IF(H31+H32+H33>0,VLOOKUP(H32,$H$21:$L$23,5,FALSE),"") -> moteur 1 | I36: =IF(I31+I32+I33>0,VLOOKUP(I32,$I$21:$L$23,4,FALSE),"") -> moteur 1 | J36: =IF(J31+J32+J33>0,VLOOKUP(J32,$J$21:$L$23,3,FALSE),"") -> moteur 1 | K36: =IF(K31+K32+K33>0,VLOOKUP(K32,$K$21:$L$23,2,FALSE),"") ->  | L36: =MAX(F32,G32,H32,I32,J32,K32) -> 9.147741131 | M36: grs/watt en traction 1,5 x stationnaire | S36: traction | T36: m1h1 | U36: m1h2 | V36: m1h3 | W36: m1h4 | X36: m1h5 | Y36: m1h6 | Z36: m2h1 | AA36: m2h2 | AB36: m2h3 | AC36: m2h4 | AD36: m2h5 | AE36: m2h6 | AF36: m3h1 | AG36: m3h2 | AH36: m3h3 | AI36: m3h4 | AJ36: m3h5 | AK36: m3h6
D37: par force de traction | F37: =IF(F31+F32+F33>0,VLOOKUP(F33,$F$26:$L$28,7,FALSE),"") -> moteur 1 | G37: =IF(G31+G32+G33>0,VLOOKUP(G33,$G$26:$L$28,6,FALSE),"") -> moteur 1 | H37: =IF(H31+H32+H33>0,VLOOKUP(H33,$H$26:$L$28,5,FALSE),"") -> moteur 1 | I37: =IF(I31+I32+I33>0,VLOOKUP(I33,$I$26:$L$28,4,FALSE),"") -> moteur 1 | J37: =IF(J31+J32+J33>0,VLOOKUP(J33,$J$26:$L$28,3,FALSE),"") -> moteur 3 | K37: =IF(K31+K32+K33>0,VLOOKUP(K33,$K$26:$L$28,2,FALSE),"") ->  | L37: =MAX(F33,G33,H33,I33,J33,K33) -> 7.770631997 | M37: grs/watt en traction max | S37: 850 | T37: =F16 -> 8.668241796 | U37: =G16 -> 9.742853321 | V37: 8.127074375 | W37: 11.83403044 | X37: 9.278408118 | Y37: 0 | Z37: =F17 -> 8.457955281 | AA37: 9.412496262 | AB37: 7.765356755 | AC37: 10.4526726 | AD37: 7.805111781 | AE37: 0 | AF37: =F18 -> 7.500471929 | AG37: 8.334250737 | AH37: 7.126468367 | AI37: 10.41822065 | AJ37: 8.148219807 | AK37: 0
L38: =HLOOKUP(L35,F31:K35,5) ->  | S38: 1275 | T38: =F21 -> 7.162832867 | U38: =G21 -> 7.420255338 | V38: 6.975589161 | W38: 9.147741131 | X38: 6.444625639 | Y38: 0 | Z38: =F22 -> 6.74725571 | AA38: 6.813518224 | AB38: 6.455465306 | AC38: 7.559434004 | AD38: 4.930585451 | AE38: 0 | AF38: =F23 -> 6.62473284 | AG38: 6.850043968 | AH38: 6.512378585 | AI38: 8.713365067 | AJ38: 6.21970821 | AK38: 0
H39: Efficacité moyenne dans la moitié | S39: 1700 | T39: =F26 -> 6.367517245 | U39: 6.241989948 | V39: 6.362322967 | W39: 7.770631997 | X39: 5.095074002 | Y39: 0 | Z39: =F27 -> 6.137821373 | AA39: 5.904414625 | AB39: 6.077953345 | AC39: 6.87984914 | AD39: 4.26876518 | AE39: 0 | AF39: =F28 -> 5.899202729 | AG39: 5.869760115 | AH39: 5.96525022 | AI39: 7.742213292 | AJ39: 5.331822526 | AK39: 0
H40: inférieure de la gamme des tractions
H41: moteur 1 | I41: moteur 2 | J41: moteur 3
F42: =IF(L42>0,1,0) -> 0 | G42: hélice 1 | H42: =IF((F16+F21)>0,(F16+F21)/2,"") -> 7.915537332 | I42: =IF((F17+F22)>0,(F17+F22)/2,"") -> 7.602605496 | J42: =IF((F18+F23)>0,(F18+F23)/2,"") -> 7.062602384 | K42: hélice 1 | L42: =IF(MAX(H42:J42)=$M$51,1,0) -> 0 | M42: =CONCATENATE('test hélices'!C12," ",FIXED('test hélices'!C13,1)," x ",FIXED('test hélices'!C14,2)) -> RCTimer 13,0 x 4,00
F43: =IF(L43>0,2,0) -> 0 | G43: hélice 2 | H43: =IF((G16+G21)>0,(G16+G21)/2,"") -> 8.58155433 | I43: =IF((G17+G22)>0,(G17+G22)/2,"") -> 8.113007243 | J43: =IF((G18+G23)>0,(G18+G23)/2,"") -> 7.592147352 | K43: hélice 2 | L43: 0 | M43: =CONCATENATE('test hélices'!C25," ",FIXED('test hélices'!C26,1)," x ",FIXED('test hélices'!C27,2)) -> RCTimer 13,0 x 6,50
F44: =IF(L44>0,3,0) -> 0 | G44: hélice 3 | H44: =IF((H16+H21)>0,(H16+H21)/2,"") -> 7.551331768 | I44: =IF((H17+H22)>0,(H17+H22)/2,"") -> 7.110411031 | J44: =IF((H18+H23)>0,(H18+H23)/2,"") -> 6.819423476 | K44: hélice 3 | L44: 0 | M44: =CONCATENATE('test hélices'!C38," ",FIXED('test hélices'!C39,1)," x ",FIXED('test hélices'!C40,2)) -> RCTimer 14,0 x 4,70
F45: =IF(L45>0,4,0) -> 4 | G45: hélice 4 | H45: =IF((I16+I21)>0,(I16+I21)/2,"") -> 10.49088578 | I45: =IF((I17+I22)>0,(I17+I22)/2,"") -> 9.006053302 | J45: =IF((I18+I23)>0,(I18+I23)/2,"") -> 9.565792859 | K45: hélice 4 | L45: 1 | M45: =CONCATENATE('test hélices'!C51," ",FIXED('test hélices'!C52,1)," x ",FIXED('test hélices'!C53,2)) -> RCTimer 18,0 x 4,00
F46: =IF(L46>0,5,0) -> 0 | G46: hélice 5 | H46: =IF((J16+J21)>0,(J16+J21)/2,"") -> 7.861516878 | I46: =IF((J17+J22)>0,(J17+J22)/2,"") -> 6.367848616 | J46: =IF((J18+J23)>0,(J18+J23)/2,"") -> 7.183964009 | K46: hélice 5 | L46: 0 | M46: =CONCATENATE('test hélices'!C64," ",FIXED('test hélices'!C65,1)," x ",FIXED('test hélices'!C66,2)) -> HK 18,0 x 5,50
F47: =IF(L47>0,6,0) -> 0 | G47: hélice 6 | H47: =IF((K16+K21)>0,(K16+K21)/2,"") ->  | I47: =IF((K17+K22)>0,(K17+K22)/2,"") ->  | J47: =IF((K18+K23)>0,(K18+K23)/2,"") ->  | K47: hélice 6 | L47: 0 | M47: =CONCATENATE('test hélices'!C77," ",FIXED('test hélices'!C78,1)," x ",FIXED('test hélices'!C79,2)) -> 0,0 x 0,00
H48: moteur 1 | I48: moteur 2 | J48: moteur 3
H49: =IF(MAX(H42:H47)=$M$51,1,0) -> 1 | I49: =IF(MAX(I42:I47)=$M$51,1,0) -> 0 | J49: =IF(MAX(J42:J47)=$M$51,1,0) -> 0
L51: efficacité maximale dans la moitié inférieure de la plage des tractions: | M51: =MAX(H42:J47) -> 10.49088578 | N51: grs/watt
G52: avec le | H52: =CONCATENATE(IF(H49=1,H48,""),IF(I49=1,I48,""),IF(J49=1,J48,""),":") -> moteur 1: | I52: =CONCATENATE(IF(H49=1,M16,""),IF(I49=1,M17,""),IF(J49=1,M18,"")) -> Turnigy Multistar 4014-320KV 22 Poles
G53: et l' | H53: =CONCATENATE(IF(L42=1,K42,""),IF(L43=1,K43,""),IF(L44=1,K44,""),IF(L45=1,K45,""),IF(L46=1,K46,""),IF(L47=1,K47,""),":") -> hélice 4: | I53: =INDEX(M42:M47,SUM(F42:F47),1) -> RCTimer 18,0 x 4,00
H54: batterie: | I54: =IF(H49=1,moteurs!E11,IF(I49=1,moteurs!E43,IF(J49=1,moteurs!E75,""))) -> 6 | J54: S

Sheet LiPo
S1: 1 | T1: 2 | U1: 3 | V1: 4 | W1: 5 | X1: 6 | AA1: 1 | AB1: 2 | AC1: 3
B2: Rappel: | S2: hélice 1 | T2: hélice 2 | U2: hélice 3 | V2: hélice 4 | W2: hélice 5 | X2: hélice 6 | AA2: =moteurs!E7 -> Turnigy Multistar | AB2: =moteurs!E39 -> Turnigy Multistar | AC2: =moteurs!E71 -> Turnigy
H3: ='moteur-hélice'!L51 -> efficacité maximale dans la moitié inférieure de la plage des tractions: | I3: ='moteur-hélice'!M51 -> 10.49088578 | J3: ='moteur-hélice'!N51 -> grs/watt | N3: Choix moteur | O3: 1 | R3: n100W | S3: =moteurs!Q5 -> 5700 | T3: =moteurs!R5 -> 5100 | U3: =moteurs!S5 -> 5350 | V3: =moteurs!T5 -> 3450 | W3: =moteurs!U5 -> 3020 | X3: =moteurs!V5 ->  | Y3: =HLOOKUP(O4,S1:X8,3,FALSE) -> 3450 | Z3: n100W | AA3: =moteurs!E8 -> 4014-320KV 22 Poles | AB3: =moteurs!E40 -> 4230-400Kv 16 Poles | AC3: =moteurs!E72 -> 4260 500KV
G4: ='moteur-hélice'!G52 -> avec le | H4: ='moteur-hélice'!H52 -> moteur 1: | J4: ='moteur-hélice'!I52 -> Turnigy Multistar 4014-320KV 22 Poles | N4: Choix hélice | O4: 4 | R4: n10N | S4: =moteurs!Q6 -> 5857 | T4: =moteurs!R6 -> 5100 | U4: =moteurs!S6 -> 5500 | V4: =moteurs!T6 -> 3200 | W4: =moteurs!U6 -> 3150 | X4: =moteurs!V6 ->  | Y4: =HLOOKUP(O4,S1:X8,4,FALSE) -> 3200 | Z4: n10N | AA4: =moteurs!E9 -> 720 | AB4: =moteurs!E41 -> 550 | AC4: =moteurs!E73 -> 1000 | AD4: =HLOOKUP($O$3,$AA$1:$AC$9,4,FALSE) -> 720 | AE4: =moteurs!F9 -> watts
G5: ='moteur-hélice'!G53 -> et l' | H5: ='moteur-hélice'!H53 -> hélice 4: | J5: ='moteur-hélice'!N53 -> 0 | N5: poids du quadricoptère | O5: =moteurs!E4 -> 4250 | P5: grs | R5: kf | S5: =moteurs!Q7 -> 39 | T5: =moteurs!R7 -> 45 | U5: =moteurs!S7 -> 39 | V5: =moteurs!T7 -> 85 | W5: =moteurs!U7 -> 90 | X5: =moteurs!V7 -> 0 | Y5: =HLOOKUP(O4,S1:X8,5,FALSE) -> 85 | Z5: kf | AA5: =moteurs!E10 -> 320 | AB5: =moteurs!E42 -> 400 | AC5: =moteurs!E74 -> 500 | AD5: =HLOOKUP($O$3,$AA$1:$AC$9,5,FALSE) -> 320 | AE5: KV
R6: exp_f | S6: =moteurs!Q8 -> 1.85 | T6: =moteurs!R8 -> 1,92 | U6: =moteurs!S8 -> 1.91 | V6: =moteurs!T8 -> 2,11 | W6: =moteurs!U8 -> 2.11 | X6: =moteurs!V8 -> 0 | Y6: =HLOOKUP(O4,S1:X8,6,FALSE) -> 2,11 | Z6: exp_f | AA6: =moteurs!E11 -> 6 | AB6: =moteurs!E43 -> 6 | AC6: =moteurs!E75 -> 6 | AD6: =moteurs!F11 -> S
B7: Batterie LiPo | C7: 1 | D7: 2 | E7: 3 | N7: Le poids est considéré avec la batterie la plus lourde : | O7: =MAX(C9:E9) -> 1320 | P7: grs | R7: kp | S7: =moteurs!Q9 -> 1.6 | T7: =moteurs!R9 -> 1,1 | U7: =moteurs!S9 -> 2.2 | V7: =moteurs!T9 -> 2,6 | W7: =moteurs!U9 -> 2.5 | X7: =moteurs!V9 -> 0 | Y7: =HLOOKUP(O4,S1:X8,7,FALSE) -> 2,6 | Z7: kp | AA7: =moteurs!E12 -> 0.102 | AB7: =moteurs!E44 -> 0.24 | AC7: =moteurs!E76 -> 0.019 | AD7: =HLOOKUP($O$3,$AA$1:$AC$9,7,FALSE) -> 0.102 | AE7: =moteurs!F12 -> ohm(s)
B8: capacité | C8: 6600 | D8: 8000 | E8: 10000 | F8: mAh | N8: poids sans batterie | O8: =O5-O7 -> 2930 | P8: grs | R8: exp_p | S8: =moteurs!Q10 -> 2.43 | T8: =moteurs!R10 -> 2,8 | U8: =moteurs!S10 -> 2.36 | V8: =moteurs!T10 -> 2,95 | W8: =moteurs!U10 -> 3.27 | X8: =moteurs!V10 -> 0 | Y8: =HLOOKUP(O4,S1:X8,8,FALSE) -> 2,95 | Z8: exp_p | AA8: =moteurs!E13 -> 0.7 | AB8: =moteurs!E45 -> 0.6 | AC8: =moteurs!E77 -> 1.36 | AD8: =HLOOKUP($O$3,$AA$1:$AC$9,8,FALSE) -> 0.7 | AE8: =moteurs!F13 -> ampères
B9: poids | C9: 855 | D9: 1110 | E9: 1320 | F9: grs | AA9: =moteurs!E14 -> 26 | AB9: =moteurs!E46 -> 25 | AC9: =moteurs!E78 -> 0 | AD9: =HLOOKUP($O$3,$AA$1:$AC$9,9,FALSE) -> 26 | AE9: =moteurs!F14 -> ampères
B10: éléments | C10: =IF(O3=1,moteurs!E11,IF(O3=2,moteurs!E43,IF(O3=3,moteurs!E75,""))) -> 6 | D10: =C10 -> 6 | E10: =C10 -> 6 | F10: S
B11: énergie | C11: =C10*C8*3.7/1000 -> 146.52 | D11: =D10*D8*3.7/1000 -> 177.6 | E11: =E10*E8*3.7/1000 -> 222 | F11: Watts.H
B12: efficacité E | C12: =C11*1000/C9 -> 171.3684211 | D12: =D11*1000/D9 -> 160 | E12: 168.1818182 | F12: W.H/Kg
B14: tractions | C14: =($O$8+C9)/4 -> 946.25 | D14: =($O$8+D9)/4 -> 1010 | E14: =($O$8+E9)/4 -> 1062.5 | F14: grs | G14: 1 | H14: x sta
C15: =(C14+C16)/2 -> 1265.609375 | D15: =(D14+D16)/2 -> 1350.875 | E15: 1421.09375 | F15: grs | G15: =(moteurs!E3-1)/4+1 -> 1.3375 | H15: x sta
C16: =(C14+C17)/2 -> 1584.96875 | D16: =(D14+D17)/2 -> 1691.75 | E16: =(E14+E17)/2 -> 1779.6875 | F16: grs | G16: =(moteurs!E3+1)/2 -> 1.675 | H16: x sta | S16: efficacité (grs/watt) selon le coefficient traction/poids | Z16: temps de vol (minutes) selon le coefficient traction/poids
C17: =C14*moteurs!$E$3 -> 2223.6875 | D17: =D14*moteurs!$E$3 -> 2373.5 | E17: =E14*moteurs!$E$3 -> 2496.875 | F17: grs | G17: =moteurs!E3 -> 2.35 | H17: x sta | Z17: =CONCATENATE("remarque: pour ",FIXED(I44,0),"% de la capacité de la batterie !!!") -> remarque: pour 70% de la capacité de la batterie !!!
F19: Batterie | G19: 1 | H19: 2 | I19: 3
F20: vitesse de rotation en stationnaire | G20: =IF($Y$5*$Y$6>0,(C$14/$Y$5)^(1/$Y$6)*1000,0) -> 3133.377932 | H20: =IF($Y$5*$Y$6>0,(D$14/$Y$5)^(1/$Y$6)*1000,0) -> 3231.71043 | I20: =IF($Y$5*$Y$6>0,(E$14/$Y$5)^(1/$Y$6)*1000,0) -> 3310.2635 | J20: trs/min
F21: puissance mécanique en stationnaire | G21: =$Y$7*(G20/1000)^$Y$8 -> 75.54592625 | H21: =$Y$7*(H20/1000)^$Y$8 -> 82.75591512 | I21: 88.83168824 | J21: watts
F22: courant en stationnaire | G22: =$AD$5*G21/G20+$AD$8 -> 8.415218822 | H22: =$AD$5*H21/H20+$AD$8 -> 8.894389137 | I22: 9.287274166 | J22: ampères
F23: tension en stationnaire | G23: =G21/(G22-$AD$8)+(G22*$AD$7) -> 10.65015836 | H23: =H21/(H22-$AD$8)+(H22*$AD$7) -> 11.00632278 | I23: 11.2918754 | J23: volts
F24: puissance électrique en stationnaire | G24: =G22*G23 -> 89.62341308 | H24: =H22*H23 -> 97.89451782 | I24: 104.8707427 | J24: watts
F25: =CONCATENATE("vitesse de rotation pour ",FIXED((moteurs!E3-1)/4+1,2)," x traction stationnaire") -> vitesse de rotation pour 1,34 x traction stationnaire | G25: =IF($Y$5*$Y$6>0,(C$15/$Y$5)^(1/$Y$6)*1000,0) -> 3596.397256 | H25: =IF($Y$5*$Y$6>0,(D$15/$Y$5)^(1/$Y$6)*1000,0) -> 3709.260348 | I25: 3799.421207 | J25: trs/min
F26: puissance mécanique | G26: =$Y$7*(G25/1000)^$Y$8 -> 113.4443674 | H26: =$Y$7*(H25/1000)^$Y$8 -> 124.2713262 | I26: =$Y$7*(I25/1000)^$Y$8 -> 133.3950774 | J26: watts
F27: courant | G27: =$AD$5*G26/G25+$AD$8 -> 10.79404551 | H27: =$AD$5*H26/H25+$AD$8 -> 11.42095799 | I27: =$AD$5*I26/I25+$AD$8 -> 11.93498092 | J27: ampères
F28: tension | G28: =G26/(G27-$AD$8)+(G27*$AD$7) -> 12.33973407 | H28: =H26/(H27-$AD$8)+(H27*$AD$7) -> 12.7563763 | I28: =I26/(I27-$AD$8)+(I27*$AD$7) -> 13.09055933 | J28: volts
F29: puissance électrique | G29: =G27*G28 -> 133.1956511 | H29: =H27*H28 -> 145.6900379 | I29: =I27*I28 -> 156.2355758 | J29: watts
F30: =CONCATENATE("vitesse de rotation pour ",FIXED((moteurs!E3+1)/2,1)," x traction stationnaire") -> vitesse de rotation pour 1,7 x traction stationnaire | G30: =IF($Y$5*$Y$6>0,(C$16/$Y$5)^(1/$Y$6)*1000,0) -> 4001.114111 | H30: =IF($Y$5*$Y$6>0,(D$16/$Y$5)^(1/$Y$6)*1000,0) -> 4126.678135 | I30: 4226.985154 | J30: trs/min
F31: puissance mécanique | G31: =$Y$7*(G30/1000)^$Y$8 -> 155.3842921 | H31: =$Y$7*(H30/1000)^$Y$8 -> 170.2139338 | I31: =$Y$7*(I30/1000)^$Y$8 -> 182.710699 | J31: watts
F32: courant | G32: =$AD$5*G31/G30+$AD$8 -> 13.12728203 | H32: =$AD$5*H31/H30+$AD$8 -> 13.8991052 | I32: =$AD$5*I31/I30+$AD$8 -> 14.53194442 | J32: ampères
F33: tension | G33: =G31/(G32-$AD$8)+(G32*$AD$7) -> 13.84246436 | H33: =H31/(H32-$AD$8)+(H32*$AD$7) -> 14.3135779 | I33: =I31/(I32-$AD$8)+(I32*$AD$7) -> 14.69158694 | J33: volts
F34: puissance électrique | G34: =G32*G33 -> 181.7139337 | H34: =H32*H33 -> 198.945925 | I34: =I32*I33 -> 213.4973247 | J34: watts
F35: =CONCATENATE("vitesse de rotation pour ",FIXED(moteurs!E3,1)," x traction stationnaire") -> vitesse de rotation pour 2,4 x traction stationnaire | G35: =IF($Y$5*$Y$6>0,(C$17/$Y$5)^(1/$Y$6)*1000,0) -> 4697.581533 | H35: =IF($Y$5*$Y$6>0,(D$17/$Y$5)^(1/$Y$6)*1000,0) -> 4845.002282 | I35: 4962.76958 | J35: trs/min
F36: puissance mécanique | G36: =$Y$7*(G35/1000)^$Y$8 -> 249.4609727 | H36: =$Y$7*(H35/1000)^$Y$8 -> 273.2691504 | I36: =$Y$7*(I35/1000)^$Y$8 -> 293.3320227 | J36: watts
F37: courant | G37: =$AD$5*G36/G35+$AD$8 -> 17.69332107 | H37: =$AD$5*H36/H35+$AD$8 -> 18.74872795 | I37: =$AD$5*I36/I35+$AD$8 -> 19.61408532 | J37: ampères
F38: tension | G38: =G36/(G37-$AD$8)+(G37*$AD$7) -> 16.48466104 | H38: =H36/(H37-$AD$8)+(H37*$AD$7) -> 17.05300238 | I38: =I36/(I37-$AD$8)+(I37*$AD$7) -> 17.50929164 | J38: volts
F39: puissance électrique | G39: =G37*G38 -> 291.6684006 | H39: =H37*H38 -> 319.7221024 | I39: =I37*I38 -> 343.4287401 | J39: watts
F40: efficacité électrique en stationnaire | G40: =C14/G24 -> 10.558067 | H40: =D14/H24 -> 10.31722738 | I40: 10.13151974 | J40: grs/watt
F41: =CONCATENATE("efficacité électrique pour ",FIXED((moteurs!E3-1)/4+1,2)," x traction stationnaire") -> efficacité électrique pour 1,34 x traction stationnaire | G41: =C15/G29 -> 9.501882114 | H41: =D15/H29 -> 9.272253749 | I41: 9.095839682 | J41: grs/watt
F42: =CONCATENATE("efficacité électrique pour ",FIXED((moteurs!E3+1)/2,1)," x traction stationnaire") -> efficacité électrique pour 1,7 x traction stationnaire | G42: =C16/G34 -> 8.722329202 | H42: =D16/H34 -> 8.503566986 | I42: 8.335877286 | J42: grs/watt
F43: =CONCATENATE("efficacité électrique pour ",FIXED(moteurs!E3,1)," x traction stationnaire") -> efficacité électrique pour 2,4 x traction stationnaire | G43: =C17/G39 -> 7.624026106 | H43: =D17/H39 -> 7.423634406 | I43: 7.270431122 | J43: grs/watt
H44: pourcentage de la capacité de batterie utilisé | I44: 70 | J44: %
F45: temps de vol en stationnaire | G45: =$I$44/400*C$11/G24*60 -> 17.16582695 | H45: =$I$44/400*D$11/H24*60 -> 19.04907488 | I45: 22.22736237 | J45: min
F46: =CONCATENATE("temps de vol pour ",FIXED((moteurs!E3-1)/4+1,2)," x traction stationnaire") -> temps de vol pour 1,34 x traction stationnaire | G46: =$I$44/400*C11/G29*60 -> 11.55037711 | H46: =$I$44/400*D11/H29*60 -> 12.79977703 | I46: 14.91977732 | J46: min
F47: =CONCATENATE("temps de vol pour ",FIXED((moteurs!E3+1)/2,1)," x traction stationnaire") -> temps de vol pour 1,7 x traction stationnaire | G47: =$I$44/400*C11/G34*60 -> 8.466384327 | H47: =$I$44/400*D11/H34*60 -> 9.37340134 | I47: 10.9181696 | J47: min | M47: =CONCATENATE("évolution du temps de vol en stationnaire en fonction du poids de la batterie pour un poids de ",FIXED(I52,0)," grs sans batterie") -> évolution du temps de vol en stationnaire en fonction du poids de la batterie pour un poids de 2.930 grs sans batterie
F48: =CONCATENATE("temps de vol pour ",FIXED(moteurs!E3,1)," x traction stationnaire") -> temps de vol pour 2,4 x traction stationnaire | G48: =$I$44/400*C11/G39*60 -> 5.274688643 | H48: =$I$44/400*D11/H39*60 -> 5.832565174 | I48: 6.787434271 | J48: min | S48: =CONCATENATE("remarque: pour ",FIXED($I$44,0),"% de la capacité de la batterie !!!") -> remarque: pour 70% de la capacité de la batterie !!!
S49: le coefficient traction max/poids est ici agrandi 10 fois
B50: Effets du poids de la machine avec différentes capacité de LiPos
H52: poids de la machine sans batterie | I52: 2930 | J52: grs
C53: C batt | D53: =$C$12*D54/1000 -> 73.26 | E53: =$C$12*E54/1000 -> 126.4698947 | F53: 179.6797895 | G53: 232.8896842 | H53: 286.0995789 | I53: 339.3094737 | J53: W.H
C54: Pd batt | D54: =MIN(C9:E9)/2 -> 427.5 | E54: =D54+($I$54-$D$54)/5 -> 738 | F54: =E54+($I$54-$D$54)/5 -> 1048.5 | G54: =F54+($I$54-$D$54)/5 -> 1359 | H54: =G54+($I$54-$D$54)/5 -> 1669.5 | I54: =MAX(C9:E9)*1.5 -> 1980 | J54: grs
C55: Pd mach | D55: =D54+$I$52 -> 3357.5 | E55: 3668 | F55: 3978.5 | G55: 4289 | H55: 4599.5 | I55: 4910 | J55: grs
C56: n | D56: =$Y$4 / (10 /(D55/4*0.009806))^0.5 -> 2903.179829 | E56: =$Y$4 / (10 /(E55/4*0.009806))^0.5 -> 3034.454226 | F56: 3160.280332 | G56: 3281.284978 | H56: 3397.983289 | I56: 3510.804717 | J56: trs/min
C57: P méca | D57: =(D56/$Y$3)^3*100 -> 59.58878469 | E57: =(E56/$Y$3)^3*100 -> 68.04316189 | F57: 76.86339087 | G57: 86.03488162 | H57: 95.54466255 | I57: 105.3811016 | J57: Watts
C58: I | D58: =$AD$5*D57/D56+$AD$8 -> 7.268112285 | E58: =$AD$5*E57/E56+$AD$8 -> 7.875528179 | F58: 8.482944074 | G58: 9.090359968 | H58: 9.697775862 | I58: 10.30519176 | J58: Amp.
C59: V | D59: =D57/(D58-$AD$8)+(D58*$AD$7) -> 9.813784419 | E59: =E57/(E58-$AD$8)+(E58*$AD$7) -> 10.28597333 | F59: 10.74113633 | G59: 11.18123227 | H59: 11.60787092 | I59: 12.0223943 | J59: Volts
C60: P élec 4 moteurs | D60: =D58*D59*4 -> 285.3107484 | E60: =E58*E59*4 -> 324.0298912 | F60: 364.4658352 | G60: 406.5657049 | H60: 450.2821215 | I60: 495.5723145 | J60: Watts
C61: temps de vol | D61: =60*D53/D60*$I$44/100 -> 10.78445175 | E61: =60*E53/E60*$I$44/100 -> 16.39273327 | F61: =60*F53/F60*$I$44/100 -> 20.70578482 | G61: 24.05851408 | H61: 26.685897 | I61: 28.75664656 | J61: min
C62: coefficient tr.max/poids | D62: =4*MAX($C$17:$E$17)/D55 -> 2.974683544 | E62: =4*MAX($C$17:$E$17)/E55 -> 2.722873501 | F62: 2.510368229 | G62: 2.328631383 | H62: 2.171431677 | I62: 2.034114053
D63: =D62*10 -> 29.74683544 | E63: =E62*10 -> 27.22873501 | F63: 25.10368229 | G63: 23.28631383 | H63: 21.71431677 | I63: =I62*10 -> 20.34114053

Sheet pour info
D1: Pour information, voici des relevés d'hélices surprenants.
D2: Les pas sont loin de correspondre à la théorie et, au delà de 15° d'incidence, un profil décroche.
D3: Il n'y a vraiment aucun intérêt à choisir de grands pas !
D5: hélices | F5: angles à
D6: diamètre | E6: pas | F6: 25 | G6: 50 | H6: 75 | I6: 100 | J6: % du diamètre
D7: 13 | E7: 4 | F7: 18.4 | G7: 11.8 | H7: 7.7 | I7: 6.5 | J7: degrés mesurés
F8: =TAN(F7/180*PI())*PI()*$D$7*F6/100 -> 3.396473534 | G8: =TAN(G7/180*PI())*PI()*$D$7*G6/100 -> 4.266033847 | H8: 4.14140992 | I8: 4.65321051 | J8: pas correspondant
F9: =ATAN($E7/($D7*F6/100*PI()))*180/PI() -> 21.39355777 | G9: =ATAN($E7/($D7*G6/100*PI()))*180/PI() -> 11.08294017 | H9: =ATAN($E7/($D7*H6/100*PI()))*180/PI() -> 7.440077471 | I9: =ATAN($E7/($D7*I6/100*PI()))*180/PI() -> 5.593794083 | J9: dégrés théoriques
D10: 14 | E10: 7 | F10: 17.7 | G10: 9.1 | H10: 5 | I10: 2 | J10: degrés mesurés
F11: =TAN(F$10/180*PI())*PI()*$D$10*F6/100 -> 3.509135378 | G11: =TAN(G$10/180*PI())*PI()*$D$10*G6/100 -> 3.522411305 | H11: 2.885964297 | I11: 1.535895661 | J11: pas correspondant
F12: =ATAN($E10/($D10*F6/100*PI()))*180/PI() -> 32.48163659 | G12: =ATAN($E10/($D10*G6/100*PI()))*180/PI() -> 17.65678715 | H12: =ATAN($E10/($D10*H6/100*PI()))*180/PI() -> 11.98081357 | I12: =ATAN($E10/($D10*I6/100*PI()))*180/PI() -> 9.043061079 | J12: dégrés théoriques
D13: 18 | E13: 4 | F13: 22 | G13: 15 | H13: 10.8 | I13: 8.5 | J13: degrés mesurés
F14: =TAN(F$13/180*PI())*PI()*$D$13*F6/100 -> 5.711786203 | G14: =TAN(G$13/180*PI())*PI()*$D$13*G6/100 -> 7.57608493 | H14: 8.090426473 | I14: 8.451255022 | J14: pas correspondant
F15: =ATAN($E13/($D13*F6/100*PI()))*180/PI() -> 15.7984427 | G15: =ATAN($E13/($D13*G6/100*PI()))*180/PI() -> 8.052258962 | H15: =ATAN($E13/($D13*H6/100*PI()))*180/PI() -> 5.387858929 | I15: =ATAN($E13/($D13*I6/100*PI()))*180/PI() -> 4.046108072 | J15: dégrés théoriques
D43: En bleu la traction par unité de surface selon le diamètre
D44: En rouge la somme des tractions par unité de surface à l'intérieur d'une portion du diamètre
AF50: portion | AH50: traction/surface
AE51: traction | AF51: surface | AH51: %
AD52: 1 | AE52: =(AD52/100)^3 -> 1e-06 | AF52: =(AD53-AD52)*(AE52+AE53)/2 -> 4.5e-06 | AG52: =AF52+AG53 -> 26.0024995 | AH52: =AG52*100/26.0025 -> 99.99999808 | AI52: =(100-AH52)/96.154 -> 1.999804536e-08
AD53: 2 | AE53: =(AD53/100)^3 -> 8e-06 | AF53: =(AD54-AD53)*(AE53+AE54)/2 -> 1.75e-05 | AG53: =AF53+AG54 -> 26.002495 | AH53: =AG53*100/26.0025 -> 99.99998077 | AI53: 1.999804514e-07
AD54: 3 | AE54: =(AD54/100)^3 -> 2.7e-05 | AF54: 4.55e-05 | AG54: =AF54+AG55 -> 26.0024775 | AH54: 99.99991347 | AI54: 8.999120303e-07
AD55: 4 | AE55: 6.4e-05 | AF55: 9.45e-05 | AG55: =AF55+AG56 -> 26.002432 | AH55: 99.99973849 | AI55: 2.719734135e-06
AD56: 5 | AE56: 0.000125 | AF56: 0.0001705 | AG56: 26.0023375 | AH56: =AG56*100/26.0025 -> 99.99937506 | AI56: 6.499364661e-06
AD57: 6 | AE57: 0.000216 | AF57: 0.0002795 | AG57: 26.002167 | AH57: 99.99871935 | AI57: 1.331869804e-05
AD58: 7 | AE58: 0.000343 | AF58: 0.0004275 | AG58: 26.0018875 | AH58: 99.99764446 | AI58: 2.449760526e-05
AD59: 8 | AE59: 0.000512 | AF59: 0.0006205 | AG59: 26.00146 | AH59: 99.99600038 | AI59: 4.159593383e-05
AD60: 9 | AE60: 0.000729 | AF60: 0.0008645 | AG60: 26.0008395 | AH60: 99.99361408 | AI60: 6.641350781e-05
AD61: 10 | AE61: 0.001 | AF61: 0.0011655 | AG61: 25.999975 | AH61: 99.9902894 | AI61: 0.0001009901278
AD62: 11 | AE62: 0.001331 | AF62: 0.0015295 | AG62: 25.9988095 | AH62: 99.98580713 | AI62: 0.000147605571
AD63: 12 | AE63: 0.001728 | AF63: 0.0019625 | AG63: 25.99728 | AH63: 99.97992501 | AI63: 0.000208779591
AD64: 13 | AE64: 0.002197 | AF64: 0.0024705 | AG64: 25.9953175 | AH64: 99.97237766 | AI64: 0.000287271918
AD65: 14 | AE65: 0.002744 | AF65: 0.0030595 | AG65: 25.992847 | AH65: 99.96287665 | AI65: 0.0003860822589
AD66: 15 | AE66: 0.003375 | AF66: 0.0037355 | AG66: 25.9897875 | AH66: 99.95111047 | AI66: 0.0005084502969
AD67: 16 | AE67: 0.004096 | AF67: 0.0045045 | AG67: 25.986052 | AH67: 99.93674454 | AI67: 0.000657855692
AD68: 17 | AE68: 0.004913 | AF68: 0.0053725 | AG68: 25.9815475 | AH68: 99.91942121 | AI68: 0.0008380180804
AD69: 18 | AE69: 0.005832 | AF69: 0.0063455 | AG69: 25.976175 | AH69: 99.89875973 | AI69: 0.001052897075
AD70: 19 | AE70: 0.006859 | AF70: 0.0074295 | AG70: 25.9698295 | AH70: 99.87435631 | AI70: 0.001306692266
AD71: 20 | AE71: 0.008 | AF71: 0.0086305 | AG71: 25.9624 | AH71: 99.84578406 | AI71: 0.001603843218
AD72: 21 | AE72: 0.009261 | AF72: 0.0099545 | AG72: 25.9537695 | AH72: 99.81259302 | AI72: 0.001949029475
AD73: 22 | AE73: 0.010648 | AF73: 0.0114075 | AG73: 25.943815 | AH73: 99.77431016 | AI73: 0.002347170555
AD74: 23 | AE74: 0.012167 | AF74: 0.0129955 | AG74: 25.9324075 | AH74: 99.73043938 | AI74: 0.002803425954
AD75: 24 | AE75: 0.013824 | AF75: 0.0147245 | AG75: 25.919412 | AH75: 99.68046149 | AI75: 0.003323195144
AD76: 25 | AE76: 0.015625 | AF76: 0.0166005 | AG76: 25.9046875 | AH76: 99.62383425 | AI76: 0.003912117575
AD77: 26 | AE77: 0.017576 | AF77: 0.0186295 | AG77: 25.888087 | AH77: 99.55999231 | AI77: 0.004576072671
AD78: 27 | AE78: 0.019683 | AF78: 0.0208175 | AG78: 25.8694575 | AH78: 99.48834727 | AI78: 0.005321179833
AD79: 28 | AE79: 0.021952 | AF79: 0.0231705 | AG79: 25.84864 | AH79: 99.40828766 | AI79: 0.006153798442
AD80: 29 | AE80: 0.024389 | AF80: 0.0256945 | AG80: 25.8254695 | AH80: 99.31917893 | AI80: 0.00708052785
AD81: 30 | AE81: 0.027 | AF81: 0.0283955 | AG81: 25.799775 | AH81: 99.22036343 | AI81: 0.00810820739
AD82: 31 | AE82: 0.029791 | AF82: 0.0312795 | AG82: 25.7713795 | AH82: 99.11116047 | AI82: 0.00924391637
AD83: 32 | AE83: 0.032768 | AF83: 0.0343525 | AG83: 25.7401 | AH83: 98.99086626 | AI83: 0.01049497407
AD84: 33 | AE84: 0.035937 | AF84: 0.0376205 | AG84: 25.7057475 | AH84: 98.85875397 | AI84: 0.01186893976
AD85: 34 | AE85: 0.039304 | AF85: 0.0410895 | AG85: 25.668127 | AH85: 98.71407365 | AI85: 0.01337361268
AD86: 35 | AE86: 0.042875 | AF86: 0.0447655 | AG86: 25.6270375 | AH86: 98.5560523 | AI86: 0.01501703203
AD87: 36 | AE87: 0.046656 | AF87: 0.0486545 | AG87: 25.582272 | AH87: 98.38389386 | AI87: 0.016807477
AD88: 37 | AE88: 0.050653 | AF88: 0.0527625 | AG88: 25.5336175 | AH88: 98.19677916 | AI88: 0.01875346677
AD89: 38 | AE89: 0.054872 | AF89: 0.0570955 | AG89: 25.480855 | AH89: 97.99386597 | AI89: 0.02086376048
AD90: 39 | AE90: 0.059319 | AF90: 0.0616595 | AG90: 25.4237595 | AH90: 97.77428901 | AI90: 0.02314735725
AD91: 40 | AE91: 0.064 | AF91: 0.0664605 | AG91: 25.3621 | AH91: 97.53715989 | AI91: 0.02561349618
AD92: 41 | AE92: 0.068921 | AF92: 0.0715045 | AG92: 25.2956395 | AH92: 97.28156716 | AI92: 0.02827165633
AD93: 42 | AE93: 0.074088 | AF93: 0.0767975 | AG93: 25.224135 | AH93: 97.00657629 | AI93: 0.03113155677
AD94: 43 | AE94: 0.079507 | AF94: 0.0823455 | AG94: 25.1473375 | AH94: 96.71122969 | AI94: 0.0342031565
AD95: 44 | AE95: 0.085184 | AF95: 0.0881545 | AG95: 25.064992 | AH95: 96.39454668 | AI95: 0.03749665455
AD96: 45 | AE96: 0.091125 | AF96: 0.0942305 | AG96: 24.9768375 | AH96: 96.05552351 | AI96: 0.04102248989
AD97: 46 | AE97: 0.097336 | AF97: 0.1005795 | AG97: 24.882607 | AH97: 95.69313335 | AI97: 0.04479134147
AD98: 47 | AE98: 0.103823 | AF98: 0.1072075 | AG98: 24.7820275 | AH98: 95.30632631 | AI98: 0.04881412822
AD99: 48 | AE99: 0.110592 | AF99: 0.1141205 | AG99: 24.67482 | AH99: 94.89402942 | AI99: 0.05310200907
AD100: 49 | AE100: 0.117649 | AF100: 0.1213245 | AG100: 24.5606995 | AH100: 94.45514662 | AI100: 0.05766638288
AD101: 50 | AE101: 0.125 | AF101: 0.1288255 | AG101: 24.439375 | AH101: 93.98855879 | AI101: 0.06251888853
AD102: 51 | AE102: 0.132651 | AF102: 0.1366295 | AG102: 24.3105495 | AH102: 93.49312374 | AI102: 0.06767140485
AD103: 52 | AE103: 0.140608 | AF103: 0.1447425 | AG103: 24.17392 | AH103: 92.96767618 | AI103: 0.07313605066
AD104: 53 | AE104: 0.148877 | AF104: 0.1531705 | AG104: 24.0291775 | AH104: 92.41102779 | AI104: 0.07892518475
AD105: 54 | AE105: 0.157464 | AF105: 0.1619195 | AG105: 23.876007 | AH105: 91.82196712 | AI105: 0.08505140588
AD106: 55 | AE106: 0.166375 | AF106: 0.1709955 | AG106: 23.7140875 | AH106: 91.19925969 | AI106: 0.09152755282
AD107: 56 | AE107: 0.175616 | AF107: 0.1804045 | AG107: 23.543092 | AH107: 90.54164792 | AI107: 0.09836670426
AD108: 57 | AE108: 0.185193 | AF108: 0.1901525 | AG108: 23.3626875 | AH108: 89.84785117 | AI108: 0.1055821789
AD109: 58 | AE109: 0.195112 | AF109: 0.2002455 | AG109: 23.172535 | AH109: 89.11656571 | AI109: 0.1131875355
AD110: 59 | AE110: 0.205379 | AF110: 0.2106895 | AG110: 22.9722895 | AH110: 88.34646476 | AI110: 0.1211965726
AD111: 60 | AE111: 0.216 | AF111: 0.2214905 | AG111: 22.7616 | AH111: 87.53619844 | AI111: 0.1296233288
AD112: 61 | AE112: 0.226981 | AF112: 0.2326545 | AG112: 22.5401095 | AH112: 86.68439381 | AI112: 0.1384820828
AD113: 62 | AE113: 0.238328 | AF113: 0.2441875 | AG113: 22.307455 | AH113: 85.78965484 | AI113: 0.1477873532
AD114: 63 | AE114: 0.250047 | AF114: 0.2560955 | AG114: 22.0632675 | AH114: 84.85056245 | AI114: 0.1575538985
AD115: 64 | AE115: 0.262144 | AF115: 0.2683845 | AG115: 21.807172 | AH115: 83.86567445 | AI115: 0.1677967172
AD116: 65 | AE116: 0.274625 | AF116: 0.2810605 | AG116: 21.5387875 | AH116: 82.83352562 | AI116: =(100-AH116)/96.154 -> 0.1785310479
AD117: 66 | AE117: 0.287496 | AF117: =(AD118-AD117)*(AE117+AE118)/2 -> 0.2941295 | AG117: 21.257727 | AH117: =AG117*100/26.0025 -> 81.75262763 | AI117: 0.189772369
AD118: 67 | AE118: =(AD118/100)^3 -> 0.300763 | AF118: 0.3075975 | AG118: 20.9635975 | AH118: 80.62146909 | AI118: 0.201536399
AD119: 68 | AE119: 0.314432 | AF119: 0.3214705 | AG119: =AF119+AG120 -> 20.656 | AH119: 79.43851553 | AI119: 0.2138390964
AD120: 69 | AE120: 0.328509 | AF120: 0.3357545 | AG120: 20.3345295 | AH120: 78.2022094 | AI120: 0.2266966595
AD121: 70 | AE121: 0.343 | AF121: 0.3504555 | AG121: 19.998775 | AH121: 76.9109701 | AI121: 0.2401255268
AD122: 71 | AE122: 0.357911 | AF122: 0.3655795 | AG122: 19.6483195 | AH122: 75.56319392 | AI122: 0.2541423766
AD123: 72 | AE123: 0.373248 | AF123: 0.3811325 | AG123: 19.28274 | AH123: 74.15725411 | AI123: 0.2687641272
AD124: 73 | AE124: 0.389017 | AF124: 0.3971205 | AG124: 18.9016075 | AH124: 72.69150082 | AI124: 0.2840079371
AD125: 74 | AE125: 0.405224 | AF125: 0.4135495 | AG125: 18.504487 | AH125: 71.16426113 | AI125: 0.2998912044
AD126: 75 | AE126: 0.421875 | AF126: 0.4304255 | AG126: 18.0909375 | AH126: 69.57383905 | AI126: 0.3164315675
AD127: 76 | AE127: 0.438976 | AF127: 0.4477545 | AG127: 17.660512 | AH127: 67.91851553 | AI127: 0.3336469047
AD128: 77 | AE128: 0.456533 | AF128: 0.4655425 | AG128: 17.2127575 | AH128: 66.19654841 | AI128: 0.3515553341
AD129: 78 | AE129: 0.474552 | AF129: 0.4837955 | AG129: 16.747215 | AH129: 64.40617248 | AI129: 0.3701752139
AD130: 79 | AE130: 0.493039 | AF130: 0.5025195 | AG130: 16.2634195 | AH130: 62.54559946 | AI130: 0.3895251424
AD131: 80 | AE131: 0.512 | AF131: 0.5217205 | AG131: 15.7609 | AH131: 60.61301798 | AI131: 0.4096239576
AD132: 81 | AE132: 0.531441 | AF132: 0.5414045 | AG132: 15.2391795 | AH132: 58.6065936 | AI132: 0.4304907378
AD133: 82 | AE133: 0.551368 | AF133: 0.5615775 | AG133: 14.697775 | AH133: 56.5244688 | AI133: 0.452144801
AD134: 83 | AE134: 0.571787 | AF134: 0.5822455 | AG134: 14.1361975 | AH134: 54.364763 | AI134: 0.4746057054
AD135: 84 | AE135: 0.592704 | AF135: 0.6034145 | AG135: 13.553952 | AH135: 52.12557254 | AI135: 0.4978932489
AD136: 85 | AE136: 0.614125 | AF136: 0.6250905 | AG136: 12.9505375 | AH136: 49.80497068 | AI136: 0.5220274697
AD137: 86 | AE137: 0.636056 | AF137: 0.6472795 | AG137: 12.325447 | AH137: 47.4010076 | AI137: 0.5470286458
AD138: 87 | AE138: 0.658503 | AF138: 0.6699875 | AG138: 11.6781675 | AH138: 44.91171041 | AI138: 0.572917295
AD139: 88 | AE139: 0.681472 | AF139: 0.6932205 | AG139: 11.00818 | AH139: 42.33508317 | AI139: 0.5997141755
AD140: 89 | AE140: 0.704969 | AF140: 0.7169845 | AG140: 10.3149595 | AH140: 39.66910682 | AI140: 0.6274402852
AD141: 90 | AE141: 0.729 | AF141: 0.7412855 | AG141: 9.597975 | AH141: 36.91173926 | AI141: 0.656116862
AD142: 91 | AE142: 0.753571 | AF142: 0.7661295 | AG142: 8.8566895 | AH142: 34.0609153 | AI142: 0.6857653837
AD143: 92 | AE143: 0.778688 | AF143: 0.7915225 | AG143: 8.09056 | AH143: 31.11454668 | AI143: 0.7164075683
AD144: 93 | AE144: 0.804357 | AF144: 0.8174705 | AG144: 7.2990375 | AH144: 28.07052207 | AI144: 0.7480653736
AD145: 94 | AE145: 0.830584 | AF145: 0.8439795 | AG145: 6.481567 | AH145: 24.92670705 | AI145: 0.7807609975
AD146: 95 | AE146: 0.857375 | AF146: 0.8710555 | AG146: 5.6375875 | AH146: 21.68094414 | AI146: 0.8145168777
AD147: 96 | AE147: 0.884736 | AF147: 0.8987045 | AG147: 4.766532 | AH147: 18.33105278 | AI147: 0.8493556921
AD148: 97 | AE148: 0.912673 | AF148: 0.9269325 | AG148: 3.8678275 | AH148: 14.87482934 | AI148: 0.8853003583
AD149: 98 | AE149: 0.941192 | AF149: 0.9557455 | AG149: 2.940895 | AH149: 11.31004711 | AI149: 0.9223740342
AD150: 99 | AE150: 0.970299 | AF150: 0.9851495 | AG150: =AF150+AG151 -> 1.9851495 | AH150: 7.634456302 | AI150: 0.9606001175
AD151: 100 | AE151: 1 | AF151: 1 | AG151: 1 | AH151: =AG151*100/26.0025 -> 3.845784059 | AI151: =(100-AH151)/96.154 -> 1.000002246

Sheet mesures hélices
A1: diamètre hélice conseillé | D1: =taille!E6 -> 18
G2: moteur de test | H2: P | I2: ='moteur test'!T6 -> 720 | J2: watts | L2: gamme des forces de traction conseillée pour les test | U2: =IF(V2*X2>0,CONCATENATE(B10," ",C11),"") -> Helice 1 RCTimer | V2: =C12 -> 13 | W2: =IF(V2*X2>0,"x","") -> x | X2: =C13 -> 4 | Y2: =E19 -> 8.67266924 | Z2: =IF(Y2>0,"grs/watt","") -> grs/watt | AD2: =IF(Y2=MAX($Y$2,$Y$3,$Y$4,$Y$5,$Y$6,$Y$7),CONCATENATE(" à ",FIXED(E17,0)," trs/min, meilleure hélice"),CONCATENATE(" à ",FIXED(E17,0)," trs/min ")) -> à 5.862 trs/min
G3: =IF('moteur test'!R3="","",'moteur test'!R3) -> 4014-320KV 22 Poles | H3: KV | I3: ='moteur test'!T7 -> 320 | L3: ='moteur test'!AE29*0.8 -> 850.4 | M3: =($Q$3-$L$3)/5+L3 -> 1106.32 | N3: =($Q$3-$L$3)/5+M3 -> 1362.24 | O3: =($Q$3-$L$3)/5+N3 -> 1618.16 | P3: =($Q$3-$L$3)/5+O3 -> 1874.08 | Q3: ='moteur test'!AN29 -> 2130 | R3: grs | U3: =IF(V3*X3>0,CONCATENATE(B25," ",C26),"") -> Helice 2 RCTimer | V3: =C27 -> 13 | W3: x | X3: =C28 -> 6.5 | Y3: =E34 -> 8.564277685 | Z3: grs/watt | AD3: =IF(Y3=MAX($Y$2,$Y$3,$Y$4,$Y$5,$Y$6,$Y$7),CONCATENATE(" à ",FIXED(E32,0)," trs/min, meilleure hélice"),CONCATENATE(" à ",FIXED(E32,0)," trs/min ")) -> à 5.155 trs/min
H4: V | I4: ='moteur test'!T8*3.7 -> 22.2 | J4: volts | U4: =IF(V4*X4>0,CONCATENATE(B40," ",C41),"") -> Helice 3 RCTimer | V4: =C42 -> 14 | W4: x | X4: =C43 -> 4.7 | Y4: =E49 -> 8.55492587 | Z4: grs/watt | AD4: =IF(Y4=MAX($Y$2,$Y$3,$Y$4,$Y$5,$Y$6,$Y$7),CONCATENATE(" à ",FIXED(E47,0)," trs/min, meilleure hélice"),CONCATENATE(" à ",FIXED(E47,0)," trs/min ")) -> à 5.640 trs/min
H5: ri | I5: ='moteur test'!T9 -> 0.102 | J5: ohm | U5: =IF(V5*X5>0,CONCATENATE(B55," ",C56),"") -> Helice 4 Turnigy | V5: =C57 -> 18 | W5: x | X5: =C58 -> 4 | Y5: =E64 -> 14.56554374 | Z5: grs/watt | AD5: =IF(Y5=MAX($Y$2,$Y$3,$Y$4,$Y$5,$Y$6,$Y$7),CONCATENATE(" à ",FIXED(E62,0)," trs/min, meilleure hélice"),CONCATENATE(" à ",FIXED(E62,0)," trs/min ")) -> à 3.085 trs/min, meilleure hélice
H6: I0 | I6: ='moteur test'!T10 -> 0.7 | J6: ampère(s) | U6: =IF(V6*X6>0,CONCATENATE(B70," ",C71),"") -> Helice 5 Turnigy | V6: =C72 -> 18 | W6: x | X6: =C73 -> 5.5 | Y6: =E79 -> 11.09404219 | Z6: grs/watt | AD6: =IF(Y6=MAX($Y$2,$Y$3,$Y$4,$Y$5,$Y$6,$Y$7),CONCATENATE(" à ",FIXED(E77,0)," trs/min, meilleure hélice"),CONCATENATE(" à ",FIXED(E77,0)," trs/min ")) -> à 3.216 trs/min
U7: =IF(V7*X7>0,CONCATENATE(B85," ",C86),"") ->  | V7: =C87 -> 0 | X7: =C88 -> 0 | Y7: =E94 -> 0 | AD7: =IF(Y7=MAX($Y$2,$Y$3,$Y$4,$Y$5,$Y$6,$Y$7),CONCATENATE(" à ",FIXED(E92,0)," trs/min, meilleure hélice"),CONCATENATE(" à ",FIXED(E92,0)," trs/min ")) -> à 0 trs/min
I8: =IF(('moteur test'!$G$10-I11)>0,'moteur test'!$G$10-I11,I11-'moteur test'!$G$10) -> 513 | J8: =IF(('moteur test'!$G$10-J11)>0,'moteur test'!$G$10-J11,J11-'moteur test'!$G$10) -> 213 | K8: =IF(('moteur test'!$G$10-K11)>0,'moteur test'!$G$10-K11,K11-'moteur test'!$G$10) -> 43 | L8: =IF(('moteur test'!$G$10-L11)>0,'moteur test'!$G$10-L11,L11-'moteur test'!$G$10) -> 257 | M8: =IF(('moteur test'!$G$10-M11)>0,'moteur test'!$G$10-M11,M11-'moteur test'!$G$10) -> 737 | N8: =IF(('moteur test'!$G$10-N11)>0,'moteur test'!$G$10-N11,N11-'moteur test'!$G$10) -> 1063 | AJ8: vitesse de rotation selon n10N et n100W
I9: =IF(I8=MIN($I8:$N8),1,0) -> 0 | J9: 0 | K9: 1 | L9: 0 | M9: 0 | N9: 0 | S9: puissance = f (traction) | AA9: efficacité = f (traction) | AJ9: vitesse de rotation = f (traction)
B10: Helice 1 | I10: =CONCATENATE("traction min: ",FIXED('moteur test'!G10,0)," grs") -> traction min: 1.063 grs | AQ10: =IF(I11>0,1,0) -> 1 | AR10: =IF(J11>0,1,0) -> 1 | AS10: 1 | AT10: 1 | AU10: 1 | AV10: 0
B11: marque | C11: RCTimer | H11: traction | I11: 550 | J11: 850 | K11: 1020 | L11: 1320 | M11: 1800 | O11: grs | AQ11: =IF(I11>0,I11,0) -> 550 | AR11: =IF(J11>0,J11,AQ11) -> 850 | AS11: =IF(K11>0,K11,AR11) -> 1020 | AT11: 1320 | AU11: 1800 | AV11: 1800 | AW11: traction
B12: diamètre | C12: 13 | H12: vitesse | I12: 4162 | J12: 5151 | K12: 5742 | L12: 7143 | M12: 7914 | O12: trs/min | AQ12: =IF(AQ10>0,$C$15/(10/(AQ11*0.009806))^0.5,"") -> 4216.285916 | AR12: =IF(AR10>0,$C$15/(10/(AR11*0.009806))^0.5,AQ12) -> 5241.531158 | AS12: =IF(AS10>0,$C$15/(10/(AS11*0.009806))^0.5,AR12) -> 5741.809703 | AT12: 6531.842054 | AU12: 7627.548214 | AV12: 7627.548214 | AW12: vitesse selon n10N
B13: pas | C13: 4 | H13: courant | I13: 4.1 | J13: 6.9 | K13: 8.6 | L13: 16 | M13: 19.5 | O13: ampères | AQ13: =IF(AQ10>0,$C$14/(100/AQ14)^(1/3),"") -> 4402.306104 | AR13: =IF(AR10>0,$C$14/(100/AR14)^(1/3),AQ13) -> 5299.71392 | AS13: =IF(AS10>0,$C$14/(100/AS14)^(1/3),AR13) -> 5742 | AT13: 6679.640446 | AU13: 7410.589678 | AV13: 7410.589678 | AW13: vitesse selon n100W
B14: n100W | C14: =SUM(I21:N21) -> 5477.338412 | H14: puissance | I14: 64 | J14: 105 | K14: 132 | L14: 212 | M14: 290 | O14: watts | AQ14: =IF(I17>0,I17,"") -> 51.91967774 | AR14: =IF(J17>0,J17,AQ14) -> 90.58338755 | AS14: =IF(K17>0,K17,AR14) -> 115.2075237 | AT14: 181.3637699 | AU14: 247.6564133 | AV14: 247.6564133 | AW14: puissance mécanique
B15: n10N | C15: =SUM(I22:N22) -> 5741.201167 | H15: tension | I15: =(I14/(I13-$I$6))+($I$5*I13) -> 19.24172941 | J15: =(J14/(J13-$I$6))+($I$5*J13) -> 17.63928387 | K15: 17.58606076 | L15: 15.48820915 | M15: 17.41453191 | N15: 0 | O15: volts | AQ15: =(AQ11/$AZ15)^(1/$BA15)*1000 -> 4180.634563 | AR15: =(AR11/$AZ15)^(1/$BA15)*1000 -> 5289.745367 | AS15: 5837.614882 | AT15: 6710.606866 | AU15: 7935.455066 | AV15: 7935.455066 | AW15: vitesse selon F, f et exp | AZ15: ='moteur-hélice'!G7 -> 39 | BA15: ='moteur-hélice'!G8 -> 1.85
H16: rendement | I16: =IF(I15>0,(I15-($I$5*I13))*(I13-$I$6)/(I15*I13),0) -> 0.8112449647 | J16: =IF(J15>0,(J15-($I$5*J13))*(J13-$I$6)/(J15*J13),0) -> 0.862698929 | K16: 0.8727842704 | L16: 0.8554894805 | M16: =IF(M15>0,(M15-($I$5*M13))*(M13-$I$6)/(M15*M13),0) -> 0.853987632 | N16: 0 | AQ16: =(AQ14/$BA15)^(1/$BA16)*1000 -> 3944.125488 | AR16: =(AR14/$BA15)^(1/$BA16)*1000 -> 4959.324928 | AS16: =(AS14/$BA15)^(1/$BA16)*1000 -> 5475.185177 | AT16: =(AT14/$BA15)^(1/$BA16)*1000 -> 6599.293611 | AU16: =(AU14/$BA15)^(1/$BA16)*1000 -> 7501.982905 | AV16: =(AV14/$BA15)^(1/$BA16)*1000 -> 7501.982905 | AW16: vitesse selon P, f et exp | AZ16: ='moteur-hélice'!G9 -> 1.6 | BA16: ='moteur-hélice'!G10 -> 2.43
D17: =CONCATENATE("vitesse pour ",FIXED('moteur test'!$G$10,0)," grs") -> vitesse pour 1.063 grs | E17: =C15/((10/(9.80665*'moteur test'!$G$10/1000))^0.5) -> 5861.782966 | F17: trs/min | H17: P méc | I17: =I14*I16 -> 51.91967774 | J17: =J14*J16 -> 90.58338755 | K17: =K14*K16 -> 115.2075237 | L17: 181.3637699 | M17: =M14*M16 -> 247.6564133 | N17: 0 | O17: watts | AQ17: =AQ11/AQ14 -> 10.59328609 | AR17: =AR11/AR14 -> 9.383619039 | AS17: 8.85358844 | AT17: 7.278190131 | AU17: 7.26813401 | AV17: 7.26813401 | AW17: Eff selon n100W
D18: =CONCATENATE("P mécanique pour ",FIXED('moteur test'!$G$10,0)," grs") -> P mécanique pour 1.063 grs | E18: =IF(C14>0,100*(E17/C14)^3,0) -> 122.5689543 | F18: watts | H18: n100W | I18: =IF(I17=0,0,(I12*(100/I17)^(1/3))) -> 5178.350149 | J18: =IF(J17=0,0,(J12*(100/J17)^(1/3))) -> 5323.640217 | K18: =IF(K17=0,0,(K12*(100/K17)^(1/3))) -> 5477.338412 | L18: 5857.295553 | M18: =IF(M17=0,0,(M12*(100/M17)^(1/3))) -> 5849.420637 | N18: 0 | O18: n100W | AQ18: =$AZ15/$AZ16*(AQ15/1000)^($BA15-($BA16)) -> 10.63222465 | AR18: 9.275823143 | AS18: 8.760483358 | AT18: 8.080212497 | AU18: 7.331502028 | AV18: 7.331502028 | AW18: Eff selon F
D19: efficacité | E19: =IF(E18>0,'moteur test'!$G$10/E18,0) -> 8.67266924 | F19: grs/wattméc | H19: n10N | I19: =IF(I11=0,0,I12*(10/(9.80665*I11/1000))^0.5) -> 5667.0937 | J19: =IF(J11=0,0,J12*(10/(9.80665*J11/1000))^0.5) -> 5641.852778 | K19: =IF(K11=0,0,K12*(10/(9.80665*K11/1000))^0.5) -> 5741.201167 | L19: 6278.173981 | M19: 5956.613968 | N19: 0 | O19: n10N | AQ19: =$AZ15/$AZ16*(AQ16/1000)^($BA15-($BA16)) -> 10.99748059 | AR19: 9.629406874 | AS19: 9.092290715 | AT19: 8.1589844 | AU19: 7.574300021 | AV19: 7.574300021 | AW19: Eff selon P
H20: efficacité | I20: =IF(I17>0,I11/I17,0) -> 10.59328609 | J20: =IF(J17>0,J11/J17,0) -> 9.383619039 | K20: 8.85358844 | L20: 7.278190131 | M20: 7.26813401 | N20: 0 | O20: grs/W
I21: =I9*I18 -> 0 | J21: 0 | K21: 5477.338412 | L21: 0 | M21: 0 | N21: 0
I22: =I9*I19 -> 0 | J22: 0 | K22: 5741.201167 | L22: 0 | M22: 0 | N22: 0
I23: =IF(('moteur test'!$G$10-I26)>0,'moteur test'!$G$10-I26,I26-'moteur test'!$G$10) -> 213 | J23: =IF(('moteur test'!$G$10-J26)>0,'moteur test'!$G$10-J26,J26-'moteur test'!$G$10) -> 63 | K23: =IF(('moteur test'!$G$10-K26)>0,'moteur test'!$G$10-K26,K26-'moteur test'!$G$10) -> 637 | L23: =IF(('moteur test'!$G$10-L26)>0,'moteur test'!$G$10-L26,L26-'moteur test'!$G$10) -> 1063 | M23: =IF(('moteur test'!$G$10-M26)>0,'moteur test'!$G$10-M26,M26-'moteur test'!$G$10) -> 1063 | N23: =IF(('moteur test'!$G$10-N26)>0,'moteur test'!$G$10-N26,N26-'moteur test'!$G$10) -> 1063
I24: =IF(I23=MIN($I23:$N23),1,0) -> 0 | J24: =IF(J23=MIN($I23:$N23),1,0) -> 1 | K24: =IF(K23=MIN($I23:$N23),1,0) -> 0 | L24: =IF(L23=MIN($I23:$N23),1,0) -> 0 | M24: =IF(M23=MIN($I23:$N23),1,0) -> 0 | N24: =IF(N23=MIN($I23:$N23),1,0) -> 0
B25: Helice 2 | I25: =CONCATENATE("traction min: ",FIXED('moteur test'!$G$10,0)," grs") -> traction min: 1.063 grs | AQ25: =IF(I26>0,1,0) -> 1 | AR25: =IF(J26>0,1,0) -> 1 | AS25: =IF(K26>0,1,0) -> 1 | AT25: =IF(L26>0,1,0) -> 0 | AU25: =IF(M26>0,1,0) -> 0 | AV25: =IF(N26>0,1,0) -> 0
B26: marque | C26: RCTimer | H26: traction | I26: 850 | J26: 1000 | K26: 1700 | O26: grs | AQ26: =IF(I26>0,I26,"") -> 850 | AR26: =IF(J26>0,J26,AQ26) -> 1000 | AS26: =IF(K26>0,K26,AR26) -> 1700 | AT26: 1700 | AU26: 1700 | AV26: 1700 | AW26: traction
B27: diamètre | C27: 13 | H27: vitesse | I27: 4660 | J27: 5000 | K27: 6600 | O27: trs/min | AQ27: =IF(AQ25>0,$C$30/(10/(AQ26*0.009806))^0.5,"") -> 4609.619455 | AR27: =IF(AR25>0,$C$30/(10/(AR26*0.009806))^0.5,AQ27) -> 4999.834293 | AS27: =IF(AS25>0,$C$30/(10/(AS26*0.009806))^0.5,AR27) -> 6518.98635 | AT27: 6518.98635 | AU27: 6518.98635 | AV27: 6518.98635 | AW27: vitesse selon n10N
B28: pas | C28: 6.5 | H28: courant | I28: 6 | J28: 9 | K28: 22.2 | O28: ampères | AQ28: =IF(AQ25>0,$C$29/(100/AQ29)^(1/3),"") -> 4441.48992 | AR28: =IF(AR25>0,$C$29/(100/AR29)^(1/3),AQ28) -> 5000 | AS28: =IF(AS25>0,$C$29/(100/AS29)^(1/3),AR28) -> 6116.976625 | AT28: 6116.976625 | AU28: 6116.976625 | AV28: 6116.976625 | AW28: vitesse selon n100W
B29: n100W | C29: =SUM(I36:N36) -> 4796.846213 | H29: puissance | I29: 93 | J29: 130 | K29: 255 | O29: watts | AQ29: =IF(I32>0,I32,"") -> 79.38138224 | AR29: =IF(J32>0,J32,AQ29) -> 113.2511518 | AS29: =IF(K32>0,K32,AR29) -> 207.3686389 | AT29: 207.3686389 | AU29: 207.3686389 | AV29: 207.3686389 | AW29: puissance mécanique
B30: n10N | C30: =SUM(I37:N37) -> 5049.049943 | H30: tension | I30: =(I29/(I28-$I$6))+($I$5*I28) -> 18.15916981 | J30: 16.5806506 | K30: 14.12486512 | L30: 0 | M30: 0 | N30: 0 | O30: volts | AQ30: =(AQ26/$AZ30)^(1/$BA30)*1000 -> 4620.519842 | AR30: =(AR26/$AZ30)^(1/$BA30)*1000 -> 5028.654707 | AS30: 6629.446888 | AT30: 6629.446888 | AU30: 6629.446888 | AV30: 6629.446888 | AW30: vitesse selon F, f et exp | AZ30: ='moteur-hélice'!J7 -> 45 | BA30: ='moteur-hélice'!J8 -> 1,92
H31: rendement | I31: =IF(I30>0,(I30-($I$5*I28))*(I28-$I$6)/(I30*I28),0) -> 0.8535632499 | J31: =IF(J30>0,(J30-($I$5*J28))*(J28-$I$6)/(J30*J28),0) -> 0.8711627059 | K31: 0.8132103487 | L31: 0 | M31: 0 | N31: 0 | AQ31: =(AQ29/$BA30)^(1/$BA31)*1000 -> 3778.260854 | AR31: =(AR29/$BA30)^(1/$BA31)*1000 -> 4289.509583 | AS31: =(AS29/$BA30)^(1/$BA31)*1000 -> 5323.891936 | AT31: =(AT29/$BA30)^(1/$BA31)*1000 -> 5323.891936 | AU31: =(AU29/$BA30)^(1/$BA31)*1000 -> 5323.891936 | AV31: =(AV29/$BA30)^(1/$BA31)*1000 -> 5323.891936 | AW31: vitesse selon P, f et exp | AZ31: ='moteur-hélice'!J9 -> 1,1 | BA31: ='moteur-hélice'!J10 -> 2,8
D32: =CONCATENATE("vitesse pour ",FIXED('moteur test'!$G$10,0)," grs") -> vitesse pour 1.063 grs | E32: =C30/((10/(9.80665*'moteur test'!$G$10/1000))^0.5) -> 5155.094568 | F32: trs/min | H32: P méc | I32: =I29*I31 -> 79.38138224 | J32: =J29*J31 -> 113.2511518 | K32: 207.3686389 | L32: 0 | M32: 0 | N32: 0 | O32: watts | AQ32: =AQ26/AQ29 -> 10.70780044 | AR32: =AR26/AR29 -> 8.829932273 | AS32: 8.19796093 | AT32: 8.19796093 | AU32: 8.19796093 | AV32: 8.19796093 | AW32: Eff selon n100W
D33: =CONCATENATE("P mécanique pour ",FIXED('moteur test'!$G$10,0)," grs") -> P mécanique pour 1.063 grs | E33: =IF(C29>0,100*(E32/C29)^3,0) -> 124.1202165 | F33: watts | H33: n100W | I33: =IF(I32=0,0,(I27*(100/I32)^(1/3))) -> 5032.838924 | J33: 4796.846213 | K33: 5175.626285 | L33: 0 | M33: 0 | N33: 0 | O33: n100W | AQ33: =$AZ30/$AZ31*(AQ30/1000)^($BA30-($BA31)) -> 10.63878151 | AR33: 9.875116566 | AS33: 7.743188083 | AT33: 7.743188083 | AU33: 7.743188083 | AV33: 7.743188083 | AW33: Eff selon F
D34: efficacité | E34: =IF(E33>0,'moteur test'!$G$10/E33,0) -> 8.564277685 | F34: grs/wattméc | H34: n10N | I34: =IF(I26=0,0,I27*(10/(9.80665*I26/1000))^0.5) -> 5104.064055 | J34: 5049.049943 | K34: 5111.626784 | L34: 0 | M34: 0 | N34: 0 | O34: n10N | AQ34: =$AZ30/$AZ31*(AQ31/1000)^($BA30-($BA31)) -> 12.69997665 | AR34: 11.3579801 | AS34: 9.391567945 | AT34: 9.391567945 | AU34: 9.391567945 | AV34: 9.391567945 | AW34: Eff selon P
H35: efficacité | I35: =IF(I32>0,I26/I32,0) -> 10.70780044 | J35: 8.829932273 | K35: 8.19796093 | L35: 0 | M35: 0 | N35: 0 | O35: grs/W
I36: =I24*I33 -> 0 | J36: =J24*J33 -> 4796.846213 | K36: 0 | L36: 0 | M36: 0 | N36: 0
I37: =I24*I34 -> 0 | J37: =J24*J34 -> 5049.049943 | K37: 0 | L37: 0 | M37: 0 | N37: 0
I38: =IF(('moteur test'!$G$10-I41)>0,'moteur test'!$G$10-I41,I41-'moteur test'!$G$10) -> 213 | J38: =IF(('moteur test'!$G$10-J41)>0,'moteur test'!$G$10-J41,J41-'moteur test'!$G$10) -> 63 | K38: =IF(('moteur test'!$G$10-K41)>0,'moteur test'!$G$10-K41,K41-'moteur test'!$G$10) -> 387 | L38: =IF(('moteur test'!$G$10-L41)>0,'moteur test'!$G$10-L41,L41-'moteur test'!$G$10) -> 807 | M38: =IF(('moteur test'!$G$10-M41)>0,'moteur test'!$G$10-M41,M41-'moteur test'!$G$10) -> 1063 | N38: =IF(('moteur test'!$G$10-N41)>0,'moteur test'!$G$10-N41,N41-'moteur test'!$G$10) -> 1063
I39: =IF(I38=MIN($I38:$N38),1,0) -> 0 | J39: =IF(J38=MIN($I38:$N38),1,0) -> 1 | K39: =IF(K38=MIN($I38:$N38),1,0) -> 0 | L39: =IF(L38=MIN($I38:$N38),1,0) -> 0 | M39: =IF(M38=MIN($I38:$N38),1,0) -> 0 | N39: =IF(N38=MIN($I38:$N38),1,0) -> 0
B40: Helice 3 | I40: =CONCATENATE("traction min: ",FIXED('moteur test'!$G$10,0)," grs") -> traction min: 1.063 grs | AQ40: =IF(I41>0,1,0) -> 1 | AR40: =IF(J41>0,1,0) -> 1 | AS40: =IF(K41>0,1,0) -> 1 | AT40: =IF(L41>0,1,0) -> 1 | AU40: =IF(M41>0,1,0) -> 0 | AV40: =IF(N41>0,1,0) -> 0
B41: marque | C41: RCTimer | H41: traction | I41: 850 | J41: 1000 | K41: 1450 | L41: 1870 | O41: grs | AQ41: =IF(I41>0,I41,"") -> 850 | AR41: =IF(J41>0,J41,AQ41) -> 1000 | AS41: =IF(K41>0,K41,AR41) -> 1450 | AT41: 1870 | AU41: 1870 | AV41: 1870 | AW41: traction
B42: diamètre | C42: 14 | H42: vitesse | I42: 5100 | J42: 5470 | K42: 6525 | L42: 7560 | O42: trs/min | AQ42: =IF(AQ40>0,$C$45/(10/(AQ41*0.009806))^0.5,"") -> 5042.923683 | AR42: =IF(AR40>0,$C$45/(10/(AR41*0.009806))^0.5,AQ42) -> 5469.818717 | AS42: =IF(AS40>0,$C$45/(10/(AS41*0.009806))^0.5,AR42) -> 6586.533941 | AT42: 7479.864598 | AU42: 7479.864598 | AV42: 7479.864598 | AW42: vitesse selon n10N
B43: pas | C43: 4.7 | H43: courant | I43: 7.2 | J43: 8.6 | K43: 19.2 | L43: 22.5 | O43: ampères | AQ43: =IF(AQ40>0,$C$44/(100/AQ44)^(1/3),"") -> 5110.750497 | AR43: =IF(AR40>0,$C$44/(100/AR44)^(1/3),AQ43) -> 5470 | AS43: =IF(AS40>0,$C$44/(100/AS44)^(1/3),AR43) -> 6711.806308 | AT43: 7279.124003 | AU43: 7279.124003 | AV43: 7279.124003 | AW43: vitesse selon n100W
B44: n100W | C44: =SUM(I51:N51) -> 5245.838957 | H44: puissance | I44: 107 | J44: 130 | K44: 249 | L44: 319 | O44: watts | AQ44: =IF(I47>0,I47,"") -> 92.47177131 | AR44: =IF(J47>0,J47,AQ44) -> 113.3749522 | AS44: =IF(K47>0,K47,AR44) -> 209.4466329 | AT44: 267.1729536 | AU44: 267.1729536 | AV44: 267.1729536 | AW44: puissance mécanique
B45: n10N | C45: =SUM(I52:N52) -> 5523.660637 | H45: tension | I45: =(I44/(I43-$I$6))+($I$5*I43) -> 17.19593846 | J45: 17.3328962 | K45: 15.41785946 | L45: 16.92802752 | M45: 0 | N45: 0 | O45: volts | AQ45: =(AQ41/$AZ45)^(1/$BA45)*1000 -> 5020.061844 | AR45: =(AR41/$AZ45)^(1/$BA45)*1000 -> 5465.910415 | AS45: 6639.698735 | AT45: 7585.565414 | AU45: 7585.565414 | AV45: 7585.565414 | AW45: vitesse selon F, f et exp | AZ45: ='moteur-hélice'!M7 -> 39 | BA45: ='moteur-hélice'!M8 -> 1.91
H46: rendement | I46: =IF(I45>0,(I45-($I$5*I43))*(I43-$I$6)/(I45*I43),0) -> 0.8642221618 | J46: 0.8721150172 | K46: 0.8411511361 | L46: 0.8375327698 | M46: 0 | N46: 0 | AQ46: =(AQ44/$BA45)^(1/$BA46)*1000 -> 5175.744158 | AR46: =(AR44/$BA45)^(1/$BA46)*1000 -> 5642.559732 | AS46: =(AS44/$BA45)^(1/$BA46)*1000 -> 7318.527945 | AT46: =(AT44/$BA45)^(1/$BA46)*1000 -> 8113.719095 | AU46: =(AU44/$BA45)^(1/$BA46)*1000 -> 8113.719095 | AV46: =(AV44/$BA45)^(1/$BA46)*1000 -> 8113.719095 | AW46: vitesse selon P, f et exp | AZ46: ='moteur-hélice'!M9 -> 2.2 | BA46: ='moteur-hélice'!M10 -> 2.36
D47: =CONCATENATE("vitesse pour ",FIXED('moteur test'!$G$10,0)," grs") -> vitesse pour 1.063 grs | E47: =C45/((10/(9.80665*'moteur test'!$G$10/1000))^0.5) -> 5639.673457 | F47: trs/min | H47: P méc | I47: =I44*I46 -> 92.47177131 | J47: 113.3749522 | K47: 209.4466329 | L47: 267.1729536 | M47: 0 | N47: 0 | O47: watts | AQ47: 10.36942937 | AR47: 9.358075193 | AS47: 8.886986501 | AT47: 7.476507145 | AU47: 7.494503312 | AV47: 7.494503312 | AW47: Eff selon n100W
D48: =CONCATENATE("P mécanique pour ",FIXED('moteur test'!$G$10,0)," grs") -> P mécanique pour 1.063 grs | E48: =IF(C44>0,100*(E47/C44)^3,0) -> 124.2558984 | F48: watts | H48: n100W | I48: =IF(I47=0,0,(I42*(100/I47)^(1/3))) -> 5234.804301 | J48: 5245.838957 | K48: 5099.834176 | L48: 5448.257579 | M48: 0 | N48: 0 | O48: n100W | AQ48: 10.63222465 | AR48: 9.275823143 | AS48: 8.760483358 | AT48: 8.080212497 | AU48: 7.331502028 | AV48: 7.331502028 | AW48: Eff selon F
D49: efficacité | E49: =IF(E48>0,'moteur test'!$G$10/E48,0) -> 8.55492587 | F49: grs/wattméc | H49: n10N | I49: =IF(I41=0,0,I42*(10/(9.80665*I41/1000))^0.5) -> 5585.99285 | J49: 5523.660637 | K49: 5471.875118 | L49: 5582.653259 | M49: 0 | N49: 0 | O49: n10N | AQ49: 10.94155926 | AR49: 9.623143798 | AS49: 9.100465461 | AT49: 8.211505975 | AU49: 7.629950952 | AV49: 7.629950952 | AW49: Eff selon P
H50: efficacité | I50: =IF(I47>0,I41/I47,0) -> 9.191994356 | J50: 8.820290375 | K50: 6.923004586 | L50: 6.999211466 | M50: 0 | N50: 0 | O50: grs/W
I51: =I39*I48 -> 0 | J51: =J39*J48 -> 5245.838957 | K51: 0 | L51: 0 | M51: 0 | N51: 0
I52: =I39*I49 -> 0 | J52: =J39*J49 -> 5523.660637 | K52: 0 | L52: 0 | M52: 0 | N52: 0
I53: =IF(('moteur test'!$G$10-I56)>0,'moteur test'!$G$10-I56,I56-'moteur test'!$G$10) -> 513 | J53: =IF(('moteur test'!$G$10-J56)>0,'moteur test'!$G$10-J56,J56-'moteur test'!$G$10) -> 58 | K53: =IF(('moteur test'!$G$10-K56)>0,'moteur test'!$G$10-K56,K56-'moteur test'!$G$10) -> 127 | L53: =IF(('moteur test'!$G$10-L56)>0,'moteur test'!$G$10-L56,L56-'moteur test'!$G$10) -> 367 | M53: =IF(('moteur test'!$G$10-M56)>0,'moteur test'!$G$10-M56,M56-'moteur test'!$G$10) -> 787 | N53: =IF(('moteur test'!$G$10-N56)>0,'moteur test'!$G$10-N56,N56-'moteur test'!$G$10) -> 1247
I54: =IF(I53=MIN($I53:$N53),1,0) -> 0 | J54: =IF(J53=MIN($I53:$N53),1,0) -> 1 | K54: =IF(K53=MIN($I53:$N53),1,0) -> 0 | L54: =IF(L53=MIN($I53:$N53),1,0) -> 0 | M54: =IF(M53=MIN($I53:$N53),1,0) -> 0 | N54: =IF(N53=MIN($I53:$N53),1,0) -> 0
B55: Helice 4 | I55: =CONCATENATE("traction min: ",FIXED('moteur test'!$G$10,0)," grs") -> traction min: 1.063 grs | AQ55: =IF(I56>0,1,0) -> 1 | AR55: =IF(J56>0,1,0) -> 1 | AS55: =IF(K56>0,1,0) -> 1 | AT55: =IF(L56>0,1,0) -> 1 | AU55: =IF(M56>0,1,0) -> 1 | AV55: =IF(N56>0,1,0) -> 1
B56: marque | C56: Turnigy | H56: traction | I56: 550 | J56: 1005 | K56: 1190 | L56: 1430 | M56: 1850 | N56: 2310 | O56: grs | AQ56: =IF(I56>0,I56,"") -> 550 | AR56: =IF(J56>0,J56,"") -> 1005 | AS56: 1190 | AT56: 1430 | AU56: 1850 | AV56: 2310 | AW56: traction
B57: diamètre | C57: 18 | H57: vitesse | I57: 2340 | J57: 3000 | K57: 3240 | L57: 3600 | M57: 4020 | N57: 4560 | O57: trs/min | AQ57: =IF(AQ55>0,$C$60/(10/(AQ56*0.009806))^0.5,"") -> 2219.244618 | AR57: =IF(AR55>0,$C$60/(10/(AR56*0.009806))^0.5,"") -> 2999.900576 | AS57: 3264.354465 | AT57: 3578.424423 | AU57: 4070.143251 | AV57: 4548.098067 | AW57: vitesse selon n10N
B58: pas | C58: 4 | H58: courant | I58: 2 | J58: 4.1 | K58: 5.4 | L58: 7.3 | M58: 10.6 | N58: 15.7 | O58: ampères | AQ58: =IF(AQ55>0,$C$59/(100/AQ59)^(1/3),"") -> 2200.569252 | AR58: =IF(AR55>0,$C$59/(100/AR59)^(1/3),"") -> 3000 | AS58: 3319.998458 | AT58: 3709.146185 | AU58: 4147.70886 | AV58: 4687.187267 | AW58: vitesse selon n100W
B59: n100W | C59: =SUM(I66:N66) -> 3426.90976 | H59: puissance | I59: 41 | J59: 82.3 | K59: 107 | L59: 145 | M59: 200 | N59: 290 | O59: watts | AQ59: =IF(I62>0,I62,"") -> 26.47872784 | AR59: =IF(J62>0,J62,"") -> 67.08968592 | AS59: 90.92967536 | AT59: 126.7984208 | AU59: 177.3032873 | AV59: 255.8756213 | AW59: puissance mécanique
B60: n10N | C60: =SUM(I67:N67) -> 3021.884674 | H60: tension | I60: =(I59/(I58-$I$6))+($I$5*I58) -> 31.74246154 | J60: 24.62408235 | K60: 23.31675745 | L60: 22.71429697 | M60: 21.2832202 | N60: 20.93473333 | O60: volts | AQ60: =(AQ56/$AZ60)^(1/$BA60)*1000 -> 2422.889107 | AR60: =(AR56/$AZ60)^(1/$BA60)*1000 -> 3224.118273 | AS60: 3492.920029 | AT60: 3810.687808 | AU60: 4305.326255 | AV60: 4783.131798 | AW60: vitesse selon F, f et exp | AZ60: ='moteur-hélice'!P7 -> 85 | BA60: ='moteur-hélice'!P8 -> 2,11
H61: rendement | I61: =IF(I60>0,(I60-($I$5*I58))*(I58-$I$6)/(I60*I58),0) -> 0.6458226302 | J61: 0.8151845191 | K61: 0.8498100501 | L61: 0.8744718679 | M61: 0.8865164364 | N61: 0.8823297286 | AQ61: =(AQ59/$BA60)^(1/$BA61)*1000 -> 2357.283136 | AR61: =(AR59/$BA60)^(1/$BA61)*1000 -> 3230.56948 | AS61: =(AS59/$BA60)^(1/$BA61)*1000 -> 3581.3087 | AT61: =(AT59/$BA60)^(1/$BA61)*1000 -> 4008.608946 | AU61: =(AU59/$BA60)^(1/$BA61)*1000 -> 4491.078241 | AV61: =(AV59/$BA60)^(1/$BA61)*1000 -> 5085.746753 | AW61: vitesse selon P, f et exp | AZ61: ='moteur-hélice'!P9 -> 2,6 | BA61: ='moteur-hélice'!P10 -> 2,95
D62: =CONCATENATE("vitesse pour ",FIXED('moteur test'!$G$10,0)," grs") -> vitesse pour 1.063 grs | E62: =C60/((10/(9.80665*'moteur test'!$G$10/1000))^0.5) -> 3085.352976 | F62: trs/min | H62: P méc | I62: =I59*I61 -> 26.47872784 | J62: 67.08968592 | K62: 90.92967536 | L62: 126.7984208 | M62: 177.3032873 | N62: 255.8756213 | O62: watts | AQ62: 10.36942937 | AR62: 9.358075193 | AS62: 8.886986501 | AT62: 7.476507145 | AU62: 7.494503312 | AV62: 7.494503312 | AW62: Eff selon n100W
D63: =CONCATENATE("P mécanique pour ",FIXED('moteur test'!$G$10,0)," grs") -> P mécanique pour 1.063 grs | E63: =IF(C59>0,100*(E62/C59)^3,0) -> 72.98045437 | F63: watts | H63: n100W | I63: =IF(I62=0,0,(I57*(100/I62)^(1/3))) -> 3644.042937 | J63: 3426.90976 | K63: 3344.335175 | L63: 3326.068729 | M63: 3321.394462 | N63: 3333.920242 | O63: n100W | AQ63: 10.63222465 | AR63: 9.275823143 | AS63: 8.760483358 | AT63: 8.080212497 | AU63: 7.331502028 | AV63: 7.331502028 | AW63: Eff selon F
D64: efficacité | E64: =IF(E63>0,'moteur test'!$G$10/E63,0) -> 14.56554374 | F64: grs/wattméc | H64: n10N | I64: =IF(I56=0,0,I57*(10/(9.80665*I56/1000))^0.5) -> 3186.208375 | J64: 3021.884674 | K64: 2999.239808 | L64: 3040.003924 | M64: 2984.556818 | N64: 3029.692243 | O64: n10N | AQ64: 10.94155926 | AR64: 9.623143798 | AS64: 9.100465461 | AT64: 8.211505975 | AU64: 7.629950952 | AV64: 7.629950952 | AW64: Eff selon P
H65: efficacité | I65: =IF(I62>0,I56/I62,0) -> 20.77139066 | J65: 14.9799479 | K65: 13.08703672 | L65: 11.27774298 | M65: 10.4340987 | N65: 9.027823707 | O65: grs/W
I66: =I54*I63 -> 0 | J66: =J54*J63 -> 3426.90976 | K66: 0 | L66: 0 | M66: 0 | N66: 0
I67: =I54*I64 -> 0 | J67: =J54*J64 -> 3021.884674 | K67: 0 | L67: 0 | M67: 0 | N67: 0
I68: =IF(('moteur test'!$G$10-I71)>0,'moteur test'!$G$10-I71,I71-'moteur test'!$G$10) -> 543 | J68: =IF(('moteur test'!$G$10-J71)>0,'moteur test'!$G$10-J71,J71-'moteur test'!$G$10) -> 283 | K68: =IF(('moteur test'!$G$10-K71)>0,'moteur test'!$G$10-K71,K71-'moteur test'!$G$10) -> 138 | L68: =IF(('moteur test'!$G$10-L71)>0,'moteur test'!$G$10-L71,L71-'moteur test'!$G$10) -> 487 | M68: =IF(('moteur test'!$G$10-M71)>0,'moteur test'!$G$10-M71,M71-'moteur test'!$G$10) -> 752 | N68: =IF(('moteur test'!$G$10-N71)>0,'moteur test'!$G$10-N71,N71-'moteur test'!$G$10) -> 1063
I69: =IF(I68=MIN($I68:$N68),1,0) -> 0 | J69: =IF(J68=MIN($I68:$N68),1,0) -> 0 | K69: =IF(K68=MIN($I68:$N68),1,0) -> 1 | L69: =IF(L68=MIN($I68:$N68),1,0) -> 0 | M69: =IF(M68=MIN($I68:$N68),1,0) -> 0 | N69: =IF(N68=MIN($I68:$N68),1,0) -> 0
B70: Helice 5 | I70: =CONCATENATE("traction min: ",FIXED('moteur test'!$G$10,0)," grs") -> traction min: 1.063 grs | AQ70: =IF(I71>0,1,0) -> 1 | AR70: =IF(J71>0,1,0) -> 1 | AS70: =IF(K71>0,1,0) -> 1 | AT70: =IF(L71>0,1,0) -> 1 | AU70: =IF(M71>0,1,0) -> 1 | AV70: =IF(N71>0,1,0) -> 0
B71: marque | C71: Turnigy | H71: traction | I71: 520 | J71: 780 | K71: 925 | L71: 1550 | M71: 1815 | O71: grs | AQ71: =IF(I71>0,I71,"") -> 520 | AR71: =IF(J71>0,J71,AQ71) -> 780 | AS71: =IF(K71>0,K71,AR71) -> 925 | AT71: 1550 | AU71: 1815 | AV71: 1815 | AW71: traction
B72: diamètre | C72: 18 | H72: vitesse | I72: 2340 | J72: 2760 | K72: 3000 | L72: 3840 | M72: 4200 | O72: trs/min | AQ72: =IF(AQ70>0,$C$75/(10/(AQ71*0.009806))^0.5,"") -> 2249.249677 | AR72: =IF(AR70>0,$C$60/(10/(AR71*0.009806))^0.5,AQ72) -> 2642.841585 | AS72: =IF(AS70>0,$C$60/(10/(AS71*0.009806))^0.5,AR72) -> 2878.025893 | AT72: 3725.543851 | AU72: 4031.458051 | AV72: 4031.458051 | AW72: vitesse selon n10N
B73: pas | C73: 5.5 | H73: courant | I73: 3.15 | J73: 6.4 | K73: 8.4 | L73: 20.6 | M73: 30 | O73: ampères | AQ73: =IF(AQ70>0,$C$74/(100/AQ74)^(1/3),"") -> 1307.364799 | AR73: =IF(AR70>0,$C$74/(100/AR74)^(1/3),AQ73) -> 2624.786543 | AS73: =IF(AS70>0,$C$74/(100/AS74)^(1/3),AR73) -> 3000 | AT73: 3887.026163 | AU73: 4139.845337 | AV73: 4139.845337 | AW73: vitesse selon n100W
B74: n100W | C74: =SUM(I81:N81) -> 3262.139559 | H74: puissance | I74: 9 | J74: 62 | K74: 91 | L74: 210 | M74: 277 | O74: watts | AQ74: =IF(I77>0,I77,"") -> 6.436988777 | AR74: =IF(J77>0,J77,AQ74) -> 52.09239944 | AS74: =IF(K77>0,K77,AR74) -> 77.77788935 | AT74: 169.1783484 | AU74: 204.3829854 | AV74: 204.3829854 | AW74: puissance mécanique
B75: n10N | C75: =SUM(I82:N82) -> 3149.851291 | H75: tension | I75: =(I74/(I73-$I$6))+($I$5*I73) -> 3.994769388 | J75: 11.52999298 | K75: 12.67498182 | L75: 12.65396382 | M75: 12.51392491 | N75: 0 | O75: volts | AQ75: =(AQ71/$AZ75)^(1/$BA75)*1000 -> 2296.276028 | AR75: =(AR71/$AZ75)^(1/$BA75)*1000 -> 2782.785073 | AS75: 3016.984588 | AT75: 3853.22403 | AU75: 4152.503522 | AV75: 4152.503522 | AW75: vitesse selon F, f et exp | AZ75: ='moteur-hélice'!S7 -> 90 | BA75: ='moteur-hélice'!S8 -> 2.11
H76: rendement | I76: =IF(I75>0,(I75-($I$5*I73))*(I73-$I$6)/(I75*I73),0) -> 0.7152209752 | J76: 0.840199991 | K76: 0.8547020807 | L76: 0.8056111826 | M76: 0.7378447127 | N76: 0 | AQ76: =(AQ74/$BA75)^(1/$BA76)*1000 -> 1406.483518 | AR76: =(AR74/$BA75)^(1/$BA76)*1000 -> 2665.867153 | AS76: =(AS74/$BA75)^(1/$BA76)*1000 -> 3013.523104 | AT76: =(AT74/$BA75)^(1/$BA76)*1000 -> 3821.924088 | AU76: =(AU74/$BA75)^(1/$BA76)*1000 -> 4049.385072 | AV76: =(AV74/$BA75)^(1/$BA76)*1000 -> 4049.385072 | AW76: vitesse selon P, f et exp | AZ76: ='moteur-hélice'!S9 -> 2.5 | BA76: ='moteur-hélice'!S10 -> 3.27
D77: =CONCATENATE("vitesse pour ",FIXED('moteur test'!$G$10,0)," grs") -> vitesse pour 1.063 grs | E77: =C75/((10/(9.80665*'moteur test'!$G$10/1000))^0.5) -> 3216.007261 | F77: trs/min | H77: P méc | I77: =I74*I76 -> 6.436988777 | J77: 52.09239944 | K77: 77.77788935 | L77: 169.1783484 | M77: 204.3829854 | N77: 0 | O77: watts | AQ77: 10.36942937 | AR77: 9.358075193 | AS77: 8.886986501 | AT77: 7.476507145 | AU77: 7.494503312 | AV77: 7.494503312 | AW77: Eff selon n100W
D78: =CONCATENATE("P mécanique pour ",FIXED('moteur test'!$G$10,0)," grs") -> P mécanique pour 1.063 grs | E78: =IF(C74>0,100*(E77/C74)^3,0) -> 95.81719462 | F78: watts | H78: n100W | I78: =IF(I77=0,0,(I72*(100/I77)^(1/3))) -> 5838.773211 | J78: 3430.185668 | K78: 3262.139559 | L78: 3222.673423 | M78: 3309.540582 | N78: 0 | O78: n100W | AQ78: 10.63222465 | AR78: 9.275823143 | AS78: 8.760483358 | AT78: 8.080212497 | AU78: 7.331502028 | AV78: 7.331502028 | AW78: Eff selon F
D79: efficacité | E79: =IF(E78>0,'moteur test'!$G$10/E78,0) -> 11.09404219 | F79: grs/wattméc | H79: n10N | I79: =IF(I71=0,0,I72*(10/(9.80665*I71/1000))^0.5) -> 3276.829523 | J79: 3155.741659 | K79: 3149.851291 | L79: 3114.619781 | M79: 3148.115357 | N79: 0 | O79: n10N | AQ79: 10.94155926 | AR79: 9.623143798 | AS79: 9.100465461 | AT79: 8.211505975 | AU79: 7.629950952 | AV79: 7.629950952 | AW79: Eff selon P
H80: efficacité | I80: =IF(I77>0,I71/I77,0) -> 80.78311429 | J80: 14.97339359 | K80: 11.89284008 | L80: 9.161928906 | M80: 8.880386967 | N80: 0 | O80: grs/W
I81: =I69*I78 -> 0 | J81: =J69*J78 -> 0 | K81: 3262.139559 | L81: 0 | M81: 0 | N81: 0
I82: =I69*I79 -> 0 | J82: =J69*J79 -> 0 | K82: 3149.851291 | L82: 0 | M82: 0 | N82: 0
I83: =IF(('moteur test'!$G$10-I86)>0,'moteur test'!$G$10-I86,I86-'moteur test'!$G$10) -> 1063 | J83: =IF(('moteur test'!$G$10-J86)>0,'moteur test'!$G$10-J86,J86-'moteur test'!$G$10) -> 1063 | K83: =IF(('moteur test'!$G$10-K86)>0,'moteur test'!$G$10-K86,K86-'moteur test'!$G$10) -> 1063 | L83: =IF(('moteur test'!$G$10-L86)>0,'moteur test'!$G$10-L86,L86-'moteur test'!$G$10) -> 1063 | M83: =IF(('moteur test'!$G$10-M86)>0,'moteur test'!$G$10-M86,M86-'moteur test'!$G$10) -> 1063 | N83: =IF(('moteur test'!$G$10-N86)>0,'moteur test'!$G$10-N86,N86-'moteur test'!$G$10) -> 1063
I84: =IF(I83=MIN($I83:$N83),1,0) -> 1 | J84: =IF(J83=MIN($I83:$N83),1,0) -> 1 | K84: =IF(K83=MIN($I83:$N83),1,0) -> 1 | L84: =IF(L83=MIN($I83:$N83),1,0) -> 1 | M84: =IF(M83=MIN($I83:$N83),1,0) -> 1 | N84: =IF(N83=MIN($I83:$N83),1,0) -> 1
B85: Helice 6 | I85: =CONCATENATE("traction min: ",FIXED('moteur test'!$G$10,0)," grs") -> traction min: 1.063 grs | AQ85: =IF(I86>0,1,0) -> 0 | AR85: =IF(J86>0,1,0) -> 0 | AS85: =IF(K86>0,1,0) -> 0 | AT85: =IF(L86>0,1,0) -> 0 | AU85: =IF(M86>0,1,0) -> 0 | AV85: =IF(N86>0,1,0) -> 0
B86: marque | H86: traction | O86: grs | AQ86: =IF(I86>0,I86,"") ->  | AR86: =IF(J86>0,J86,AQ86) ->  | AS86: =IF(K86>0,K86,AR86) ->  | AW86: traction
B87: diamètre | H87: vitesse | O87: trs/min | AQ87: =IF(AQ85>0,$C$90/(10/(AQ86*0.009806))^0.5,"") ->  | AR87: =IF(AR85>0,$C$90/(10/(AR86*0.009806))^0.5,AQ87) ->  | AS87: =IF(AS85>0,$C$90/(10/(AS86*0.009806))^0.5,AR87) ->  | AW87: vitesse selon n10N
B88: pas | H88: courant | O88: ampères | AQ88: =IF(AQ85>0,$C$89/(100/AQ89)^(1/3),"") ->  | AR88: =IF(AR85>0,$C$89/(100/AR89)^(1/3),AQ88) ->  | AS88: =IF(AS85>0,$C$89/(100/AS89)^(1/3),AR88) ->  | AW88: vitesse selon n100W
B89: n100W | C89: =SUM(I96:N96) -> 0 | H89: puissance | O89: watts | AQ89: =IF(I92>0,I92,"") ->  | AR89: =IF(J92>0,J92,AQ89) ->  | AS89: =IF(K92>0,K92,AR89) ->  | AW89: puissance mécanique
B90: n10N | C90: =SUM(I97:N97) -> 0 | H90: tension | I90: =(I89/(I88-$I$6))+($I$5*I88) -> 0 | J90: 0 | K90: 0 | L90: 0 | M90: 0 | N90: 0 | O90: volts | AQ90: =(AQ86/$AZ90)^(1/$BA90)*1000 ->  | AR90: =(AR86/$AZ90)^(1/$BA90)*1000 ->  | AW90: vitesse selon F, f et exp | AZ90: ='moteur-hélice'!V7 -> 0 | BA90: ='moteur-hélice'!V8 -> 0
H91: rendement | I91: =IF(I90>0,(I90-($I$5*I88))*(I88-$I$6)/(I90*I88),0) -> 0 | J91: 0 | K91: 0 | L91: 0 | M91: 0 | N91: 0 | AQ91: =(AQ89/$BA90)^(1/$BA91)*1000 ->  | AR91: =(AR89/$BA90)^(1/$BA91)*1000 ->  | AS91: =(AS89/$BA90)^(1/$BA91)*1000 ->  | AT91: =(AT89/$BA90)^(1/$BA91)*1000 ->  | AU91: =(AU89/$BA90)^(1/$BA91)*1000 ->  | AV91: =(AV89/$BA90)^(1/$BA91)*1000 ->  | AW91: vitesse selon P, f et exp | AZ91: ='moteur-hélice'!V9 -> 0 | BA91: ='moteur-hélice'!V10 -> 0
D92: =CONCATENATE("vitesse pour ",FIXED('moteur test'!$G$10,0)," grs") -> vitesse pour 1.063 grs | E92: =C90/((10/(9.80665*'moteur test'!$G$10/1000))^0.5) -> 0 | F92: trs/min | H92: P méc | I92: =I89*I91 -> 0 | J92: 0 | K92: 0 | L92: 0 | M92: 0 | N92: 0 | O92: watts | AQ92: 10.36942937 | AR92: 9.358075193 | AS92: 8.886986501 | AT92: 7.476507145 | AU92: 7.494503312 | AV92: 7.494503312 | AW92: Eff selon n100W
D93: =CONCATENATE("P mécanique pour ",FIXED('moteur test'!$G$10,0)," grs") -> P mécanique pour 1.063 grs | E93: =IF(C89>0,100*(E92/C89)^3,0) -> 0 | F93: watts | H93: n100W | I93: =IF(I92=0,0,(I87*(100/I92)^(1/3))) -> 0 | J93: 0 | K93: 0 | L93: 0 | M93: 0 | N93: 0 | O93: n100W | AQ93: 10.63222465 | AR93: 9.275823143 | AS93: 8.760483358 | AT93: 8.080212497 | AU93: 7.331502028 | AV93: 7.331502028 | AW93: Eff selon F
D94: efficacité | E94: =IF(E93>0,'moteur test'!$G$10/E93,0) -> 0 | F94: grs/wattméc | H94: n10N | I94: =IF(I86=0,0,I87*(10/(9.80665*I86/1000))^0.5) -> 0 | J94: 0 | K94: 0 | L94: 0 | M94: 0 | N94: 0 | O94: n10N | AQ94: 10.94155926 | AR94: 9.623143798 | AS94: 9.100465461 | AT94: 8.211505975 | AU94: 7.629950952 | AV94: 7.629950952 | AW94: Eff selon P
H95: efficacité | I95: =IF(I92>0,I86/I92,0) -> 0 | J95: 0 | K95: 0 | L95: 0 | M95: 0 | N95: 0 | O95: grs/W
I96: =I84*I93 -> 0 | J96: =J84*J93 -> 0 | K96: 0 | L96: 0 | M96: 0 | N96: 0
I97: =I84*I94 -> 0 | J97: =J84*J94 -> 0 | K97: 0 | L97: 0 | M97: 0 | N97: 0
F98: Efficacité en fonction de la traction
